Workbook

Sheet Notice
B2: DISCLAIMER
B4: 1. This workbook is the property of Fonterra Co-operative Group Limited (Fonterra).
B5: 2. The workbook contains the higher level inputs and calculations underpinning the calculation of the Farmgate Milk Price for the 2018/19 season.
B6: To protect the commercial confidentiality of certain information derived from Fonterra's actual performance data, a number of inputs have been aggregated for the purposes of this workbook.
B7: The workbook does not contain all the intermediate calculations required to calculate the Farmgate Milk Price. For example, the workbook does not contain the calculations required to convert contracted prices into 'shipment month' prices, or the
B8: 'tilted annuity' calculations used to calculate the WACC charge and depreciation inputs.
B9: 3. Fonterra does not warrant that the workbook is free from error, and explicitly disclaims any liability to any third party with respect to any use they may make of the workbook.
B10: 4. Third party recipients of this workbook use it entirely at their own risk. Fonterra will not accept any responsibility any loss which may result from use of the workbook including the direct or indirect consequences of computer viruses.
B11: 5. The workbook was not designed for use by third parties and Fonterra provides no assurance that third parties will be able to be readily operate the workbook.

Sheet Global
K1: F19 Milk Price | N1: =Summary!L110 -> 6.3540632
K2: Average FX conversion rate (Sales) | N2: =Summary!L20 -> 0.6904886197
F7: Period Ended | O7: =K34 -> 2019-05-31 | Q7: =EOMONTH(T7,-1) -> 2018-05-31 | R7: =EOMONTH(S7,-1) -> 2018-04-30 | S7: =EOMONTH(T7,-1) -> 2018-05-31 | T7: =K32 -> 2018-06-30 | U7: =EOMONTH(T7,1) -> 2018-07-31 | V7: 2018-08-31 | W7: 2018-09-30 | X7: 2018-10-31 | Y7: 2018-11-30 | Z7: 2018-12-31 | AA7: 2019-01-31 | AB7: 2019-02-28 | AC7: 2019-03-31 | AD7: 2019-04-30 | AE7: 2019-05-31 | AF7: 2019-06-30 | AG7: 2019-07-31 | AH7: 2019-08-31 | AI7: 2019-09-30 | AJ7: 2019-10-31 | AK7: 2019-11-30 | AL7: 2019-12-31 | AM7: 2020-01-31 | AN7: 2020-02-29 | AO7: 2020-03-31 | AP7: =EOMONTH(AO7,1) -> 2020-04-30 | AQ7: =EOMONTH(AP7,1) -> 2020-05-31 | AR7: =EOMONTH(AQ7,1) -> 2020-06-30
D8: Calendar Year | T8: =YEAR(T7) -> 2018 | U8: 2018 | V8: 2018 | W8: 2018 | X8: 2018 | Y8: 2018 | Z8: 2018 | AA8: 2019 | AB8: 2019 | AC8: 2019 | AD8: 2019 | AE8: 2019 | AF8: 2019 | AG8: 2019 | AH8: 2019 | AI8: 2019 | AJ8: 2019 | AK8: 2019 | AL8: 2019 | AM8: 2020 | AN8: 2020 | AO8: 2020
D9: Month Number | T9: 1 | U9: =T9+1 -> 2 | V9: 3 | W9: 4 | X9: 5 | Y9: 6 | Z9: 7 | AA9: 8 | AB9: 9 | AC9: 10 | AD9: 11 | AE9: 12 | AF9: 13 | AG9: 14 | AH9: 15 | AI9: 16 | AJ9: 17 | AK9: 18 | AL9: 19 | AM9: 20 | AN9: 21 | AO9: 22
D10: Days in Period | R10: =R7-EOMONTH(R7,-1) -> 30 | S10: =S7-R7 -> 31 | T10: =T7-S7 -> 30 | U10: =U7-T7 -> 31 | V10: 31 | W10: 30 | X10: 31 | Y10: 30 | Z10: 31 | AA10: 31 | AB10: 28 | AC10: 31 | AD10: 30 | AE10: 31 | AF10: 30 | AG10: 31 | AH10: 31 | AI10: 30 | AJ10: 31 | AK10: 30 | AL10: 31 | AM10: 31 | AN10: 29 | AO10: 31
D11: Year to Go flag | O11: =INDEX(LookupTables!E11:E28,LookupTables!I11) -> 2019-11-30 | P11: =LookupTables!I11 -> 18 | T11: =IF(T9<=$P$11,1,0) -> 1 | U11: 1 | V11: 1 | W11: 1 | X11: 1 | Y11: 1 | Z11: 1 | AA11: 1 | AB11: 1 | AC11: 1 | AD11: 1 | AE11: 1 | AF11: 1 | AG11: 1 | AH11: 1 | AI11: 1 | AJ11: 1 | AK11: 1 | AL11: 0 | AM11: 0 | AN11: 0 | AO11: 0
C13: GENERAL MODEL INPUTS
C15: MODEL INFORMATION
C17: This model contains circular logic relating to the calculation of tax expense and net working capital. It is therefore necessary to set the calculation approach to 'iterative calculations.'
C20: INPUT KEY
F22: Colour Key: | K22: Description
K23: General Input Cells
K24: Calculation cell with different logic to adjacent cells
K25: Normal general input cells where inputs have been 'bundled' into a higher level / different input for purposes of this simplified model.
K26: Additional input cells added for purpose of this public model
K27: Cells intentionally left blank in 'Calculations' Tab
C29: DATE AND TIME DATA
A31: 7 | F31: First Day of the season | K31: 2018-06-01
F32: End Date of First Period | K32: =EOMONTH(K31,0) -> 2018-06-30
F34: End of season | K34: =EOMONTH(K31,11) -> 2019-05-31
C36: GLOBAL TIME DEPENDENT INPUTS | R36: =R7 -> 2018-04-30 | S36: 2018-05-31 | T36: 2018-06-30 | U36: 2018-07-31 | V36: 2018-08-31 | W36: 2018-09-30 | X36: 2018-10-31 | Y36: 2018-11-30 | Z36: 2018-12-31 | AA36: 2019-01-31 | AB36: 2019-02-28 | AC36: 2019-03-31 | AD36: 2019-04-30 | AE36: 2019-05-31 | AF36: 2019-06-30 | AG36: 2019-07-31 | AH36: 2019-08-31 | AI36: 2019-09-30 | AJ36: 2019-10-31 | AK36: 2019-11-30 | AL36: 2019-12-31 | AM36: 2020-01-31 | AN36: 2020-02-29 | AO36: 2020-03-31
F38: WACC - Annual | O38: 0.053
F39: WACC - monthly | O39: =(1+$O$38)^(1/12)-1 -> 0.00431287656
C41: SUMMARY OF ERROR CHECKS
F43: Worksheet name:
F44: Data Input | K44: ='Data Input'!J4 -> Okay
F45: Calculations | K45: =Calculations!J5 -> Okay
F46: Summary | K46: =Summary!L147 -> Okay | L46: If the 'Summary' sheet error check returns 'error', press F9 for more iterations until the figure (right) is close to zero. | U46: =SUM(Summary!Q147:AJ147) -> 8.925286238e-06
F47: Overall model | K47: =IF(COUNTA(K44:K46)=COUNTIF(K44:K46,"Okay"),"Okay","Error") -> Okay
F49: Calculations Worksheet:
F50: Debtor Reconciliation Check | K50: =Calculations!B923 -> Okay
F51: Closing Inventory Check | K51: =Calculations!B995 -> Okay
F52: FIFO Production Volume Check | K52: =Calculations!B1029 -> Okay
F53: Milk Solids Volume Check | K53: =Calculations!B1048 -> Okay
F54: Milk Price Calculation Check | K54: =Calculations!B1276 -> Okay
F55: PV of Cash Flow Check | K55: =Calculations!B1290 -> Okay
F57: Summary Worksheet
F58: Operating Cash Flow Check | K58: =Summary!L147 -> Okay

Sheet Data Input
F4: =Calculations!F5 -> Overall error check | J4: =IF(COUNTA(B:B)=COUNTIF(B:B,"Okay"),"Okay","Error") -> Okay | M4: Annual | T4: Monthly
J6: Units | K6: Input | N6: =Global!O7 -> 2019-05-31 | Q6: Date | R6: =Global!R7 -> 2018-04-30 | S6: =Global!S7 -> 2018-05-31 | T6: =Global!T7 -> 2018-06-30 | U6: =Global!U7 -> 2018-07-31 | V6: =Global!V7 -> 2018-08-31 | W6: =Global!W7 -> 2018-09-30 | X6: =Global!X7 -> 2018-10-31 | Y6: =Global!Y7 -> 2018-11-30 | Z6: =Global!Z7 -> 2018-12-31 | AA6: =Global!AA7 -> 2019-01-31 | AB6: =Global!AB7 -> 2019-02-28 | AC6: =Global!AC7 -> 2019-03-31 | AD6: =Global!AD7 -> 2019-04-30 | AE6: =Global!AE7 -> 2019-05-31 | AF6: =Global!AF7 -> 2019-06-30 | AG6: =Global!AG7 -> 2019-07-31 | AH6: =Global!AH7 -> 2019-08-31 | AI6: =Global!AI7 -> 2019-09-30 | AJ6: =Global!AJ7 -> 2019-10-31 | AK6: =Global!AK7 -> 2019-11-30 | AL6: =Global!AL7 -> 2019-12-31 | AM6: =Global!AM7 -> 2020-01-31 | AN6: =Global!AN7 -> 2020-02-29 | AO6: =Global!AO7 -> 2020-03-31
D7: Calendar Year | T7: =YEAR(T6) -> 2018 | U7: 2018 | V7: 2018 | W7: 2018 | X7: 2018 | Y7: 2018 | Z7: 2018 | AA7: =YEAR(AA6) -> 2019 | AB7: 2019 | AC7: 2019 | AD7: 2019 | AE7: 2019 | AF7: 2019 | AG7: 2019 | AH7: 2019 | AI7: 2019 | AJ7: 2019 | AK7: 2019 | AL7: 2019 | AM7: 2020 | AN7: =YEAR(AN6) -> 2020 | AO7: =YEAR(AO6) -> 2020
D8: Month Number | T8: =Global!T9 -> 1 | U8: =Global!U9 -> 2 | V8: =Global!V9 -> 3 | W8: =Global!W9 -> 4 | X8: =Global!X9 -> 5 | Y8: =Global!Y9 -> 6 | Z8: =Global!Z9 -> 7 | AA8: =Global!AA9 -> 8 | AB8: =Global!AB9 -> 9 | AC8: =Global!AC9 -> 10 | AD8: =Global!AD9 -> 11 | AE8: =Global!AE9 -> 12 | AF8: =Global!AF9 -> 13 | AG8: =Global!AG9 -> 14 | AH8: =Global!AH9 -> 15 | AI8: =Global!AI9 -> 16 | AJ8: =Global!AJ9 -> 17 | AK8: =Global!AK9 -> 18 | AL8: =Global!AL9 -> 19 | AM8: =Global!AM9 -> 20 | AN8: =Global!AN9 -> 21 | AO8: =Global!AO9 -> 22
D9: Days in Period | R9: =Global!R10 -> 30 | S9: =Global!S10 -> 31 | T9: =Global!T10 -> 30 | U9: =Global!U10 -> 31 | V9: =Global!V10 -> 31 | W9: =Global!W10 -> 30 | X9: =Global!X10 -> 31 | Y9: =Global!Y10 -> 30 | Z9: =Global!Z10 -> 31 | AA9: =Global!AA10 -> 31 | AB9: =Global!AB10 -> 28 | AC9: =Global!AC10 -> 31 | AD9: =Global!AD10 -> 30 | AE9: =Global!AE10 -> 31 | AF9: =Global!AF10 -> 30 | AG9: =Global!AG10 -> 31 | AH9: =Global!AH10 -> 31 | AI9: =Global!AI10 -> 30 | AJ9: =Global!AJ10 -> 31 | AK9: =Global!AK10 -> 30 | AL9: =Global!AL10 -> 31 | AM9: =Global!AM10 -> 31 | AN9: =Global!AN10 -> 29 | AO9: =Global!AO10 -> 31
D10: Year to Go flag | N10: 1 | P10: =Global!P11 -> 18 | T10: =Global!T11 -> 1 | U10: =Global!U11 -> 1 | V10: =Global!V11 -> 1 | W10: =Global!W11 -> 1 | X10: =Global!X11 -> 1 | Y10: =Global!Y11 -> 1 | Z10: =Global!Z11 -> 1 | AA10: =Global!AA11 -> 1 | AB10: =Global!AB11 -> 1 | AC10: =Global!AC11 -> 1 | AD10: =Global!AD11 -> 1 | AE10: =Global!AE11 -> 1 | AF10: =Global!AF11 -> 1 | AG10: =Global!AG11 -> 1 | AH10: =Global!AH11 -> 1 | AI10: =Global!AI11 -> 1 | AJ10: =Global!AJ11 -> 1 | AK10: =Global!AK11 -> 1 | AL10: =Global!AL11 -> 0 | AM10: =Global!AM11 -> 0 | AN10: =Global!AN11 -> 0 | AO10: =Global!AO11 -> 0
Q11: updated | T11: =T6 -> 2018-06-30 | U11: 2018-07-31 | V11: 2018-08-31 | W11: 2018-09-30 | X11: 2018-10-31 | Y11: 2018-11-30 | Z11: 2018-12-31 | AA11: 2019-01-31 | AB11: 2019-02-28 | AC11: 2019-03-31 | AD11: 2019-04-30 | AE11: 2019-05-31 | AF11: 2019-06-30 | AG11: 2019-07-31 | AH11: 2019-08-31 | AI11: 2019-09-30 | AJ11: 2019-10-31 | AK11: 2019-11-30 | AL11: 2019-12-31 | AM11: 2020-01-31 | AN11: =AN6 -> 2020-02-29 | AO11: =AO6 -> 2020-03-31
F14: GLOBAL
F16: STATUS / DATA SOURCE | J16: Weighted average annual FX rate for revenue. Also used in this simplified model to translate costs. In practice, USD purchases have a different time profile, & therefore weighted average conversion rate, to sales.
J17: We have adjusted the USD cost inputs to correct for this difference (so reported NZD values reconcile to the actual F19 milk price calculation.)
F20: FX
F22: Weighted average annual FX rate | R22: 0.6904886197 | S22: 0.6904886197 | T22: 0.6904886197 | U22: 0.6904886197 | V22: 0.6904886197 | W22: 0.6904886197 | X22: 0.6904886197 | Y22: 0.6904886197 | Z22: 0.6904886197 | AA22: 0.6904886197 | AB22: 0.6904886197 | AC22: 0.6904886197 | AD22: 0.6904886197 | AE22: 0.6904886197 | AF22: 0.6904886197 | AG22: 0.6904886197 | AH22: 0.6904886197 | AI22: 0.6904886197 | AJ22: 0.6904886197 | AK22: 0.6904886197 | AL22: 0.6904886197 | AM22: 0.6904886197 | AN22: 0.6904886197
F24: MILK SUPPLY
F26: STATUS / DATA SOURCE | J26: The minor difference between 'milk paid for' and 'milk collected' reflects circumstances where Fonterra is unable to collect and process milk (eg due to adverse weather events) but is contractually obliged to pay for it.
J27: The calculation of the aggregate amount available to pay for milk is based on milk actually collected and therefore available for processing. The average milk price per kgMS is calculated based on all milk paid for by Fonterra.
F30: KGMS | O30: YTD | P30: YTG
F31: Milk Paid For | J31: 000 kgMS | N31: =SUM(T31:AE31) -> 1522748.774 | O31: =SUMIF($T$10:$AE$10,1,T31:AE31) -> 1522748.774 | P31: =N31-O31 -> 0 | T31: 13301.0742 | U31: 17927.0376 | V31: 96516.0417 | W31: 179286.6967 | X31: 220213.4447 | Y31: 201200.6192 | Z31: 185129.1487 | AA31: 169022.3025 | AB31: 133077.4081 | AC31: 129551.4948 | AD31: 109104.8903 | AE31: 68418.615
F32: Milk Supply collected | J32: 000 kgMS | N32: =SUM(T32:AE32) -> 1522724.789 | T32: 13301.0742 | U32: 17927.0376 | V32: 96516.0417 | W32: 179286.6967 | X32: 220213.4447 | Y32: 201181.2384 | Z32: 185129.1487 | AA32: 169022.3025 | AB32: 133072.804 | AC32: 129551.4948 | AD32: 109104.8903 | AE32: 68418.615
F33: Monthly distribution | J33: % | N33: =SUM(T33:AE33) -> 1 | T33: =T32/$N$32 -> 0.008735048053 | U33: =U32/$N$32 -> 0.01177299912 | V33: 0.06338377258 | W33: 0.1177407093 | X33: 0.1446180205 | Y33: 0.1321192378 | Z33: 0.1215775497 | AA33: 0.1109999021 | AB33: 0.08739123773 | AC33: 0.08507873239 | AD33: 0.07165108962 | AE33: 0.04493170106
F36: PRODUCTION
F38: STATUS / DATA SOURCE | J38: Milk composition shown below is weighted average composition by quarter. In practice monthly average composition is used. The detail of the loss and composition assumptions reflects information that is confidential
J39: to Fonterra and is therefore not disclosed. We have left the relevant logic intact but have hardcoded the results of the production volume calculations on the Calculations tab.
F40: National average composition
F41: Fat | J41: % w/w | T41: 0.04707505909 | U41: 0.04707505909 | V41: 0.04707505909 | W41: 0.04580665873 | X41: 0.04580665873 | Y41: 0.04580665873 | Z41: 0.04789838905 | AA41: 0.04789838905 | AB41: 0.04789838905 | AC41: 0.05559562273 | AD41: 0.05559562273 | AE41: 0.05559562273
F42: Protein | J42: % w/w | T42: 0.03782621291 | U42: 0.03782621291 | V42: 0.03782621291 | W42: 0.03649645156 | X42: 0.03649645156 | Y42: 0.03649645156 | Z42: 0.03715173384 | AA42: 0.03715173384 | AB42: 0.03715173384 | AC42: 0.04224001083 | AD42: 0.04224001083 | AE42: 0.04224001083
F43: Lactose + Minerals | J43: % w/w | T43: 0.05423744425 | U43: 0.05423744425 | V43: 0.05423744425 | W43: 0.05472121862 | X43: 0.05472121862 | Y43: 0.05472121862 | Z43: 0.05339898687 | AA43: 0.05339898687 | AB43: 0.05339898687 | AC43: 0.05229723616 | AD43: 0.05229723616 | AE43: 0.05229723616
F45: Milk Composition Input Parameters
F46: Cream Fat Content | J46: % | N46: 0.42
F47: Skimmilk Fat Content | J47: % | N47: 0.0008
F48: Wholemilk Density | J48: % | N48: 1.032
F50: Lactose Standardising Inputs
F51: Lactose losses - WMP | J51: %
F52: Lactose losses - SMP | J52: %
F53: Lactose losses - BMP | J53: %
F54: Lactose content of lactose powder | J54: % | N54: 0.95
F56: Composition Target | L56: Fat | M56: Protein | N56: Moisture
F57: Butter | J57: %w/w
F58: AMF | J58: %w/w
F59: SMP | J59: %w/w
F60: BMP | J60: %w/w
F61: WMP | J61: %w/w
F63: Value Component Usage | L63: Fat | M63: Protein
F64: Butter | J64: kg/mt
F65: AMF | J65: kg/mt
F66: SMP | J66: kg/mt
F67: BMP | J67: kg/mt
F68: WMP | J68: kg/mt
F70: Product mix
F71: Annual average ratio of WMP MT to WMP + SMP | J71: % | N71: =SUMPRODUCT($T$33:$AE$33,T71:AE71) -> 0.7551377943 | T71: 0.7551377943 | U71: 0.7551377943 | V71: 0.7551377943 | W71: 0.7551377943 | X71: 0.7551377943 | Y71: 0.7551377943 | Z71: 0.7551377943 | AA71: 0.7551377943 | AB71: 0.7551377943 | AC71: 0.7551377943 | AD71: 0.7551377943 | AE71: 0.7551377943
F72: Annual average ratio of Butter MT to Butter + AMF | J72: % | N72: =SUMPRODUCT($T$33:$AE$33,T72:AE72) -> 0.6018813435 | T72: 0.6018813435 | U72: 0.6018813435 | V72: 0.6018813435 | W72: 0.6018813435 | X72: 0.6018813435 | Y72: 0.6018813435 | Z72: 0.6018813435 | AA72: 0.6018813435 | AB72: 0.6018813435 | AC72: 0.6018813435 | AD72: 0.6018813435 | AE72: 0.6018813435
F74: Fat : Protein Valued Component Ratio | N74: 1.3
F77: REVENUE
F79: STATUS / DATA SOURCE | J79: Prices and sales phasings entered as 3 month averages, consistent with the F19 Milk Price Statement.
J80: Downgrade adjustments are normally calculated separately but have been included here in average prices.
J81: Lactose prices to model are for calculated prices of lactose in month of use, under the assumption that lactose has been imported in prior months and stored for a period prior to usage.
E83: 1. Base Commodity Prices
F84: Full Year Commodity Prices - To Model
F85: Butter | J85: USD | N85: =SUM(T85:AO85)/COUNTIF(T85:AO85,"<>0") -> 4628.519634 | T85: 0 | U85: 0 | V85: 4937.515414 | W85: 4937.515414 | X85: 4937.515414 | Y85: 4335.9376 | Z85: 4335.9376 | AA85: 4335.9376 | AB85: 4084.745827 | AC85: 4084.745827 | AD85: 4084.745827 | AE85: 4882.163317 | AF85: 4882.163317 | AG85: 4882.163317 | AH85: 4902.236011 | AI85: 4902.236011 | AJ85: 4902.236011 | AK85: 0 | AL85: 0 | AM85: 0 | AN85: 0 | AO85: 0
F86: AMF | J86: USD | N86: =SUM(T86:AO86)/COUNTIF(T86:AO86,"<>0") -> 5635.172789 | T86: 0 | U86: 0 | V86: 5885.548377 | W86: 5885.548377 | X86: 5885.548377 | Y86: 5417.63322 | Z86: 5417.63322 | AA86: 5417.63322 | AB86: 5200.160318 | AC86: 5200.160318 | AD86: 5200.160318 | AE86: 5821.409893 | AF86: 5821.409893 | AG86: 5821.409893 | AH86: 5851.112138 | AI86: 5851.112138 | AJ86: 5851.112138 | AK86: 0 | AL86: 0 | AM86: 0 | AN86: 0 | AO86: 0
F87: SMP | J87: USD | N87: =SUM(T87:AO87)/COUNTIF(T87:AO87,"<>0") -> 2283.069733 | T87: 0 | U87: 0 | V87: 2056.433147 | W87: 2056.433147 | X87: 2056.433147 | Y87: 2051.257116 | Z87: 2051.257116 | AA87: 2051.257116 | AB87: 2213.655547 | AC87: 2213.655547 | AD87: 2213.655547 | AE87: 2553.157901 | AF87: 2553.157901 | AG87: 2553.157901 | AH87: 2540.844953 | AI87: 2540.844953 | AJ87: 2540.844953 | AK87: 0 | AL87: 0 | AM87: 0 | AN87: 0 | AO87: 0
F88: BMP | J88: USD | N88: =SUM(T88:AO88)/COUNTIF(T88:AO88,"<>0") -> 3067.659412 | T88: 0 | U88: 0 | V88: 2483.385046 | W88: 2483.385046 | X88: 2483.385046 | Y88: 2706.530112 | Z88: 2706.530112 | AA88: 2706.530112 | AB88: 3130.933344 | AC88: 3130.933344 | AD88: 3130.933344 | AE88: 3629.715256 | AF88: 3629.715256 | AG88: 3629.715256 | AH88: 3387.733302 | AI88: 3387.733302 | AJ88: 3387.733302 | AK88: 0 | AL88: 0 | AM88: 0 | AN88: 0 | AO88: 0
F89: WMP | J89: USD | N89: =SUM(T89:AO89)/COUNTIF(T89:AO89,"<>0") -> 2994.237156 | T89: 0 | U89: 0 | V89: 3011.041886 | W89: 3011.041886 | X89: 3011.041886 | Y89: 2811.216989 | Z89: 2811.216989 | AA89: 2811.216989 | AB89: 2787.766155 | AC89: 2787.766155 | AD89: 2787.766155 | AE89: 3163.12851 | AF89: 3163.12851 | AG89: 3163.12851 | AH89: 3198.032238 | AI89: 3198.032238 | AJ89: 3198.032238 | AK89: 0 | AL89: 0 | AM89: 0 | AN89: 0 | AO89: 0
F91: Lactose
F92: Fonterra Price (including CIF) | J92: USD | M92: 1
F93: Competitor Price (including CIF) | J93: USD | M93: 2 | N93: =SUMPRODUCT($T$93:$AE$93,Calculations!$T$232:$AE$232)/SUM(Calculations!$T$232:$AE$232) -> 850.9987096 | T93: 850.9987096 | U93: 850.9987096 | V93: 850.9987096 | W93: 850.9987096 | X93: 850.9987096 | Y93: 850.9987096 | Z93: 850.9987096 | AA93: 850.9987096 | AB93: 850.9987096 | AC93: 850.9987096 | AD93: 850.9987096 | AE93: 850.9987096
F94: Adjustment for difference in average FX | J94: USD | N94: -11.70789215
F95: Lactose | J95: USD | M95: =IF(N92<N93,1,2) -> 1 | N95: =CHOOSE($M$95,N$92,N$93) -> 0 | T95: =T93+$N$94 -> 839.2908174 | U95: 839.2908174 | V95: 839.2908174 | W95: 839.2908174 | X95: 839.2908174 | Y95: 839.2908174 | Z95: 839.2908174 | AA95: 839.2908174 | AB95: 839.2908174 | AC95: 839.2908174 | AD95: 839.2908174 | AE95: 839.2908174
E97: 2. Sales Phasing
F98: To Model: Selected Full Year Percentage Sales Phasings Adjusted to Align to YTD Percentage Phasings
F99: Butter | J99: % | N99: =SUM(T99:AO99) -> 1 | T99: 0 | U99: 0 | V99: 0 | W99: 0.03747326959 | X99: 0.03747326959 | Y99: 0.09642213477 | Z99: 0.09642213477 | AA99: 0.09642213477 | AB99: 0.1178296896 | AC99: 0.1178296896 | AD99: 0.1178296896 | AE99: 0.06779185203 | AF99: 0.06779185203 | AG99: 0.06779185203 | AH99: 0.0263074772 | AI99: 0.0263074772 | AJ99: 0.0263074772 | AK99: 0 | AL99: 0 | AM99: 0 | AN99: 0 | AO99: 0
F100: AMF | J100: % | N100: =SUM(T100:AO100) -> 1 | T100: 0 | U100: 0 | V100: 0 | W100: 0.06440037093 | X100: 0.06440037093 | Y100: 0.1072199965 | Z100: 0.1072199965 | AA100: 0.1072199965 | AB100: 0.08647551093 | AC100: 0.08647551093 | AD100: 0.08647551093 | AE100: 0.08599050431 | AF100: 0.08599050431 | AG100: 0.08599050431 | AH100: 0.01071374099 | AI100: 0.01071374099 | AJ100: 0.01071374099 | AK100: 0 | AL100: 0 | AM100: 0 | AN100: 0 | AO100: 0
F101: SMP | J101: % | N101: =SUM(T101:AO101) -> 1 | T101: 0 | U101: 0 | V101: 0 | W101: 0.05146491767 | X101: 0.05146491767 | Y101: 0.1304201287 | Z101: 0.1304201287 | AA101: 0.1304201287 | AB101: 0.08771488744 | AC101: 0.08771488744 | AD101: 0.08771488744 | AE101: 0.07657554765 | AF101: 0.07657554765 | AG101: 0.07657554765 | AH101: 0.004312824469 | AI101: 0.004312824469 | AJ101: 0.004312824469 | AK101: 0 | AL101: 0 | AM101: 0 | AN101: 0 | AO101: 0
F102: BMP | J102: % | N102: =SUM(T102:AO102) -> 1 | T102: 0 | U102: 0 | V102: 0 | W102: 0.04864111688 | X102: 0.04864111688 | Y102: 0.1185352115 | Z102: 0.1185352115 | AA102: 0.1185352115 | AB102: 0.0919307418 | AC102: 0.0919307418 | AD102: 0.0919307418 | AE102: 0.06283221214 | AF102: 0.06283221214 | AG102: 0.06283221214 | AH102: 0.02760775667 | AI102: 0.02760775667 | AJ102: 0.02760775667 | AK102: 0 | AL102: 0 | AM102: 0 | AN102: 0 | AO102: 0
F103: WMP | J103: % | N103: =SUM(T103:AO103) -> 1 | T103: 0 | U103: 0 | V103: 0 | W103: 0.04363499969 | X103: 0.04363499969 | Y103: 0.1305602104 | Z103: 0.1305602104 | AA103: 0.1305602104 | AB103: 0.09392746913 | AC103: 0.09392746913 | AD103: 0.09392746913 | AE103: 0.07030932011 | AF103: 0.07030932011 | AG103: 0.07030932011 | AH103: 0.009446333866 | AI103: 0.009446333866 | AJ103: 0.009446333866 | AK103: 0 | AL103: 0 | AM103: 0 | AN103: 0 | AO103: 0
E105: 3. Edible, Stockfood and Placement Spec Downgrade
L107: Butter | M107: AMF | N107: SMP | O107: BMP | P107: WMP
F108: Placement Specs Downgrade Adjustment | J108: % of Loss in Price x % of Production
F109: Edible Downgrade Downgrade Adjustment | J109: % of Loss in Price x % of Production
F110: Stockfood Downgrade Downgrade Adjustment | J110: % of Loss in Price x % of Production
E112: 4. Trader's Commission
F114: USD fixed costs | J114: USD 000s
F115: NZD fixed costs | J115: NZD 000s | N115: 109962.7565
F116: Annual production sold on GDT | J116: %
F117: Sales support cost across all volume | J117: USD / MT
F119: GDT fees schedule thresholds
F120: Base level threshold (upper limit) | J120: MT | N120: 0
F121: 2nd level threshold (upper limit) | J121: MT | N121: 50000
F122: 3rd level threshold (upper limit) | J122: MT | N122: 250000
F124: Base level threshold | J124: USD / MT | N124: 0
F125: 2nd level threshold | J125: USD / MT | N125: 30
F126: 3rd level threshold | J126: USD / MT | N126: 20
F127: Commission costs beyond 3rd level threshold | J127: USD / MT | N127: 5
F129: Fixed commission phasing | J129: % | N129: =SUM(V129:AJ129) -> 1 | V129: 0.08333333333 | W129: 0.08333333333 | X129: 0.08333333333 | Y129: 0.08333333333 | Z129: 0.08333333333 | AA129: 0.08333333333 | AB129: 0.08333333333 | AC129: 0.08333333333 | AD129: 0.08333333333 | AE129: 0.08333333333 | AF129: 0.08333333333 | AG129: 0.08333333333
F132: COLLECTION
F134: STATUS / DATA SOURCE
F137: By Product Diversion (Transport Cost) | J137: NZD '000
F138: Farm Milk Collection | J138: NZD '000 | N138: 371941.198
F139: Total | J139: NZD '000 | N139: =SUM(N137:N138) -> 371941.198
F141: Phasing | J141: NZD '000 | N141: =SUM(Q141:AO141) -> 1 | T141: 0.04133948466 | U141: 0.04624914536 | V141: 0.06282986389 | W141: 0.1024957554 | X141: 0.1336531502 | Y141: 0.1259140978 | Z141: 0.1101401768 | AA141: 0.1014414357 | AB141: 0.0767290354 | AC141: 0.07488876682 | AD141: 0.06680260318 | AE141: 0.0575164849
F143: OPEX
F145: STATUS / DATA SOURCE | J145: NOTE: (a) weighted average unit costs across all RCPs, given F19 actual product mix (b) average unit costs grossed up for weighted average rework volumes.
F149: Variable Costs
L150: Butter | M150: AMF | N150: SMP | O150: BMP | P150: WMP
F151: Production | J151: MT | L151: =Calculations!$N$201 -> 239154.5857 | M151: =Calculations!$N$202 -> 155211.2002 | N151: =Calculations!$N$203 -> 597313.5279 | O151: =Calculations!$N$204 -> 60930.12478 | P151: =Calculations!$N$205 -> 1866891.176
F152: Rework | J152: MT
F153: Total Manufacturer | J153: MT
F154: Average Revenue per MT | J154: NZD 000s | L154: =Calculations!N369 -> 6441.833665 | M154: =Calculations!N370 -> 8022.693006 | N154: =Calculations!N371 -> 3209.551328 | O154: =Calculations!N372 -> 4391.536453 | P154: =Calculations!N373 -> 4210.406268
F155: Weights | J155: % | L155: =L151/SUM($L$151:$P$151) -> 0.08191626489 | M155: =M151/SUM($L$151:$P$151) -> 0.0531636128 | N155: =N151/SUM($L$151:$P$151) -> 0.2045944176 | O155: =O151/SUM($L$151:$P$151) -> 0.02087005033 | P155: =P151/SUM($L$151:$P$151) -> 0.6394556544
L156: Butter | M156: AMF | N156: SMP | O156: BMP | P156: WMP
F157: Rework - downgrade adjustment | J157: % of Production
F158: Packaging costs | J158: NZD / MT | L158: 167.2894729 | M158: 167.2894729 | N158: 167.2894729 | O158: 167.2894729 | P158: 167.2894729
F159: Energy (Exclusive of ETS Costs) | J159: NZD / MT
F160: Water, cleaning / CIP, consumables, effluent, lab, carbon | J160: NZD / MT
F161: Cleaning & CIP | J161: NZD / MT
F162: Consumables | J162: NZD / MT
F163: Effluent | J163: NZD / MT
F164: Laboratory | J164: NZD / MT
F165: Carbon Credit Requirement | J165: MT CO2e / MT
F167: Fixed Manufacturing Costs
F168: Wages & ERE | J168: NZD 000s
F169: Repairs & Maintenance | J169: NZD 000s
F170: Energy | J170: NZD 000s
F171: Water (Fixed) | J171: NZD 000s
F172: Cleaning & CIP (Fixed) | J172: NZD 000s
F173: Consumables (Fixed) | J173: NZD 000s
F174: Effluent (Fixed) | J174: NZD 000s
F175: Laboratory (Fixed) | J175: NZD 000s
F176: Total | J176: NZD 000s | N176: =SUM(N168:N170) -> 0
F178: Site Overheads
F179: Staff Costs | J179: NZD 000s
F180: Other | J180: NZD 000s | N180: 415205
F181: Total | J181: NZD 000s | N181: =N180 -> 415205
F183: Fixed Opex - Phasing | J183: % | N183: =SUM(T183:AE183) -> 1 | T183: 0.1 | U183: 0.095 | V183: 0.085 | W183: 0.08 | X183: 0.08 | Y183: 0.08 | Z183: 0.08 | AA183: 0.08 | AB183: 0.07 | AC183: 0.08 | AD183: 0.08 | AE183: 0.09
F185: Lactose CIF costs per MT | J185: USD
F187: NZUS Surrender Ratio | J187: %
F188: NZUSSPOT Index | J188: NZD / MT CO2e
F190: SUPPLY CHAIN
F192: STATUS / DATA SOURCE
F195: Inland Freight Costs per MT
F196: Butter | J196: NZD / MT
F197: Other (Excl Lactose) | J197: NZD / MT
F198: Lactose | J198: NZD / MT
F200: Variable Supply Chain Costs
F201: Kotahi Fees | J201: USD / MT
F202: Complaints | J202: NZD / MT | N202: 80.99064254
F203: Supply chain admin etc (excl depn & amortisation) | J203: NZD / MT
F204: Pallets & Recycling | J204: NZD / MT
F205: Port Costs | J205: NZD / MT
F206: Dry Storage Costs | J206: NZD / MT
F207: Cool Storage Costs (Butter) per month | J207: NZD / MT
F208: Cool Storage Costs (Inbound) | J208: NZD / MT
F209: Cool Storage Costs (Outbound) | J209: NZD / MT
F210: Cool Storage Write-off Costs | J210: NZD / MT
F212: Fixed Supply Chain Costs
F213: Group Supply Chain Overheads | J213: NZD '000
F215: Supply Chain - Phasing | J215: % | N215: =SUM(T215:AO215) -> 1 | T215: 0.07695353482 | U215: 0.06080168379 | V215: 0.07477710625 | W215: 0.08379381469 | X215: 0.08673651303 | Y215: 0.09083598335 | Z215: 0.08574060333 | AA215: 0.09658340316 | AB215: 0.0834235151 | AC215: 0.09403069183 | AD215: 0.08158029806 | AE215: 0.08474285258
F217: ADMINISTRATION
F219: STATUS / DATA SOURCE
F222: NZ Manufacturing Overhead | J222: NZD '000
F223: Corporate Overhead | J223: NZD '000
F224: Fms Overheads | J224: NZD '000
F225: Shareholder Relations | J225: NZD '000
F226: Admin costs to model | J226: NZD '000 | N226: 292650.8593
F228: Admin - Phasing | J228: % | N228: =SUM(T228:AO228) -> 1 | T228: 0.12 | U228: 0.11 | V228: 0.11 | W228: 0.11 | X228: 0.12 | Y228: 0.105 | Z228: 0.1 | AA228: 0.06 | AB228: 0.06 | AC228: 0.045 | AD228: 0.04 | AE228: 0.02
F230: FIXED ASSETS
F232: STATUS / DATA SOURCE | J232: Fonterra's actual accounting and tax depreciation for collection assets are used in the calculation. Bundled here into (a) other depreciation and (b) as an adjustment to tilted annuity depreciation : tax depreciation ratio.
F236: Capital Charge | J236: NZD '000 | N236: 358172
F237: Net Depreciation | J237: NZD '000 | N237: 260323
F238: Accounting Depreciation - collection assets | J238: NZD '000
F239: Tax Depreciation - collection assets | J239: NZD '000
F241: INCOME TAX
F243: STATUS / DATA SOURCE | J243: Actual tax depreciation as % of accounting depreciation ratio set at 120% for assets other than collection assets, where Fonterra's actual tax depreciation is used. Ratio has been adjusted so that reported tax equals actual tax calculated in the final
J244: Farmgate Milk Price calculation. Adjustment is required due to impact of differences between this model and final model in treatment of aggregated vs disaggregated cost inputs.
F247: Company Tax Rate | J247: % | N247: 0.28
F248: Tax depn as % of accounting depn | J248: % | N248: 1.19368808
F251: WORKING CAPITAL
F253: STATUS / DATA SOURCE | J253: Debtor days reset to weighted average across 5 RCPs. In practice debtor days are calculated by reference to sales included in the Milk Price calcuatlion for each RCP.
J254: Creditor days 'other' normally set separately to lactose (which is paid for prior to month of utilisation, when cost is recognised in the model) and other. Have been (a) set equal here and (b) used as balancing adjustment to align simplified capital charge to actual.
J255: The advance rate schedule reflects the weighted average phasing of all payments for milk, mainly payments for milk supplied on standard terms of supply but also including winter milk and other milk supplied on non-standard terms.
F257: Creditor days - Other | J257: Days | N257: -1.34395
F258: Creditor days - Lactose | J258: Days | N258: =N257 -> -1.34395
F259: Debtor Days
F260: Butter | J260: Days | N260: 22.95885968
F261: AMF | J261: Days | N261: 22.95885968
F262: SMP | J262: Days | N262: 22.95885968
F263: BMP | J263: Days | N263: 22.95885968
F264: WMP | J264: Days | N264: 22.95885968
F266: Supplier Payables - Advance Rate Schedule
F267: Advance rate | T267: 5.3064 | U267: 5.3064 | V267: 4.86125731 | W267: 4.5564 | X267: 4.402303591 | Y267: 4.296923572 | Z267: 4.256345171 | AA267: 4.204398282 | AB267: 4.316233996 | AC267: 4.677118268 | AD267: 4.863645739 | AE267: 4.98935962 | AF267: 5.108219969 | AG267: 5.408219969 | AH267: 5.708219969 | AI267: 5.692397208 | AJ267: =Calculations!N1272 -> 6.363195727
F268: YTD advance rate / YTG % MP | J268: % | T268: =T267 -> 5.3064 | U268: =U267 -> 5.3064 | V268: 4.86125731 | W268: 4.5564 | X268: 4.402303591 | Y268: 4.296923572 | Z268: 4.256345171 | AA268: 4.204398282 | AB268: 4.316233996 | AC268: 4.677118268 | AD268: 4.863645739 | AE268: 4.98935962 | AF268: 5.108219969 | AG268: 5.408219969 | AH268: 5.708219969 | AI268: 5.692397208 | AJ268: =AJ267 -> 6.363195727
F270: Working Capital - incremental cash costs | J270: NZD '000 | N270: 7225.185174
F271: Working Capital - incremental cash costs phasing | J271: % | N271: =SUM(T271:AJ271) -> 1 | T271: 0 | U271: 0 | V271: 0 | W271: 0.05 | X271: 0.05 | Y271: 0.12 | Z271: 0.12 | AA271: 0.12 | AB271: 0.09 | AC271: 0.09 | AD271: 0.09 | AE271: 0.08 | AF271: 0.08 | AG271: 0.08 | AH271: 0.01 | AI271: 0.01 | AJ271: 0.01
F272: Working Capital - incremental cash costs (to model) | J272: NZD '000 | T272: =T271*$N$270 -> 0 | U272: =U271*$N$270 -> 0 | V272: 0 | W272: 361.2592587 | X272: 361.2592587 | Y272: 867.0222209 | Z272: 867.0222209 | AA272: 867.0222209 | AB272: 650.2666656 | AC272: 650.2666656 | AD272: 650.2666656 | AE272: 578.0148139 | AF272: 578.0148139 | AG272: 578.0148139 | AH272: 72.25185174 | AI272: 72.25185174 | AJ272: 72.25185174
F275: ADDITIONAL COMMODITY MILK PAYMENTS AND STANDARD SUPPLY ADJUSTMENTS
F277: STATUS / DATA SOURCE | J277: Adjustments for notional Winter Milk premiums, other additional payments or deductions for milk not supplied on standard terms, to the extent these would apply to the Farmgate Milk Price business, and demerit deductions for milk quality issues.
F280: Additional Commodity Milk Payments And Standard Supply Adjustments | J280: NZD '000 | N280: 13906.54494

Sheet Calculations
F5: Overall error check | J5: =IF(COUNTA(B:B)=COUNTIF(B:B,"Okay"),"Okay","Error") -> Okay | N5: Annual | T5: Monthly
J9: Units | K9: Cross Reference | N9: =Global!O7 -> 2019-05-31 | R9: =Global!R7 -> 2018-04-30 | S9: =Global!S7 -> 2018-05-31 | T9: =Global!T7 -> 2018-06-30 | U9: =Global!U7 -> 2018-07-31 | V9: =Global!V7 -> 2018-08-31 | W9: =Global!W7 -> 2018-09-30 | X9: =Global!X7 -> 2018-10-31 | Y9: =Global!Y7 -> 2018-11-30 | Z9: =Global!Z7 -> 2018-12-31 | AA9: =Global!AA7 -> 2019-01-31 | AB9: =Global!AB7 -> 2019-02-28 | AC9: =Global!AC7 -> 2019-03-31 | AD9: =Global!AD7 -> 2019-04-30 | AE9: =Global!AE7 -> 2019-05-31 | AF9: =Global!AF7 -> 2019-06-30 | AG9: =Global!AG7 -> 2019-07-31 | AH9: =Global!AH7 -> 2019-08-31 | AI9: =Global!AI7 -> 2019-09-30 | AJ9: =Global!AJ7 -> 2019-10-31 | AK9: =Global!AK7 -> 2019-11-30 | AL9: =Global!AL7 -> 2019-12-31 | AM9: =Global!AM7 -> 2020-01-31 | AN9: =Global!AN7 -> 2020-02-29 | AO9: =Global!AO7 -> 2020-03-31 | AP9: =Global!AP7 -> 2020-04-30 | AQ9: =Global!AQ7 -> 2020-05-31
D10: Calendar Year | T10: =YEAR(T9) -> 2018 | U10: =YEAR(U9) -> 2018 | V10: 2018 | W10: 2018 | X10: 2018 | Y10: 2018 | Z10: 2018 | AA10: 2019 | AB10: 2019 | AC10: 2019 | AD10: 2019 | AE10: 2019 | AF10: 2019 | AG10: 2019 | AH10: 2019 | AI10: 2019 | AJ10: 2019 | AK10: 2019 | AL10: 2019 | AM10: =YEAR(AM9) -> 2020 | AN10: =YEAR(AN9) -> 2020 | AO10: =YEAR(AO9) -> 2020 | AP10: =YEAR(AP9) -> 2020
D11: Month Number | T11: 1 | U11: =T11+1 -> 2 | V11: =U11+1 -> 3 | W11: =V11+1 -> 4 | X11: 5 | Y11: 6 | Z11: 7 | AA11: 8 | AB11: 9 | AC11: 10 | AD11: 11 | AE11: 12 | AF11: 13 | AG11: 14 | AH11: 15 | AI11: 16 | AJ11: 17 | AK11: 18 | AL11: 19 | AM11: =AL11+1 -> 20 | AN11: =AM11+1 -> 21 | AO11: =AN11+1 -> 22 | AP11: =AO11+1 -> 23
D12: Days in Period | R12: =Global!R10 -> 30 | S12: =Global!S10 -> 31 | T12: =Global!T10 -> 30 | U12: =U9-T9 -> 31 | V12: =V9-U9 -> 31 | W12: 30 | X12: 31 | Y12: 30 | Z12: 31 | AA12: 31 | AB12: 28 | AC12: 31 | AD12: 30 | AE12: 31 | AF12: 30 | AG12: 31 | AH12: 31 | AI12: 30 | AJ12: 31 | AK12: 30 | AL12: 31 | AM12: 31 | AN12: 29 | AO12: 31 | AP12: 30
D13: Year to Go flag | N13: 1 | P13: =Global!P11 -> 18 | T13: =Global!T11 -> 1 | U13: =Global!U11 -> 1 | V13: =Global!V11 -> 1 | W13: =Global!W11 -> 1 | X13: =Global!X11 -> 1 | Y13: =Global!Y11 -> 1 | Z13: =Global!Z11 -> 1 | AA13: =Global!AA11 -> 1 | AB13: =Global!AB11 -> 1 | AC13: =Global!AC11 -> 1 | AD13: =Global!AD11 -> 1 | AE13: =Global!AE11 -> 1 | AF13: =Global!AF11 -> 1 | AG13: =Global!AG11 -> 1 | AH13: =Global!AH11 -> 1 | AI13: =Global!AI11 -> 1 | AJ13: =Global!AJ11 -> 1 | AK13: =Global!AK11 -> 1 | AL13: =Global!AL11 -> 0 | AM13: =Global!AM11 -> 0 | AN13: =Global!AN11 -> 0 | AO13: =Global!AO11 -> 0
D14: PRODUCTION
D16: COMMENT | F16: See comments below. Production volumes to model have been hardcoded to align to actual volumes. Detail of loss assumptions & specification offsets, which is confidential to Fonterra, is required to
F17: flow milk supply through yield logic. Logic has however been retained in the model, and we have disclosed overall valued component usages by RCP (in cells O59:P63). These incorporate the
F18: valued component usages of the unstandardised products manufactured in October and November.
D20: DATA INPUT
F21: Milk Collected | J21: ='Data Input'!J32 -> 000 kgMS | N21: ='Data Input'!N32 -> 1522724.789 | T21: ='Data Input'!T32 -> 13301.0742 | U21: ='Data Input'!U32 -> 17927.0376 | V21: ='Data Input'!V32 -> 96516.0417 | W21: ='Data Input'!W32 -> 179286.6967 | X21: ='Data Input'!X32 -> 220213.4447 | Y21: ='Data Input'!Y32 -> 201181.2384 | Z21: ='Data Input'!Z32 -> 185129.1487 | AA21: ='Data Input'!AA32 -> 169022.3025 | AB21: ='Data Input'!AB32 -> 133072.804 | AC21: ='Data Input'!AC32 -> 129551.4948 | AD21: ='Data Input'!AD32 -> 109104.8903 | AE21: ='Data Input'!AE32 -> 68418.615
F22: Milk Supply - Phasing | J22: ='Data Input'!J33 -> % | N22: =SUM(T22:AE22) -> 1 | T22: ='Data Input'!T33 -> 0.008735048053 | U22: ='Data Input'!U33 -> 0.01177299912 | V22: ='Data Input'!V33 -> 0.06338377258 | W22: ='Data Input'!W33 -> 0.1177407093 | X22: ='Data Input'!X33 -> 0.1446180205 | Y22: ='Data Input'!Y33 -> 0.1321192378 | Z22: ='Data Input'!Z33 -> 0.1215775497 | AA22: ='Data Input'!AA33 -> 0.1109999021 | AB22: ='Data Input'!AB33 -> 0.08739123773 | AC22: ='Data Input'!AC33 -> 0.08507873239 | AD22: ='Data Input'!AD33 -> 0.07165108962 | AE22: ='Data Input'!AE33 -> 0.04493170106
F24: ='Data Input'!F40 -> National average composition
F25: ='Data Input'!F41 -> Fat | J25: ='Data Input'!J41 -> % w/w | T25: ='Data Input'!T41 -> 0.04707505909 | U25: ='Data Input'!U41 -> 0.04707505909 | V25: ='Data Input'!V41 -> 0.04707505909 | W25: ='Data Input'!W41 -> 0.04580665873 | X25: ='Data Input'!X41 -> 0.04580665873 | Y25: ='Data Input'!Y41 -> 0.04580665873 | Z25: ='Data Input'!Z41 -> 0.04789838905 | AA25: ='Data Input'!AA41 -> 0.04789838905 | AB25: ='Data Input'!AB41 -> 0.04789838905 | AC25: ='Data Input'!AC41 -> 0.05559562273 | AD25: ='Data Input'!AD41 -> 0.05559562273 | AE25: ='Data Input'!AE41 -> 0.05559562273
F26: ='Data Input'!F42 -> Protein | J26: ='Data Input'!J42 -> % w/w | T26: ='Data Input'!T42 -> 0.03782621291 | U26: ='Data Input'!U42 -> 0.03782621291 | V26: ='Data Input'!V42 -> 0.03782621291 | W26: ='Data Input'!W42 -> 0.03649645156 | X26: ='Data Input'!X42 -> 0.03649645156 | Y26: ='Data Input'!Y42 -> 0.03649645156 | Z26: ='Data Input'!Z42 -> 0.03715173384 | AA26: ='Data Input'!AA42 -> 0.03715173384 | AB26: ='Data Input'!AB42 -> 0.03715173384 | AC26: ='Data Input'!AC42 -> 0.04224001083 | AD26: ='Data Input'!AD42 -> 0.04224001083 | AE26: ='Data Input'!AE42 -> 0.04224001083
F27: ='Data Input'!F43 -> Lactose + Minerals | J27: ='Data Input'!J43 -> % w/w | T27: ='Data Input'!T43 -> 0.05423744425 | U27: ='Data Input'!U43 -> 0.05423744425 | V27: ='Data Input'!V43 -> 0.05423744425 | W27: ='Data Input'!W43 -> 0.05472121862 | X27: ='Data Input'!X43 -> 0.05472121862 | Y27: ='Data Input'!Y43 -> 0.05472121862 | Z27: ='Data Input'!Z43 -> 0.05339898687 | AA27: ='Data Input'!AA43 -> 0.05339898687 | AB27: ='Data Input'!AB43 -> 0.05339898687 | AC27: ='Data Input'!AC43 -> 0.05229723616 | AD27: ='Data Input'!AD43 -> 0.05229723616 | AE27: ='Data Input'!AE43 -> 0.05229723616
F29: ='Data Input'!F70 -> Product mix
F30: ='Data Input'!F71 -> Annual average ratio of WMP MT to WMP + SMP | J30: ='Data Input'!J71 -> % | T30: ='Data Input'!T71 -> 0.7551377943 | U30: ='Data Input'!U71 -> 0.7551377943 | V30: ='Data Input'!V71 -> 0.7551377943 | W30: ='Data Input'!W71 -> 0.7551377943 | X30: ='Data Input'!X71 -> 0.7551377943 | Y30: ='Data Input'!Y71 -> 0.7551377943 | Z30: ='Data Input'!Z71 -> 0.7551377943 | AA30: ='Data Input'!AA71 -> 0.7551377943 | AB30: ='Data Input'!AB71 -> 0.7551377943 | AC30: ='Data Input'!AC71 -> 0.7551377943 | AD30: ='Data Input'!AD71 -> 0.7551377943 | AE30: ='Data Input'!AE71 -> 0.7551377943
F31: ='Data Input'!F72 -> Annual average ratio of Butter MT to Butter + AMF | J31: ='Data Input'!J72 -> % | T31: ='Data Input'!T72 -> 0.6018813435 | U31: ='Data Input'!U72 -> 0.6018813435 | V31: ='Data Input'!V72 -> 0.6018813435 | W31: ='Data Input'!W72 -> 0.6018813435 | X31: ='Data Input'!X72 -> 0.6018813435 | Y31: ='Data Input'!Y72 -> 0.6018813435 | Z31: ='Data Input'!Z72 -> 0.6018813435 | AA31: ='Data Input'!AA72 -> 0.6018813435 | AB31: ='Data Input'!AB72 -> 0.6018813435 | AC31: ='Data Input'!AC72 -> 0.6018813435 | AD31: ='Data Input'!AD72 -> 0.6018813435 | AE31: ='Data Input'!AE72 -> 0.6018813435
F33: ='Data Input'!F45 -> Milk Composition Input Parameters
F34: ='Data Input'!F46 -> Cream Fat Content | J34: ='Data Input'!J46 -> % | N34: ='Data Input'!N46 -> 0.42
F35: ='Data Input'!F47 -> Skimmilk Fat Content | J35: ='Data Input'!J47 -> % | N35: ='Data Input'!N47 -> 0.0008
F36: ='Data Input'!F48 -> Wholemilk Density | J36: ='Data Input'!J48 -> % | N36: ='Data Input'!N48 -> 1.032
F38: ='Data Input'!F50 -> Lactose Standardising Inputs
F39: ='Data Input'!F51 -> Lactose losses - WMP | J39: ='Data Input'!J51 -> % | N39: ='Data Input'!N51 -> 0
F40: ='Data Input'!F52 -> Lactose losses - SMP | J40: ='Data Input'!J52 -> % | N40: ='Data Input'!N52 -> 0
F41: ='Data Input'!F53 -> Lactose losses - BMP | J41: ='Data Input'!J53 -> % | N41: ='Data Input'!N53 -> 0
F42: ='Data Input'!F54 -> Lactose content of lactose powder | J42: ='Data Input'!J54 -> % | N42: ='Data Input'!N54 -> 0.95
F44: ='Data Input'!F56 -> Composition Target | L44: ='Data Input'!L56 -> Fat | M44: ='Data Input'!M56 -> Protein | N44: ='Data Input'!N56 -> Moisture
F45: ='Data Input'!F57 -> Butter | J45: ='Data Input'!J57 -> %w/w | L45: ='Data Input'!L57 -> 0 | M45: ='Data Input'!M57 -> 0 | N45: ='Data Input'!N57 -> 0
F46: ='Data Input'!F58 -> AMF | J46: ='Data Input'!J58 -> %w/w | L46: ='Data Input'!L58 -> 0 | M46: ='Data Input'!M58 -> 0 | N46: ='Data Input'!N58 -> 0
F47: ='Data Input'!F59 -> SMP | J47: ='Data Input'!J59 -> %w/w | L47: ='Data Input'!L59 -> 0 | M47: ='Data Input'!M59 -> 0 | N47: ='Data Input'!N59 -> 0
F48: ='Data Input'!F60 -> BMP | J48: ='Data Input'!J60 -> %w/w | L48: ='Data Input'!L60 -> 0 | M48: ='Data Input'!M60 -> 0 | N48: ='Data Input'!N60 -> 0
F49: ='Data Input'!F61 -> WMP | J49: ='Data Input'!J61 -> %w/w | L49: ='Data Input'!L61 -> 0 | M49: ='Data Input'!M61 -> 0 | N49: ='Data Input'!N61 -> 0
F51: ='Data Input'!F63 -> Value Component Usage | L51: ='Data Input'!L63 -> Fat | M51: ='Data Input'!M63 -> Protein
F52: ='Data Input'!F64 -> Butter | J52: ='Data Input'!J64 -> kg/mt | L52: ='Data Input'!L64 -> 0 | M52: ='Data Input'!M64 -> 0
F53: ='Data Input'!F65 -> AMF | J53: ='Data Input'!J65 -> kg/mt | L53: ='Data Input'!L65 -> 0 | M53: ='Data Input'!M65 -> 0
F54: ='Data Input'!F66 -> SMP | J54: ='Data Input'!J66 -> kg/mt | L54: ='Data Input'!L66 -> 0 | M54: ='Data Input'!M66 -> 0
F55: ='Data Input'!F67 -> BMP | J55: ='Data Input'!J67 -> kg/mt | L55: ='Data Input'!L67 -> 0 | M55: ='Data Input'!M67 -> 0
F56: ='Data Input'!F68 -> WMP | J56: ='Data Input'!J68 -> kg/mt | L56: ='Data Input'!L68 -> 0 | M56: ='Data Input'!M68 -> 0
O57: Hardcoded for use in inventory calculations
D58: CALCULATIONS | F58: Valued Component Usage | L58: Fat | M58: Protein | O58: Fat | P58: Protein
D59: Logic retained, but key input cells not populated. | F59: Butter | J59: % | L59: =OFFSET($L$51,MATCH($F59,$F$52:$F$56,0),)/1000 -> 0 | M59: =OFFSET($M$51,MATCH($F59,$F$52:$F$56,0),)/1000 -> 0 | O59: 0.83158 | P59: 0.00535
F60: AMF | J60: % | L60: =OFFSET($L$51,MATCH($F60,$F$52:$F$56,0),)/1000 -> 0 | M60: =OFFSET($M$51,MATCH($F60,$F$52:$F$56,0),)/1000 -> 0 | O60: 1.00196 | P60: 0.0008
F61: SMP | J61: % | L61: =OFFSET($L$51,MATCH($F61,$F$52:$F$56,0),)/1000 -> 0 | M61: =OFFSET($M$51,MATCH($F61,$F$52:$F$56,0),)/1000 -> 0 | O61: 0.008713179801 | P61: 0.3284600756
F62: BMP | J62: % | L62: =OFFSET($L$51,MATCH($F62,$F$52:$F$56,0),)/1000 -> 0 | M62: =OFFSET($M$51,MATCH($F62,$F$52:$F$56,0),)/1000 -> 0 | O62: 0.08049 | P62: 0.30385
F63: WMP | J63: % | L63: =OFFSET($L$51,MATCH($F63,$F$52:$F$56,0),)/1000 -> 0 | M63: =OFFSET($M$51,MATCH($F63,$F$52:$F$56,0),)/1000 -> 0 | O63: 0.2622200667 | P63: 0.2424229138
F65: Lactose Requirements per MT
F66: SMP | J66: % | N66: =SUMPRODUCT(T66:AE66,T203:AE203)/N203 -> 1.052631579 | T66: =T$90/1000 -> 1.052631579 | U66: =U$90/1000 -> 1.052631579 | V66: 1.052631579 | W66: 1.052631579 | X66: 1.052631579 | Y66: 1.052631579 | Z66: 1.052631579 | AA66: 1.052631579 | AB66: 1.052631579 | AC66: 1.052631579 | AD66: 1.052631579 | AE66: 1.052631579
F67: BMP | J67: % | N67: =SUMPRODUCT(T67:AE67,T204:AE204)/N204 -> 1.052631579 | T67: =T$92/1000 -> 1.052631579 | U67: =U$92/1000 -> 1.052631579 | V67: 1.052631579 | W67: 1.052631579 | X67: 1.052631579 | Y67: 1.052631579 | Z67: 1.052631579 | AA67: 1.052631579 | AB67: 1.052631579 | AC67: 1.052631579 | AD67: 1.052631579 | AE67: 1.052631579
F68: WMP | J68: % | N68: =SUMPRODUCT(T68:AE68,T205:AE205)/N205 -> 1.052631579 | T68: =T$108/1000 -> 1.052631579 | U68: =U$108/1000 -> 1.052631579 | V68: 1.052631579 | W68: 1.052631579 | X68: 1.052631579 | Y68: 1.052631579 | Z68: 1.052631579 | AA68: 1.052631579 | AB68: 1.052631579 | AC68: 1.052631579 | AD68: 1.052631579 | AE68: 1.052631579
F70: Wholemilk Composition Parameters
F71: Fat | J71: kg Fat / m3 wholemilk | T71: =$N$36*T25*1000 -> 48.58146098 | U71: 48.58146098 | V71: 48.58146098 | W71: 47.27247181 | X71: 47.27247181 | Y71: 47.27247181 | Z71: 49.4311375 | AA71: 49.4311375 | AB71: 49.4311375 | AC71: 57.37468266 | AD71: 57.37468266 | AE71: 57.37468266
F72: Protein | J72: kg Protein / m3 wholemilk | T72: =$N$36*T26*1000 -> 39.03665173 | U72: 39.03665173 | V72: 39.03665173 | W72: 37.66433801 | X72: 37.66433801 | Y72: 37.66433801 | Z72: 38.34058932 | AA72: 38.34058932 | AB72: 38.34058932 | AC72: 43.59169118 | AD72: 43.59169118 | AE72: 43.59169118
F73: Raw Milk Protein : SNF Ratio | J73: % | T73: =T26/SUM(T26:T27) -> 0.4108701966 | U73: 0.4108701966 | V73: 0.4108701966 | W73: 0.4001028692 | X73: 0.4001028692 | Y73: 0.4001028692 | Z73: 0.410286451 | AA73: 0.410286451 | AB73: 0.410286451 | AC73: 0.446808133 | AD73: 0.446808133 | AE73: 0.446808133
F74: Cream Protein | J74: % | T74: =(1-$N$34)/(1-T25)*T26 -> 0.0230230132 | U74: 0.0230230132 | V74: 0.0230230132 | W74: 0.02218412243 | X74: 0.02218412243 | Y74: 0.02218412243 | Z74: 0.02263204408 | AA74: 0.02263204408 | AB74: 0.02263204408 | AC74: 0.02594143661 | AD74: 0.02594143661 | AE74: 0.02594143661
F76: SMP
F77: Excess Cream
F78: kg cream | J78: kg /m3 wholemilk | T78: =IFERROR((T$72*$L$54-T$71*$M$54)/(T$74*$L$54-$N$34*$M$54),0) -> 0 | U78: =IFERROR((U$72*$L$54-U$71*$M$54)/(U$74*$L$54-$N$34*$M$54),0) -> 0 | V78: 0 | W78: 0 | X78: 0 | Y78: 0 | Z78: 0 | AA78: 0 | AB78: 0 | AC78: 0 | AD78: 0 | AE78: 0
F79: Fat | J79: kg /m3 wholemilk | T79: =T78*$N$34 -> 0 | U79: =U78*$N$34 -> 0 | V79: 0 | W79: 0 | X79: 0 | Y79: 0 | Z79: 0 | AA79: 0 | AB79: 0 | AC79: 0 | AD79: 0 | AE79: 0
F80: Protein | J80: kg /m3 wholemilk | T80: =T78*T74 -> 0 | U80: 0 | V80: 0 | W80: 0 | X80: 0 | Y80: 0 | Z80: 0 | AA80: 0 | AB80: 0 | AC80: 0 | AD80: 0 | AE80: 0
F82: SMP | J82: kg /m3 wholemilk | T82: =IFERROR((T71-T78*$N$34)/$L$54*1000,0) -> 0 | U82: =IFERROR((U71-U78*$N$34)/$L$54*1000,0) -> 0 | V82: 0 | W82: 0 | X82: 0 | Y82: 0 | Z82: 0 | AA82: 0 | AB82: 0 | AC82: 0 | AD82: 0 | AE82: 0
F83: Butter | J83: kg /m3 wholemilk | T83: =IFERROR((T79*$M$55-T80*$L$55)*1000/($L$52*$M$55-$M$52*$L$55),0) -> 0 | U83: =IFERROR((U79*$M$55-U80*$L$55)*1000/($L$52*$M$55-$M$52*$L$55),0) -> 0 | V83: 0 | W83: 0 | X83: 0 | Y83: 0 | Z83: 0 | AA83: 0 | AB83: 0 | AC83: 0 | AD83: 0 | AE83: 0
F84: BMP | J84: kg /m3 wholemilk | T84: =IFERROR((T80-T83*$M$52/1000)/($M$55/1000),0) -> 0 | U84: =IFERROR((U80-U83*$M$52/1000)/($M$55/1000),0) -> 0 | V84: 0 | W84: 0 | X84: 0 | Y84: 0 | Z84: 0 | AA84: 0 | AB84: 0 | AC84: 0 | AD84: 0 | AE84: 0
F85: AMF | J85: kg /m3 wholemilk | T85: =IFERROR((T79*$M$55-T80*$L$55)*1000/($L$53*$M$55-$M$53*$L$55),0) -> 0 | U85: =IFERROR((U79*$M$55-U80*$L$55)*1000/($L$53*$M$55-$M$53*$L$55),0) -> 0 | V85: 0 | W85: 0 | X85: 0 | Y85: 0 | Z85: 0 | AA85: 0 | AB85: 0 | AC85: 0 | AD85: 0 | AE85: 0
F86: BMP | J86: kg /m3 wholemilk | T86: =IFERROR((T80-T85*$M$53/1000)/($M$55/1000),0) -> 0 | U86: =IFERROR((U80-U85*$M$53/1000)/($M$55/1000),0) -> 0 | V86: 0 | W86: 0 | X86: 0 | Y86: 0 | Z86: 0 | AA86: 0 | AB86: 0 | AC86: 0 | AD86: 0 | AE86: 0
F88: Lactose Standardising
F89: Primary product (excl Losses) | J89: kg/mt | T89: =(1-$L$47-$N$47-$M$47/T73)*1000 -> 1000 | U89: =(1-$L$47-$N$47-$M$47/U73)*1000 -> 1000 | V89: 1000 | W89: 1000 | X89: 1000 | Y89: 1000 | Z89: 1000 | AA89: 1000 | AB89: 1000 | AC89: 1000 | AD89: 1000 | AE89: 1000
F90: Primary product (incl Losses) | J90: kg/mt | T90: =T89/(1-$N$40)/$N$42 -> 1052.631579 | U90: =U89/(1-$N$40)/$N$42 -> 1052.631579 | V90: 1052.631579 | W90: 1052.631579 | X90: 1052.631579 | Y90: 1052.631579 | Z90: 1052.631579 | AA90: 1052.631579 | AB90: 1052.631579 | AC90: 1052.631579 | AD90: 1052.631579 | AE90: 1052.631579
F91: BMP (excl Losses) | J91: kg/mt | T91: =(1-$L$48-$N$48-$M$48/T73)*1000 -> 1000 | U91: 1000 | V91: 1000 | W91: 1000 | X91: 1000 | Y91: 1000 | Z91: 1000 | AA91: 1000 | AB91: 1000 | AC91: 1000 | AD91: 1000 | AE91: 1000
F92: BMP (incl Losses and Moisture) | J92: kg/mt | T92: =T91/(1-$N$41)/$N$42 -> 1052.631579 | U92: =U91/(1-$N$41)/$N$42 -> 1052.631579 | V92: 1052.631579 | W92: 1052.631579 | X92: 1052.631579 | Y92: 1052.631579 | Z92: 1052.631579 | AA92: 1052.631579 | AB92: 1052.631579 | AC92: 1052.631579 | AD92: 1052.631579 | AE92: 1052.631579
F94: WMP
F95: Excess Cream
F96: kg cream | J96: kg /m3 wholemilk | T96: =IFERROR((T$72*$L$56-T$71*$M$56)/(T$74*$L$56-$N$34*$M$56),0) -> 0 | U96: =IFERROR((U$72*$L$56-U$71*$M$56)/(U$74*$L$56-$N$34*$M$56),0) -> 0 | V96: 0 | W96: 0 | X96: 0 | Y96: 0 | Z96: 0 | AA96: 0 | AB96: 0 | AC96: 0 | AD96: 0 | AE96: 0
F97: Fat | J97: kg /m3 wholemilk | T97: =T96*$N$34 -> 0 | U97: =U96*$N$34 -> 0 | V97: 0 | W97: 0 | X97: 0 | Y97: 0 | Z97: 0 | AA97: 0 | AB97: 0 | AC97: 0 | AD97: 0 | AE97: 0
F98: Protein | J98: kg /m3 wholemilk | T98: =T96*T74 -> 0 | U98: 0 | V98: 0 | W98: 0 | X98: 0 | Y98: 0 | Z98: 0 | AA98: 0 | AB98: 0 | AC98: 0 | AD98: 0 | AE98: 0
F100: WMP | J100: kg /m3 wholemilk | T100: =IFERROR((T71-T96*$N$34)/$L$56*1000,0) -> 0 | U100: =IFERROR((U71-U96*$N$34)/$L$56*1000,0) -> 0 | V100: 0 | W100: 0 | X100: 0 | Y100: 0 | Z100: 0 | AA100: 0 | AB100: 0 | AC100: 0 | AD100: 0 | AE100: 0
F101: Butter | J101: kg /m3 wholemilk | T101: =IFERROR((T97*$M$55-T98*$L$55)*1000/($L$52*$M$55-$M$52*$L$55),0) -> 0 | U101: =IFERROR((U97*$M$55-U98*$L$55)*1000/($L$52*$M$55-$M$52*$L$55),0) -> 0 | V101: 0 | W101: 0 | X101: 0 | Y101: 0 | Z101: 0 | AA101: 0 | AB101: 0 | AC101: 0 | AD101: 0 | AE101: 0
F102: BMP | J102: kg /m3 wholemilk | T102: =IFERROR((T98-T101*$M$52/1000)/($M$55/1000),0) -> 0 | U102: =IFERROR((U98-U101*$M$52/1000)/($M$55/1000),0) -> 0 | V102: 0 | W102: 0 | X102: 0 | Y102: 0 | Z102: 0 | AA102: 0 | AB102: 0 | AC102: 0 | AD102: 0 | AE102: 0
F103: AMF | J103: kg /m3 wholemilk | T103: =IFERROR((T97*$M$55-T98*$L$55)*1000/($L$53*$M$55-$M$53*$L$55),0) -> 0 | U103: =IFERROR((U97*$M$55-U98*$L$55)*1000/($L$53*$M$55-$M$53*$L$55),0) -> 0 | V103: 0 | W103: 0 | X103: 0 | Y103: 0 | Z103: 0 | AA103: 0 | AB103: 0 | AC103: 0 | AD103: 0 | AE103: 0
F104: BMP | J104: kg /m3 wholemilk | T104: =IFERROR((T98-T103*$M$53/1000)/($M$55/1000),0) -> 0 | U104: =IFERROR((U98-U103*$M$53/1000)/($M$55/1000),0) -> 0 | V104: 0 | W104: 0 | X104: 0 | Y104: 0 | Z104: 0 | AA104: 0 | AB104: 0 | AC104: 0 | AD104: 0 | AE104: 0
F106: Lactose Standardising
F107: Primary product (excl Losses) | J107: kg/mt | T107: =(1-$L$49-$N$49-$M$49/T73)*1000 -> 1000 | U107: =(1-$L$49-$N$49-$M$49/U73)*1000 -> 1000 | V107: 1000 | W107: 1000 | X107: 1000 | Y107: 1000 | Z107: 1000 | AA107: 1000 | AB107: 1000 | AC107: 1000 | AD107: 1000 | AE107: 1000
F108: Primary product (incl Losses) | J108: kg/mt | T108: =T107/(1-$N$39)/$N$42 -> 1052.631579 | U108: =U107/(1-$N$39)/$N$42 -> 1052.631579 | V108: 1052.631579 | W108: 1052.631579 | X108: 1052.631579 | Y108: 1052.631579 | Z108: 1052.631579 | AA108: 1052.631579 | AB108: 1052.631579 | AC108: 1052.631579 | AD108: 1052.631579 | AE108: 1052.631579
F109: BMP (excl Losses) | J109: kg/mt | T109: =(1-$L$48-$N$48-$M$48/T73)*1000 -> 1000 | U109: 1000 | V109: 1000 | W109: 1000 | X109: 1000 | Y109: 1000 | Z109: 1000 | AA109: 1000 | AB109: 1000 | AC109: 1000 | AD109: 1000 | AE109: 1000
F110: BMP (incl Losses and Moisture) | J110: kg/mt | T110: =T109/(1-$N$41)/$N$42 -> 1052.631579 | U110: 1052.631579 | V110: 1052.631579 | W110: 1052.631579 | X110: 1052.631579 | Y110: 1052.631579 | Z110: 1052.631579 | AA110: 1052.631579 | AB110: 1052.631579 | AC110: 1052.631579 | AD110: 1052.631579 | AE110: 1052.631579
F112: Monthly National Average Yields
F113: SMP | J113: % | N113: =SUMPRODUCT(T113:AE113,$T$21:$AE$21)/$N$21 -> 0 | T113: =T82/SUM(T$71:T$72) -> 0 | U113: =U82/SUM(U$71:U$72) -> 0 | V113: 0 | W113: 0 | X113: 0 | Y113: 0 | Z113: 0 | AA113: 0 | AB113: 0 | AC113: 0 | AD113: 0 | AE113: 0
F114: SMP Butter | J114: % | N114: =SUMPRODUCT(T114:AE114,$T$21:$AE$21)/$N$21 -> 0 | T114: =T83/SUM(T$71:T$72) -> 0 | U114: 0 | V114: 0 | W114: 0 | X114: 0 | Y114: 0 | Z114: 0 | AA114: 0 | AB114: 0 | AC114: 0 | AD114: 0 | AE114: 0
F115: SMP Butter BMP | J115: % | N115: 0 | T115: =T84/SUM(T$71:T$72) -> 0 | U115: 0 | V115: 0 | W115: 0 | X115: 0 | Y115: 0 | Z115: 0 | AA115: 0 | AB115: 0 | AC115: 0 | AD115: 0 | AE115: 0
F116: SMP AMF | J116: % | N116: 0 | T116: =T85/SUM(T$71:T$72) -> 0 | U116: 0 | V116: 0 | W116: 0 | X116: 0 | Y116: 0 | Z116: 0 | AA116: 0 | AB116: 0 | AC116: 0 | AD116: 0 | AE116: 0
F117: SMP AMF BMP | J117: % | N117: 0 | T117: =T86/SUM(T$71:T$72) -> 0 | U117: 0 | V117: 0 | W117: 0 | X117: 0 | Y117: 0 | Z117: 0 | AA117: 0 | AB117: 0 | AC117: 0 | AD117: 0 | AE117: 0
F119: WMP | J119: % | N119: 0 | T119: =T100/SUM(T$71:T$72) -> 0 | U119: 0 | V119: 0 | W119: 0 | X119: 0 | Y119: 0 | Z119: 0 | AA119: 0 | AB119: 0 | AC119: 0 | AD119: 0 | AE119: 0
F120: WMP Butter | J120: % | N120: 0 | T120: =T101/SUM(T$71:T$72) -> 0 | U120: 0 | V120: 0 | W120: 0 | X120: 0 | Y120: 0 | Z120: 0 | AA120: 0 | AB120: 0 | AC120: 0 | AD120: 0 | AE120: 0
F121: WMP Butter BMP | J121: % | N121: 0 | T121: =T102/SUM(T$71:T$72) -> 0 | U121: 0 | V121: 0 | W121: 0 | X121: 0 | Y121: 0 | Z121: 0 | AA121: 0 | AB121: 0 | AC121: 0 | AD121: 0 | AE121: 0
F122: WMP AMF | J122: % | N122: 0 | T122: =T103/SUM(T$71:T$72) -> 0 | U122: 0 | V122: 0 | W122: 0 | X122: 0 | Y122: 0 | Z122: 0 | AA122: 0 | AB122: 0 | AC122: 0 | AD122: 0 | AE122: 0
F123: WMP AMF BMP | J123: % | N123: 0 | T123: =T104/SUM(T$71:T$72) -> 0 | U123: 0 | V123: 0 | W123: 0 | X123: 0 | Y123: 0 | Z123: 0 | AA123: 0 | AB123: 0 | AC123: 0 | AD123: 0 | AE123: 0
F125: Calculated Mix to Model
F126: % of milksolids allocated to WMP | J126: % | N126: =SUMPRODUCT(T126:AE126,'Data Input'!$T$33:$AE$33) -> 0 | T126: =IFERROR(T30/(T30+(1-T30)*(T119/T113)),0) -> 0 | U126: 0 | V126: 0 | W126: 0 | X126: 0 | Y126: 0 | Z126: 0 | AA126: 0 | AB126: 0 | AC126: 0 | AD126: 0 | AE126: 0
F127: % of milkfat allocated to Butter - SMP | J127: % | N127: =SUMPRODUCT(T127:AE127,'Data Input'!$T$33:$AE$33) -> 0 | T127: =IFERROR(T31/(T31+(1-T31)*(T114/T116)),0) -> 0 | U127: 0 | V127: 0 | W127: 0 | X127: 0 | Y127: 0 | Z127: 0 | AA127: 0 | AB127: 0 | AC127: 0 | AD127: 0 | AE127: 0
F128: % of milkfat allocated to Butter - WMP | J128: % | N128: =SUMPRODUCT(T128:AE128,'Data Input'!$T$33:$AE$33) -> 0 | T128: =IFERROR(T31/(T31+(1-T31)*(T120/T122)),0) -> 0 | U128: 0 | V128: 0 | W128: 0 | X128: 0 | Y128: 0 | Z128: 0 | AA128: 0 | AB128: 0 | AC128: 0 | AD128: 0 | AE128: 0
F130: Product Weights
F131: SMP | J131: % | N131: =1-N126 -> 1 | T131: =1-T126 -> 1 | U131: 1 | V131: 1 | W131: 1 | X131: 1 | Y131: 1 | Z131: 1 | AA131: 1 | AB131: 1 | AC131: 1 | AD131: 1 | AE131: 1
F132: SMP Butter | J132: % | N132: =N131*N127 -> 0 | T132: =T131*T127 -> 0 | U132: 0 | V132: 0 | W132: 0 | X132: 0 | Y132: 0 | Z132: 0 | AA132: 0 | AB132: 0 | AC132: 0 | AD132: 0 | AE132: 0
F133: SMP Butter BMP | J133: % | N133: =N132 -> 0 | T133: =T132 -> 0 | U133: =U132 -> 0 | V133: 0 | W133: 0 | X133: 0 | Y133: 0 | Z133: 0 | AA133: 0 | AB133: 0 | AC133: 0 | AD133: 0 | AE133: 0
F134: SMP AMF | J134: % | N134: =N131*(1-N127) -> 1 | T134: =T131*(1-T127) -> 1 | U134: 1 | V134: 1 | W134: 1 | X134: 1 | Y134: 1 | Z134: 1 | AA134: 1 | AB134: 1 | AC134: 1 | AD134: 1 | AE134: 1
F135: SMP AMF BMP | J135: % | N135: =N134 -> 1 | T135: =T134 -> 1 | U135: =U134 -> 1 | V135: 1 | W135: 1 | X135: 1 | Y135: 1 | Z135: 1 | AA135: 1 | AB135: 1 | AC135: 1 | AD135: 1 | AE135: 1
F137: WMP | J137: % | N137: =N126 -> 0 | T137: =T126 -> 0 | U137: 0 | V137: 0 | W137: 0 | X137: 0 | Y137: 0 | Z137: 0 | AA137: 0 | AB137: 0 | AC137: 0 | AD137: 0 | AE137: 0
F138: WMP Butter | J138: % | N138: =N137*N128 -> 0 | T138: =T137*T128 -> 0 | U138: 0 | V138: 0 | W138: 0 | X138: 0 | Y138: 0 | Z138: 0 | AA138: 0 | AB138: 0 | AC138: 0 | AD138: 0 | AE138: 0
F139: WMP Butter BMP | J139: % | N139: =N138 -> 0 | T139: =T138 -> 0 | U139: =U138 -> 0 | V139: 0 | W139: 0 | X139: 0 | Y139: 0 | Z139: 0 | AA139: 0 | AB139: 0 | AC139: 0 | AD139: 0 | AE139: 0
F140: WMP AMF | J140: % | N140: =N137*(1-N128) -> 0 | T140: =T137*(1-T128) -> 0 | U140: 0 | V140: 0 | W140: 0 | X140: 0 | Y140: 0 | Z140: 0 | AA140: 0 | AB140: 0 | AC140: 0 | AD140: 0 | AE140: 0
F141: WMP AMF BMP | J141: % | N141: =N140 -> 0 | T141: =T140 -> 0 | U141: =U140 -> 0 | V141: 0 | W141: 0 | X141: 0 | Y141: 0 | Z141: 0 | AA141: 0 | AB141: 0 | AC141: 0 | AD141: 0 | AE141: 0
F142: Calculated Yields
F143: Butter | N143: =SUMPRODUCT(T143:AE143,$T$21:$AE$21)/$N$21 -> 0 | T143: =T132*T114+T138*T120 -> 0 | U143: 0 | V143: 0 | W143: 0 | X143: 0 | Y143: 0 | Z143: 0 | AA143: 0 | AB143: 0 | AC143: 0 | AD143: 0 | AE143: 0
F144: AMF | N144: =SUMPRODUCT(T144:AE144,$T$21:$AE$21)/$N$21 -> 0 | T144: =T134*T116+T140*T122 -> 0 | U144: 0 | V144: 0 | W144: 0 | X144: 0 | Y144: 0 | Z144: 0 | AA144: 0 | AB144: 0 | AC144: 0 | AD144: 0 | AE144: 0
F145: SMP | N145: =SUMPRODUCT(T145:AE145,$T$21:$AE$21)/$N$21 -> 0 | T145: =T131*T113 -> 0 | U145: 0 | V145: 0 | W145: 0 | X145: 0 | Y145: 0 | Z145: 0 | AA145: 0 | AB145: 0 | AC145: 0 | AD145: 0 | AE145: 0
F146: BMP | N146: =SUMPRODUCT(T146:AE146,$T$21:$AE$21)/$N$21 -> 0 | T146: =T133*T115+T139*T121+T135*T117+T141*T123 -> 0 | U146: 0 | V146: 0 | W146: 0 | X146: 0 | Y146: 0 | Z146: 0 | AA146: 0 | AB146: 0 | AC146: 0 | AD146: 0 | AE146: 0
F147: WMP | N147: =SUMPRODUCT(T147:AE147,$T$21:$AE$21)/$N$21 -> 0 | T147: =T137*T119 -> 0 | U147: 0 | V147: 0 | W147: 0 | X147: 0 | Y147: 0 | Z147: 0 | AA147: 0 | AB147: 0 | AC147: 0 | AD147: 0 | AE147: 0
F148: Total | N148: =SUM(N143:N147) -> 0 | T148: =SUM(T143:T147) -> 0 | U148: 0 | V148: 0 | W148: 0 | X148: 0 | Y148: 0 | Z148: 0 | AA148: 0 | AB148: 0 | AC148: 0 | AD148: 0 | AE148: 0
D150: Actual yield calculations | F150: Product Mix to Model
F151: Butter | J151: MT | N151: =SUM(T151:AE151) -> 0 | T151: =T143*T$21 -> 0 | U151: =U143*U$21 -> 0 | V151: 0 | W151: 0 | X151: 0 | Y151: 0 | Z151: 0 | AA151: 0 | AB151: 0 | AC151: 0 | AD151: 0 | AE151: 0
F152: AMF | J152: MT | N152: =SUM(T152:AE152) -> 0 | T152: =T144*T$21 -> 0 | U152: 0 | V152: 0 | W152: 0 | X152: 0 | Y152: 0 | Z152: 0 | AA152: 0 | AB152: 0 | AC152: 0 | AD152: 0 | AE152: 0
F153: SMP | J153: MT | N153: =SUM(T153:AE153) -> 0 | T153: =T145*T$21 -> 0 | U153: =U145*U$21 -> 0 | V153: 0 | W153: 0 | X153: 0 | Y153: 0 | Z153: 0 | AA153: 0 | AB153: 0 | AC153: 0 | AD153: 0 | AE153: 0
F154: BMP | J154: MT | N154: =SUM(T154:AE154) -> 0 | T154: 0 | U154: 0 | V154: 0 | W154: =W146*W$21 -> 0 | X154: 0 | Y154: 0 | Z154: 0 | AA154: 0 | AB154: 0 | AC154: 0 | AD154: 0 | AE154: 0
F155: WMP | J155: MT | N155: =SUM(T155:AE155) -> 0 | T155: =T147*T$21 -> 0 | U155: 0 | V155: 0 | W155: 0 | X155: 0 | Y155: 0 | Z155: 0 | AA155: 0 | AB155: 0 | AC155: 0 | AD155: 0 | AE155: 0
F156: Total | J156: MT | N156: =SUM(N151:N155) -> 0 | T156: =SUM(T151:T155) -> 0 | U156: =SUM(U151:U155) -> 0 | V156: =SUM(V151:V155) -> 0 | W156: =SUM(W151:W155) -> 0 | X156: 0 | Y156: 0 | Z156: 0 | AA156: 0 | AB156: 0 | AC156: 0 | AD156: 0 | AE156: 0
F158: Fat Usage
F159: Butter | J159: 000 kgMS | N159: =SUM(T159:AE159) -> 0 | T159: =T151*$L59 -> 0 | U159: 0 | V159: 0 | W159: 0 | X159: 0 | Y159: 0 | Z159: 0 | AA159: 0 | AB159: 0 | AC159: 0 | AD159: 0 | AE159: 0
F160: AMF | J160: 000 kgMS | N160: =SUM(T160:AE160) -> 0 | T160: 0 | U160: 0 | V160: 0 | W160: 0 | X160: 0 | Y160: 0 | Z160: 0 | AA160: 0 | AB160: 0 | AC160: 0 | AD160: 0 | AE160: 0
F161: SMP | J161: 000 kgMS | N161: =SUM(T161:AE161) -> 0 | T161: 0 | U161: 0 | V161: 0 | W161: 0 | X161: 0 | Y161: 0 | Z161: 0 | AA161: 0 | AB161: 0 | AC161: 0 | AD161: 0 | AE161: 0
F162: BMP | J162: 000 kgMS | N162: =SUM(T162:AE162) -> 0 | T162: 0 | U162: 0 | V162: 0 | W162: 0 | X162: 0 | Y162: 0 | Z162: 0 | AA162: 0 | AB162: 0 | AC162: 0 | AD162: 0 | AE162: 0
F163: WMP | J163: 000 kgMS | N163: =SUM(T163:AE163) -> 0 | T163: 0 | U163: 0 | V163: 0 | W163: 0 | X163: 0 | Y163: 0 | Z163: 0 | AA163: 0 | AB163: 0 | AC163: 0 | AD163: 0 | AE163: 0
F164: Total | J164: 000 kgMS | N164: =SUM(N159:N163) -> 0 | T164: =SUM(T159:T163) -> 0 | U164: 0 | V164: 0 | W164: 0 | X164: 0 | Y164: 0 | Z164: 0 | AA164: 0 | AB164: 0 | AC164: 0 | AD164: 0 | AE164: 0
F166: Protein Usage
F167: Butter | J167: 000 kgMS | N167: =SUM(T167:AE167) -> 0 | T167: =T151*$M59 -> 0 | U167: 0 | V167: 0 | W167: 0 | X167: 0 | Y167: 0 | Z167: 0 | AA167: 0 | AB167: 0 | AC167: 0 | AD167: 0 | AE167: 0
F168: AMF | J168: 000 kgMS | N168: =SUM(T168:AE168) -> 0 | T168: 0 | U168: 0 | V168: 0 | W168: 0 | X168: 0 | Y168: 0 | Z168: 0 | AA168: 0 | AB168: 0 | AC168: 0 | AD168: 0 | AE168: 0
F169: SMP | J169: 000 kgMS | N169: =SUM(T169:AE169) -> 0 | T169: 0 | U169: 0 | V169: 0 | W169: 0 | X169: 0 | Y169: 0 | Z169: 0 | AA169: 0 | AB169: 0 | AC169: 0 | AD169: 0 | AE169: 0
F170: BMP | J170: 000 kgMS | N170: =SUM(T170:AE170) -> 0 | T170: 0 | U170: 0 | V170: 0 | W170: 0 | X170: 0 | Y170: 0 | Z170: 0 | AA170: 0 | AB170: 0 | AC170: 0 | AD170: 0 | AE170: 0
F171: WMP | J171: 000 kgMS | N171: =SUM(T171:AE171) -> 0 | T171: 0 | U171: 0 | V171: 0 | W171: 0 | X171: 0 | Y171: 0 | Z171: 0 | AA171: 0 | AB171: 0 | AC171: 0 | AD171: 0 | AE171: 0
F172: Total | J172: 000 kgMS | N172: =SUM(N167:N171) -> 0 | T172: =SUM(T167:T171) -> 0 | U172: 0 | V172: 0 | W172: 0 | X172: 0 | Y172: 0 | Z172: 0 | AA172: 0 | AB172: 0 | AC172: 0 | AD172: 0 | AE172: 0
F174: Milk Composition
F175: Fat | J175: MT | N175: =IF(ISERROR(N164/SUM(N164,N172)),"N/A",N164/SUM(N164,N172)) -> N/A | T175: =IF(ISERROR(T164/SUM(T164,T172)),"N/A",T164/SUM(T164,T172)) -> N/A | U175: =IF(ISERROR(U164/SUM(U164,U172)),"N/A",U164/SUM(U164,U172)) -> N/A | V175: N/A | W175: N/A | X175: N/A | Y175: N/A | Z175: N/A | AA175: N/A | AB175: N/A | AC175: N/A | AD175: N/A | AE175: N/A
F176: Protein | J176: MT | N176: =IF(ISERROR(N172/SUM(N164,N172)),"N/A",N172/SUM(N164,N172)) -> N/A | T176: =IF(ISERROR(T172/SUM(T164,T172)),"N/A",T172/SUM(T164,T172)) -> N/A | U176: =IF(ISERROR(U172/SUM(U164,U172)),"N/A",U172/SUM(U164,U172)) -> N/A | V176: N/A | W176: N/A | X176: N/A | Y176: N/A | Z176: N/A | AA176: N/A | AB176: N/A | AC176: N/A | AD176: N/A | AE176: N/A
F178: Required Lactose - Calculated
F179: SMP | J179: MT | N179: =SUM(T179:AE179) -> 0 | T179: =T66*T153 -> 0 | U179: 0 | V179: 0 | W179: 0 | X179: 0 | Y179: 0 | Z179: 0 | AA179: 0 | AB179: 0 | AC179: 0 | AD179: 0 | AE179: 0
F180: BMP | J180: MT | N180: =SUM(T180:AE180) -> 0 | T180: 0 | U180: 0 | V180: 0 | W180: 0 | X180: 0 | Y180: 0 | Z180: 0 | AA180: 0 | AB180: 0 | AC180: 0 | AD180: 0 | AE180: 0
F181: WMP | J181: MT | N181: =SUM(T181:AE181) -> 0 | T181: 0 | U181: 0 | V181: 0 | W181: 0 | X181: 0 | Y181: 0 | Z181: 0 | AA181: 0 | AB181: 0 | AC181: 0 | AD181: 0 | AE181: 0
F182: Total | J182: MT | N182: =SUM(T182:AE182) -> 0 | T182: =SUM(T179:T181) -> 0 | U182: =SUM(U179:U181) -> 0 | V182: 0 | W182: 0 | X182: 0 | Y182: 0 | Z182: 0 | AA182: 0 | AB182: 0 | AC182: 0 | AD182: 0 | AE182: 0
F184: Standardised Product Mix
D185: Hard coded outputs from actual yield calculations | F185: Butter | J185: MT | N185: =SUM(T185:AE185) -> 235260.9881 | T185: 29.25245076 | U185: 1217.393324 | V185: 9501.747121 | W185: 23040.87146 | X185: 29493.92049 | Y185: 32075.26455 | Z185: 27968.9421 | AA185: 33658.24544 | AB185: 29382.83207 | AC185: 23572.06053 | AD185: 13956.00586 | AE185: 11364.45267
F186: AMF | J186: MT | N186: =SUM(T186:AE186) -> 152599.4428 | T186: 1153.222585 | U186: 731.3726129 | V186: 8334.358926 | W186: 16914.06582 | X186: 20311.86036 | Y186: 18765.64795 | Z186: 15059.22462 | AA186: 15642.73063 | AB186: 12884.93262 | AC186: 17025.60494 | AD186: 12212.48345 | AE186: 13563.93824
F187: SMP | J187: MT | N187: =SUM(T187:AE187) -> 590032.7757 | T187: 2.390667315e-10 | U187: 1396.376471 | V187: 25001.03698 | W187: 62993.753 | X187: 80743.40649 | Y187: 77869.66144 | Z187: 63045.6749 | AA187: 76849.84998 | AB187: 62555.10359 | AC187: 60226.23369 | AD187: 34531.50328 | AE187: 44820.17593
F188: BMP | J188: MT | N188: =SUM(T188:AE188) -> 59973.99447 | T188: 219.5828226 | U188: 301.7272143 | V188: 2760.164166 | W188: 5908.331318 | X188: 7336.087267 | Y188: 7389.875255 | Z188: 6292.5925 | AA188: 7173.929247 | AB188: 6298.828225 | AC188: 6754.605569 | AD188: 4793.360905 | AE188: 4744.909982
F189: WMP | J189: MT | N189: =SUM(T189:AE189) -> 1844145.405 | T189: 23873.77693 | U189: 30921.67223 | V189: 140303.275 | W189: 237184.0474 | X189: 252092.5816 | Y189: 244087.6898 | Z189: 243953.5665 | AA189: 191513.5706 | AB189: 142996.6455 | AC189: 138629.3764 | AD189: 142254.6053 | AE189: 56334.59805
F190: Total | J190: MT | N190: =SUM(N185:N189) -> 2882012.606 | T190: =SUM(T185:T189) -> 25275.83479 | U190: =SUM(U185:U189) -> 34568.54185 | V190: 185900.5822 | W190: 346041.069 | X190: 389977.8562 | Y190: 380188.139 | Z190: 356320.0006 | AA190: 324838.3259 | AB190: 254118.342 | AC190: 246207.8811 | AD190: 207747.9588 | AE190: 130828.0749
F192: Unstandardised Product Mix
F193: Butter | J193: MT | N193: =SUM(T193:AE193) -> 3893.597616 | T193: 0 | U193: 0 | V193: 0 | W193: 0 | X193: 3221.164681 | Y193: 672.4329344 | Z193: 0 | AA193: 0 | AB193: 0 | AC193: 0 | AD193: 0 | AE193: 0
F194: AMF | J194: MT | N194: =SUM(T194:AE194) -> 2611.757485 | T194: 0 | U194: 0 | V194: 0 | W194: 0 | X194: 2218.350294 | Y194: 393.4071907 | Z194: 0 | AA194: 0 | AB194: 0 | AC194: 0 | AD194: 0 | AE194: 0
F195: SMP | J195: MT | N195: =SUM(T195:AE195) -> 7280.752166 | T195: 0 | U195: 0 | V195: 0 | W195: 0 | X195: 6136.848568 | Y195: 1143.903599 | Z195: 0 | AA195: 0 | AB195: 0 | AC195: 0 | AD195: 0 | AE195: 0
F196: BMP | J196: MT | N196: =SUM(T196:AE196) -> 956.1303052 | T196: 0 | U196: 0 | V196: 0 | W196: 0 | X196: 801.2073273 | Y196: 154.9229779 | Z196: 0 | AA196: 0 | AB196: 0 | AC196: 0 | AD196: 0 | AE196: 0
F197: WMP | J197: MT | N197: =SUM(T197:AE197) -> 22745.77068 | T197: 0 | U197: 0 | V197: 0 | W197: 0 | X197: 19160.12793 | Y197: 3585.642747 | Z197: 0 | AA197: 0 | AB197: 0 | AC197: 0 | AD197: 0 | AE197: 0
F198: Total | J198: MT | N198: =SUM(N193:N197) -> 37488.00825 | T198: =SUM(T193:T197) -> 0 | U198: =SUM(U193:U197) -> 0 | V198: 0 | W198: 0 | X198: 31537.6988 | Y198: 5950.309449 | Z198: 0 | AA198: 0 | AB198: 0 | AC198: 0 | AD198: 0 | AE198: 0
F200: Product Mix to Model
F201: Butter | J201: MT | N201: =SUM(T201:AE201) -> 239154.5857 | T201: =T185+T193 -> 29.25245076 | U201: =U185+U193 -> 1217.393324 | V201: 9501.747121 | W201: 23040.87146 | X201: 32715.08517 | Y201: 32747.69749 | Z201: 27968.9421 | AA201: 33658.24544 | AB201: 29382.83207 | AC201: 23572.06053 | AD201: 13956.00586 | AE201: 11364.45267
F202: AMF | J202: MT | N202: =SUM(T202:AE202) -> 155211.2002 | T202: =T186+T194 -> 1153.222585 | U202: 731.3726129 | V202: 8334.358926 | W202: 16914.06582 | X202: 22530.21065 | Y202: 19159.05514 | Z202: 15059.22462 | AA202: 15642.73063 | AB202: 12884.93262 | AC202: 17025.60494 | AD202: 12212.48345 | AE202: 13563.93824
F203: SMP | J203: MT | N203: =SUM(T203:AE203) -> 597313.5279 | T203: =T187+T195 -> 2.390667315e-10 | U203: 1396.376471 | V203: 25001.03698 | W203: 62993.753 | X203: 86880.25506 | Y203: 79013.56503 | Z203: 63045.6749 | AA203: 76849.84998 | AB203: 62555.10359 | AC203: 60226.23369 | AD203: 34531.50328 | AE203: 44820.17593
F204: BMP | J204: MT | N204: =SUM(T204:AE204) -> 60930.12478 | T204: =T188+T196 -> 219.5828226 | U204: 301.7272143 | V204: 2760.164166 | W204: 5908.331318 | X204: 8137.294595 | Y204: 7544.798233 | Z204: 6292.5925 | AA204: 7173.929247 | AB204: 6298.828225 | AC204: 6754.605569 | AD204: 4793.360905 | AE204: 4744.909982
F205: WMP | J205: MT | N205: =SUM(T205:AE205) -> 1866891.176 | T205: =T189+T197 -> 23873.77693 | U205: 30921.67223 | V205: 140303.275 | W205: 237184.0474 | X205: 271252.7095 | Y205: 247673.3326 | Z205: 243953.5665 | AA205: 191513.5706 | AB205: 142996.6455 | AC205: 138629.3764 | AD205: 142254.6053 | AE205: 56334.59805
F206: Total | J206: MT | N206: =SUM(N201:N205) -> 2919500.615 | T206: =SUM(T201:T205) -> 25275.83479 | U206: =SUM(U201:U205) -> 34568.54185 | V206: 185900.5822 | W206: 346041.069 | X206: 421515.555 | Y206: 386138.4485 | Z206: 356320.0006 | AA206: 324838.3259 | AB206: 254118.342 | AC206: 246207.8811 | AD206: 207747.9588 | AE206: 130828.0749
F208: Fat Usage
F209: Butter | J209: 000 kgMS | N209: =SUM(T209:AE209) -> 198876.1704 | T209: 24.325753 | U209: 1012.359941 | V209: 7901.46287 | W209: 19160.32789 | X209: 27205.21053 | Y209: 27232.33028 | Z209: 23258.41287 | AA209: 27989.52374 | AB209: 24434.1755 | AC209: 19602.0541 | AD209: 11605.53535 | AE209: 9450.451555
F210: AMF | J210: 000 kgMS | N210: =SUM(T210:AE210) -> 155515.4142 | T210: 1155.482902 | U210: 732.8061032 | V210: 8350.694269 | W210: 16947.21739 | X210: 22574.36986 | Y210: 19196.60689 | Z210: 15088.7407 | AA210: 15673.39039 | AB210: 12910.18709 | AC210: 17058.97512 | AD210: 12236.41991 | AE210: 13590.52356
F211: SMP | J211: 000 kgMS | N211: =SUM(T211:AE211) -> 5204.500166 | T211: 2.083031416e-12 | U211: 12.16687926 | V211: 217.8385304 | W211: 548.8758962 | X211: 757.0032835 | Y211: 688.4593988 | Z211: 549.3283011 | AA211: 669.6065605 | AB211: 545.0538651 | AC211: 524.7620029 | AD211: 300.8791969 | AE211: 390.5262515
F212: BMP | J212: 000 kgMS | N212: =SUM(T212:AE212) -> 4904.265743 | T212: 17.67422139 | U212: 24.28602348 | V212: 222.1656137 | W212: 475.5615878 | X212: 654.9708419 | Y212: 607.2808097 | Z212: 506.4907703 | AA212: 577.4295651 | AB212: 506.9926839 | AC212: 543.6782022 | AD212: 385.8176193 | AE212: 381.9178045
F213: WMP | J213: 000 kgMS | N213: =SUM(T213:AE213) -> 489536.3287 | T213: 6260.18338 | U213: 8108.282954 | V213: 36790.33412 | W213: 62194.41672 | X213: 71127.90358 | Y213: 64944.91778 | Z213: 63969.52048 | AA213: 50218.70125 | AB213: 37496.58991 | AC213: 36351.40433 | AD213: 37302.01209 | AE213: 14772.06206
F214: Total | J214: 000 kgMS | N214: =SUM(N209:N213) -> 854036.6791 | T214: =SUM(T209:T213) -> 7457.666256 | U214: =SUM(U209:U213) -> 9889.901901 | V214: =SUM(V209:V213) -> 53482.4954 | W214: =SUM(W209:W213) -> 99326.39948 | X214: =SUM(X209:X213) -> 122319.4581 | Y214: =SUM(Y209:Y213) -> 112669.5952 | Z214: =SUM(Z209:Z213) -> 103372.4931 | AA214: =SUM(AA209:AA213) -> 95128.65151 | AB214: =SUM(AB209:AB213) -> 75892.99905 | AC214: =SUM(AC209:AC213) -> 74080.87376 | AD214: =SUM(AD209:AD213) -> 61830.66417 | AE214: =SUM(AE209:AE213) -> 38585.48123
F216: Protein Usage
F217: Butter | J217: 000 kgMS | N217: =SUM(T217:AE217) -> 1279.477033 | T217: 0.1565006116 | U217: 6.513054284 | V217: 50.83434709 | W217: 123.2686623 | X217: 175.0257057 | Y217: 175.2001816 | Z217: 149.6338402 | AA217: 180.0716131 | AB217: 157.1981516 | AC217: 126.1105238 | AD217: 74.66463134 | AE217: 60.79982181
F218: AMF | J218: 000 kgMS | N218: =SUM(T218:AE218) -> 124.1689602 | T218: 0.9225780683 | U218: 0.5850980903 | V218: 6.66748714 | W218: 13.53125265 | X218: 18.02416852 | Y218: 15.32724412 | Z218: 12.0473797 | AA218: 12.51418451 | AB218: 10.3079461 | AC218: 13.62048395 | AD218: 9.769986758 | AE218: 10.85115059
F219: SMP | J219: 000 kgMS | N219: =SUM(T219:AE219) -> 196193.6465 | T219: 7.836111432e-11 | U219: 457.7032345 | V219: 8194.821188 | W219: 20648.04521 | X219: 28820.10171 | Y219: 25963.11587 | Z219: 20665.06413 | AA219: 25189.78631 | AB219: 20504.26504 | AC219: 19740.9098 | AD219: 11318.7103 | AE219: 14691.12372
F220: BMP | J220: 000 kgMS | N220: =SUM(T220:AE220) -> 18513.61841 | T220: 66.72024064 | U220: 91.67981407 | V220: 838.6758818 | W220: 1795.246471 | X220: 2472.516963 | Y220: 2292.486943 | Z220: 1912.004231 | AA220: 2179.798402 | AB220: 1913.898956 | AC220: 2052.386902 | AD220: 1456.462711 | AE220: 1441.740898
F221: WMP | J221: 000 kgMS | N221: =SUM(T221:AE221) -> 452577.1985 | T221: 5775.608625 | U221: 7480.654498 | V221: 33942.54739 | W221: 57380.20563 | X221: 66408.31806 | Y221: 60065.51301 | Z221: 59017.90599 | AA221: 46331.48048 | AB221: 34594.13486 | AC221: 33537.59333 | AD221: 34414.6185 | AE221: 13628.61818
F222: Total | J222: 000 kgMS | N222: =SUM(N217:N221) -> 668688.1095 | T222: =SUM(T217:T221) -> 5843.407944 | U222: =SUM(U217:U221) -> 8037.135699 | V222: =SUM(V217:V221) -> 43033.5463 | W222: =SUM(W217:W221) -> 79960.29722 | X222: =SUM(X217:X221) -> 97893.98661 | Y222: =SUM(Y217:Y221) -> 88511.64324 | Z222: =SUM(Z217:Z221) -> 81756.65557 | AA222: =SUM(AA217:AA221) -> 73893.65099 | AB222: =SUM(AB217:AB221) -> 57179.80495 | AC222: =SUM(AC217:AC221) -> 55470.62104 | AD222: =SUM(AD217:AD221) -> 47274.22613 | AE222: =SUM(AE217:AE221) -> 29833.13377
F224: Milk Composition
F225: Fat | J225: % | N225: =IF(ISERROR(N214/SUM(N214,N222)),"N/A",N214/SUM(N214,N222)) -> 0.5608608236 | T225: 0.5606815016 | U225: 0.5516751915 | V225: 0.5541306343 | W225: 0.5540087542 | X225: 0.5554586291 | Y225: 0.5600402704 | Z225: 0.5583804271 | AA225: 0.5628171555 | AB225: 0.5703118651 | AC225: 0.5718256966 | AD225: 0.5667084583 | AE225: 0.5639617409
F226: Protein | J226: % | N226: =IF(ISERROR(N222/SUM(N214,N222)),"N/A",N222/SUM(N214,N222)) -> 0.4391391764 | T226: 0.4393184984 | U226: 0.4483248085 | V226: 0.4458693657 | W226: 0.4459912458 | X226: 0.4445413709 | Y226: 0.4399597296 | Z226: 0.4416195729 | AA226: 0.4371828445 | AB226: 0.4296881349 | AC226: 0.4281743034 | AD226: 0.4332915417 | AE226: 0.4360382591
F228: Required Lactose - Calculated
F229: SMP | J229: MT | N229: =SUM(T229:AE229) -> 0
F230: BMP | J230: MT | N230: =SUM(T230:AE230) -> 0
F231: WMP | J231: MT | N231: =SUM(T231:AE231) -> 0
F232: Total | J232: MT | N232: =SUM(T232:AE232) -> 348226.7601 | T232: 3484.224153 | U232: 4505.10501 | V232: 21289.28862 | W232: 34979.06797 | X232: 40409.32502 | Y232: 39168.47715 | Z232: 40184.08367 | AA232: 37396.39075 | AB232: 31167.51395 | AC232: 36169.8461 | AD232: 35925.81672 | AE232: 23547.621
D234: COMPONENT MILK PRICE
D237: COMMENT | F237: The average cash milk price used for inventory valuation is the average cash amount paid for all supply, including milk supplied on standard terms, Winter Milk, and milk supplied under non-standard
F238: contracts, adjusted for demerit deductions for milk quality issues.
F241: Average cash milk price | J241: NZD | N241: =IF(ISERROR(N1272),2,N1272) -> 6.363195727 | T241: =$N241 -> 6.363195727 | U241: 6.363195727 | V241: 6.363195727 | W241: 6.363195727 | X241: 6.363195727 | Y241: 6.363195727 | Z241: 6.363195727 | AA241: 6.363195727 | AB241: 6.363195727 | AC241: 6.363195727 | AD241: 6.363195727 | AE241: 6.363195727 | AF241: 6.363195727 | AG241: 6.363195727 | AH241: 6.363195727 | AI241: 6.363195727 | AJ241: 6.363195727 | AK241: 6.363195727 | AL241: 6.363195727 | AM241: 6.363195727 | AN241: 6.363195727 | AO241: 6.363195727
F243: kgMS into production
F244: Total | J244: 000 kgMS | K244: ="Row "&ROW(K$21) -> Row 21 | N244: =SUM(T244:AE244) -> 1522724.789 | T244: =T21 -> 13301.0742 | U244: 17927.0376 | V244: 96516.0417 | W244: 179286.6967 | X244: 220213.4447 | Y244: 201181.2384 | Z244: 185129.1487 | AA244: 169022.3025 | AB244: 133072.804 | AC244: 129551.4948 | AD244: 109104.8903 | AE244: 68418.615
F245: Fat | J245: 000 kgMS | N245: =SUM(T245:AE245) -> 854036.6791 | T245: =T214 -> 7457.666256 | U245: =U214 -> 9889.901901 | V245: 53482.4954 | W245: 99326.39948 | X245: 122319.4581 | Y245: 112669.5952 | Z245: 103372.4931 | AA245: 95128.65151 | AB245: 75892.99905 | AC245: 74080.87376 | AD245: 61830.66417 | AE245: 38585.48123
F246: Protein | J246: 000 kgMS | N246: =SUM(T246:AE246) -> 668688.1095 | T246: =T222 -> 5843.407944 | U246: =U222 -> 8037.135699 | V246: 43033.5463 | W246: 79960.29722 | X246: 97893.98661 | Y246: 88511.64324 | Z246: 81756.65557 | AA246: 73893.65099 | AB246: 57179.80495 | AC246: 55470.62104 | AD246: 47274.22613 | AE246: 29833.13377
... 852 more rows

Sheet Summary
J3: 1
S4: MONTHLY
I5: Period Number | O5: 1 | P5: 1 | Q5: 1 | R5: =IF(Q5=12,1,Q5+1) -> 2 | S5: 3 | T5: 4 | U5: 5 | V5: 6 | W5: 7 | X5: 8 | Y5: 9 | Z5: 10 | AA5: 11 | AB5: 12 | AC5: 1 | AD5: 2 | AE5: 3 | AF5: 4 | AG5: 5 | AH5: 6 | AI5: 7 | AJ5: 8
O6: =Global!R36 -> 2018-04-30 | P6: =Global!S36 -> 2018-05-31 | Q6: =Global!T36 -> 2018-06-30 | R6: =Global!U36 -> 2018-07-31 | S6: =Global!V36 -> 2018-08-31 | T6: =Global!W36 -> 2018-09-30 | U6: =Global!X36 -> 2018-10-31 | V6: =Global!Y36 -> 2018-11-30 | W6: =Global!Z36 -> 2018-12-31 | X6: =Global!AA36 -> 2019-01-31 | Y6: =Global!AB36 -> 2019-02-28 | Z6: =Global!AC36 -> 2019-03-31 | AA6: =Global!AD36 -> 2019-04-30 | AB6: =Global!AE36 -> 2019-05-31 | AC6: =Global!AF36 -> 2019-06-30 | AD6: =Global!AG36 -> 2019-07-31 | AE6: =Global!AH36 -> 2019-08-31 | AF6: =Global!AI36 -> 2019-09-30 | AG6: =Global!AJ36 -> 2019-10-31 | AH6: =Global!AK36 -> 2019-11-30 | AI6: =Global!AL36 -> 2019-12-31 | AJ6: =Global!AM36 -> 2020-01-31
I7: Period | O7: 1 | P7: 1 | Q7: 1 | R7: =Q7+1 -> 2 | S7: 3 | T7: 4 | U7: 5 | V7: 6 | W7: 7 | X7: 8 | Y7: 9 | Z7: 10 | AA7: 11 | AB7: 12 | AC7: 13 | AD7: 14 | AE7: 15 | AF7: 16 | AG7: 17 | AH7: 18 | AI7: 19 | AJ7: 20
I9: Financial Year | L9: =Global!O7 -> 2019-05-31 | O9: =Global!R36 -> 2018-04-30 | P9: =Global!S36 -> 2018-05-31 | Q9: =Global!T36 -> 2018-06-30 | R9: =Global!U36 -> 2018-07-31 | S9: =Global!V36 -> 2018-08-31 | T9: =Global!W36 -> 2018-09-30 | U9: =Global!X36 -> 2018-10-31 | V9: =Global!Y36 -> 2018-11-30 | W9: =Global!Z36 -> 2018-12-31 | X9: =Global!AA36 -> 2019-01-31 | Y9: =Global!AB36 -> 2019-02-28 | Z9: =Global!AC36 -> 2019-03-31 | AA9: =Global!AD36 -> 2019-04-30 | AB9: =Global!AE36 -> 2019-05-31 | AC9: =Global!AF36 -> 2019-06-30 | AD9: =Global!AG36 -> 2019-07-31 | AE9: =Global!AH36 -> 2019-08-31 | AF9: =Global!AI36 -> 2019-09-30 | AG9: =Global!AJ36 -> 2019-10-31 | AH9: =Global!AK36 -> 2019-11-30 | AI9: =Global!AL36 -> 2019-12-31 | AJ9: =Global!AM36 -> 2020-01-31
I10: KGMS 000s
I11: Milk Supply Paid for | L11: =SUM(O11:AB11) -> 1522748.774 | O11: ='Data Input'!R31 -> 0 | P11: ='Data Input'!S31 -> 0 | Q11: ='Data Input'!T31 -> 13301.0742 | R11: ='Data Input'!U31 -> 17927.0376 | S11: ='Data Input'!V31 -> 96516.0417 | T11: ='Data Input'!W31 -> 179286.6967 | U11: ='Data Input'!X31 -> 220213.4447 | V11: ='Data Input'!Y31 -> 201200.6192 | W11: ='Data Input'!Z31 -> 185129.1487 | X11: ='Data Input'!AA31 -> 169022.3025 | Y11: ='Data Input'!AB31 -> 133077.4081 | Z11: ='Data Input'!AC31 -> 129551.4948 | AA11: ='Data Input'!AD31 -> 109104.8903 | AB11: ='Data Input'!AE31 -> 68418.615
I12: Milk Supply Collected | L12: =SUM(O12:AB12) -> 1522724.789 | O12: ='Data Input'!R32 -> 0 | P12: ='Data Input'!S32 -> 0 | Q12: ='Data Input'!T32 -> 13301.0742 | R12: ='Data Input'!U32 -> 17927.0376 | S12: ='Data Input'!V32 -> 96516.0417 | T12: ='Data Input'!W32 -> 179286.6967 | U12: ='Data Input'!X32 -> 220213.4447 | V12: ='Data Input'!Y32 -> 201181.2384 | W12: ='Data Input'!Z32 -> 185129.1487 | X12: ='Data Input'!AA32 -> 169022.3025 | Y12: ='Data Input'!AB32 -> 133072.804 | Z12: ='Data Input'!AC32 -> 129551.4948 | AA12: ='Data Input'!AD32 -> 109104.8903 | AB12: ='Data Input'!AE32 -> 68418.615
I14: $'000
I16: NZD Revenue
I17: Sales | J17: =$J$3&I17 -> 1Sales | L17: =SUM(O17:AJ17) -> 12830861.47 | O17: =-SUMIF(Calculations!$I$15:$I$1341,$J17,Calculations!R$15:R$1341) -> 0 | P17: =-SUMIF(Calculations!$I$15:$I$1341,$J17,Calculations!S$15:S$1341) -> 0 | Q17: =-SUMIF(Calculations!$I$15:$I$1341,$J17,Calculations!T$15:T$1341) -> 0 | R17: =-SUMIF(Calculations!$I$15:$I$1341,$J17,Calculations!U$15:U$1341) -> 0 | S17: =-SUMIF(Calculations!$I$15:$I$1341,$J17,Calculations!V$15:V$1341) -> 0 | T17: =-SUMIF(Calculations!$I$15:$I$1341,$J17,Calculations!W$15:W$1341) -> 606730.5821 | U17: =-SUMIF(Calculations!$I$15:$I$1341,$J17,Calculations!X$15:X$1341) -> 606730.5821 | V17: =-SUMIF(Calculations!$I$15:$I$1341,$J17,Calculations!Y$15:Y$1341) -> 1527468.337 | W17: =-SUMIF(Calculations!$I$15:$I$1341,$J17,Calculations!Z$15:Z$1341) -> 1527468.337 | X17: =-SUMIF(Calculations!$I$15:$I$1341,$J17,Calculations!AA$15:AA$1341) -> 1527468.337 | Y17: =-SUMIF(Calculations!$I$15:$I$1341,$J17,Calculations!AB$15:AB$1341) -> 1169117.11 | Z17: =-SUMIF(Calculations!$I$15:$I$1341,$J17,Calculations!AC$15:AC$1341) -> 1169117.11 | AA17: =-SUMIF(Calculations!$I$15:$I$1341,$J17,Calculations!AD$15:AD$1341) -> 1169117.11 | AB17: =-SUMIF(Calculations!$I$15:$I$1341,$J17,Calculations!AE$15:AE$1341) -> 1017711.031 | AC17: =-SUMIF(Calculations!$I$15:$I$1341,$J17,Calculations!AF$15:AF$1341) -> 1017711.031 | AD17: =-SUMIF(Calculations!$I$15:$I$1341,$J17,Calculations!AG$15:AG$1341) -> 1017711.031 | AE17: =-SUMIF(Calculations!$I$15:$I$1341,$J17,Calculations!AH$15:AH$1341) -> 158170.2906 | AF17: =-SUMIF(Calculations!$I$15:$I$1341,$J17,Calculations!AI$15:AI$1341) -> 158170.2906 | AG17: =-SUMIF(Calculations!$I$15:$I$1341,$J17,Calculations!AJ$15:AJ$1341) -> 158170.2906 | AH17: =-SUMIF(Calculations!$I$15:$I$1341,$J17,Calculations!AK$15:AK$1341) -> 0 | AI17: =-SUMIF(Calculations!$I$15:$I$1341,$J17,Calculations!AL$15:AL$1341) -> 0 | AJ17: =-SUMIF(Calculations!$I$15:$I$1341,$J17,Calculations!AM$15:AM$1341) -> 0
I18: Downgrade expense (excl rework) | J18: =$J$3&I18 -> 1Downgrade expense (excl rework) | L18: =SUM(O18:AJ18) -> 0 | O18: =-SUMIF(Calculations!$I$15:$I$1341,$J18,Calculations!R$15:R$1341) -> 0 | P18: =-SUMIF(Calculations!$I$15:$I$1341,$J18,Calculations!S$15:S$1341) -> 0 | Q18: =-SUMIF(Calculations!$I$15:$I$1341,$J18,Calculations!T$15:T$1341) -> 0 | R18: =-SUMIF(Calculations!$I$15:$I$1341,$J18,Calculations!U$15:U$1341) -> 0 | S18: =-SUMIF(Calculations!$I$15:$I$1341,$J18,Calculations!V$15:V$1341) -> 0 | T18: =-SUMIF(Calculations!$I$15:$I$1341,$J18,Calculations!W$15:W$1341) -> 0 | U18: =-SUMIF(Calculations!$I$15:$I$1341,$J18,Calculations!X$15:X$1341) -> 0 | V18: =-SUMIF(Calculations!$I$15:$I$1341,$J18,Calculations!Y$15:Y$1341) -> 0 | W18: =-SUMIF(Calculations!$I$15:$I$1341,$J18,Calculations!Z$15:Z$1341) -> 0 | X18: =-SUMIF(Calculations!$I$15:$I$1341,$J18,Calculations!AA$15:AA$1341) -> 0 | Y18: =-SUMIF(Calculations!$I$15:$I$1341,$J18,Calculations!AB$15:AB$1341) -> 0 | Z18: =-SUMIF(Calculations!$I$15:$I$1341,$J18,Calculations!AC$15:AC$1341) -> 0 | AA18: =-SUMIF(Calculations!$I$15:$I$1341,$J18,Calculations!AD$15:AD$1341) -> 0 | AB18: =-SUMIF(Calculations!$I$15:$I$1341,$J18,Calculations!AE$15:AE$1341) -> 0 | AC18: =-SUMIF(Calculations!$I$15:$I$1341,$J18,Calculations!AF$15:AF$1341) -> 0 | AD18: =-SUMIF(Calculations!$I$15:$I$1341,$J18,Calculations!AG$15:AG$1341) -> 0 | AE18: =-SUMIF(Calculations!$I$15:$I$1341,$J18,Calculations!AH$15:AH$1341) -> 0 | AF18: =-SUMIF(Calculations!$I$15:$I$1341,$J18,Calculations!AI$15:AI$1341) -> 0 | AG18: =-SUMIF(Calculations!$I$15:$I$1341,$J18,Calculations!AJ$15:AJ$1341) -> 0 | AH18: =-SUMIF(Calculations!$I$15:$I$1341,$J18,Calculations!AK$15:AK$1341) -> 0 | AI18: =-SUMIF(Calculations!$I$15:$I$1341,$J18,Calculations!AL$15:AL$1341) -> 0 | AJ18: =-SUMIF(Calculations!$I$15:$I$1341,$J18,Calculations!AM$15:AM$1341) -> 0
I19: Net Sales | L19: =SUM(L17:L18) -> 12830861.47 | O19: =SUM(O17:O18) -> 0 | P19: =SUM(P17:P18) -> 0 | Q19: =SUM(Q17:Q18) -> 0 | R19: 0 | S19: 0 | T19: 606730.5821 | U19: 606730.5821 | V19: 1527468.337 | W19: 1527468.337 | X19: 1527468.337 | Y19: 1169117.11 | Z19: 1169117.11 | AA19: 1169117.11 | AB19: 1017711.031 | AC19: 1017711.031 | AD19: 1017711.031 | AE19: 158170.2906 | AF19: 158170.2906 | AG19: 158170.2906 | AH19: 0 | AI19: 0 | AJ19: 0
I20: Average conversion rate (Sales) | L20: =Calculations!N350/Calculations!N358 -> 0.6904886197
I21: Non-Milk Costs
I22: Commission | J22: =$J$3&I22 -> 1Commission | L22: =SUM(O22:AJ22) -> 109962.7565 | O22: =SUMIF(Calculations!$I$15:$I$1341,$J22,Calculations!R$15:R$1341) -> 0 | P22: =SUMIF(Calculations!$I$15:$I$1341,$J22,Calculations!S$15:S$1341) -> 0 | Q22: =SUMIF(Calculations!$I$15:$I$1341,$J22,Calculations!T$15:T$1341) -> 0 | R22: =SUMIF(Calculations!$I$15:$I$1341,$J22,Calculations!U$15:U$1341) -> 0 | S22: =SUMIF(Calculations!$I$15:$I$1341,$J22,Calculations!V$15:V$1341) -> 9163.563043 | T22: =SUMIF(Calculations!$I$15:$I$1341,$J22,Calculations!W$15:W$1341) -> 9163.563043 | U22: =SUMIF(Calculations!$I$15:$I$1341,$J22,Calculations!X$15:X$1341) -> 9163.563043 | V22: =SUMIF(Calculations!$I$15:$I$1341,$J22,Calculations!Y$15:Y$1341) -> 9163.563043 | W22: =SUMIF(Calculations!$I$15:$I$1341,$J22,Calculations!Z$15:Z$1341) -> 9163.563043 | X22: =SUMIF(Calculations!$I$15:$I$1341,$J22,Calculations!AA$15:AA$1341) -> 9163.563043 | Y22: =SUMIF(Calculations!$I$15:$I$1341,$J22,Calculations!AB$15:AB$1341) -> 9163.563043 | Z22: =SUMIF(Calculations!$I$15:$I$1341,$J22,Calculations!AC$15:AC$1341) -> 9163.563043 | AA22: =SUMIF(Calculations!$I$15:$I$1341,$J22,Calculations!AD$15:AD$1341) -> 9163.563043 | AB22: =SUMIF(Calculations!$I$15:$I$1341,$J22,Calculations!AE$15:AE$1341) -> 9163.563043 | AC22: =SUMIF(Calculations!$I$15:$I$1341,$J22,Calculations!AF$15:AF$1341) -> 9163.563043 | AD22: =SUMIF(Calculations!$I$15:$I$1341,$J22,Calculations!AG$15:AG$1341) -> 9163.563043 | AE22: =SUMIF(Calculations!$I$15:$I$1341,$J22,Calculations!AH$15:AH$1341) -> 0 | AF22: =SUMIF(Calculations!$I$15:$I$1341,$J22,Calculations!AI$15:AI$1341) -> 0 | AG22: =SUMIF(Calculations!$I$15:$I$1341,$J22,Calculations!AJ$15:AJ$1341) -> 0 | AH22: =SUMIF(Calculations!$I$15:$I$1341,$J22,Calculations!AK$15:AK$1341) -> 0 | AI22: =SUMIF(Calculations!$I$15:$I$1341,$J22,Calculations!AL$15:AL$1341) -> 0 | AJ22: =SUMIF(Calculations!$I$15:$I$1341,$J22,Calculations!AM$15:AM$1341) -> 0
I23: Collection Costs | J23: 1Collection Costs | L23: =SUM(O23:AJ23) -> 371941.198 | O23: =SUMIF(Calculations!$I$15:$I$1341,$J23,Calculations!R$15:R$1341) -> 0 | P23: =SUMIF(Calculations!$I$15:$I$1341,$J23,Calculations!S$15:S$1341) -> 0 | Q23: =SUMIF(Calculations!$I$15:$I$1341,$J23,Calculations!T$15:T$1341) -> 15375.85745 | R23: =SUMIF(Calculations!$I$15:$I$1341,$J23,Calculations!U$15:U$1341) -> 17201.96253 | S23: =SUMIF(Calculations!$I$15:$I$1341,$J23,Calculations!V$15:V$1341) -> 23369.01485 | T23: =SUMIF(Calculations!$I$15:$I$1341,$J23,Calculations!W$15:W$1341) -> 38122.39404 | U23: =SUMIF(Calculations!$I$15:$I$1341,$J23,Calculations!X$15:X$1341) -> 49711.1128 | V23: =SUMIF(Calculations!$I$15:$I$1341,$J23,Calculations!Y$15:Y$1341) -> 46832.64037 | W23: =SUMIF(Calculations!$I$15:$I$1341,$J23,Calculations!Z$15:Z$1341) -> 40965.6693 | X23: =SUMIF(Calculations!$I$15:$I$1341,$J23,Calculations!AA$15:AA$1341) -> 37730.24912 | Y23: =SUMIF(Calculations!$I$15:$I$1341,$J23,Calculations!AB$15:AB$1341) -> 28538.68935 | Z23: =SUMIF(Calculations!$I$15:$I$1341,$J23,Calculations!AC$15:AC$1341) -> 27854.21765 | AA23: =SUMIF(Calculations!$I$15:$I$1341,$J23,Calculations!AD$15:AD$1341) -> 24846.64026 | AB23: =SUMIF(Calculations!$I$15:$I$1341,$J23,Calculations!AE$15:AE$1341) -> 21392.7503 | AC23: =SUMIF(Calculations!$I$15:$I$1341,$J23,Calculations!AF$15:AF$1341) -> 0 | AD23: =SUMIF(Calculations!$I$15:$I$1341,$J23,Calculations!AG$15:AG$1341) -> 0 | AE23: =SUMIF(Calculations!$I$15:$I$1341,$J23,Calculations!AH$15:AH$1341) -> 0 | AF23: =SUMIF(Calculations!$I$15:$I$1341,$J23,Calculations!AI$15:AI$1341) -> 0 | AG23: =SUMIF(Calculations!$I$15:$I$1341,$J23,Calculations!AJ$15:AJ$1341) -> 0 | AH23: =SUMIF(Calculations!$I$15:$I$1341,$J23,Calculations!AK$15:AK$1341) -> 0 | AI23: =SUMIF(Calculations!$I$15:$I$1341,$J23,Calculations!AL$15:AL$1341) -> 0 | AJ23: =SUMIF(Calculations!$I$15:$I$1341,$J23,Calculations!AM$15:AM$1341) -> 0
I24: Lactose | J24: 1Lactose | L24: =SUM(O24:AJ24) -> 423270.5852 | O24: =SUMIF(Calculations!$I$15:$I$1341,$J24,Calculations!R$15:R$1341) -> 0 | P24: =SUMIF(Calculations!$I$15:$I$1341,$J24,Calculations!S$15:S$1341) -> 0 | Q24: =SUMIF(Calculations!$I$15:$I$1341,$J24,Calculations!T$15:T$1341) -> 4235.084046 | R24: =SUMIF(Calculations!$I$15:$I$1341,$J24,Calculations!U$15:U$1341) -> 5475.967537 | S24: =SUMIF(Calculations!$I$15:$I$1341,$J24,Calculations!V$15:V$1341) -> 25877.18891 | T24: =SUMIF(Calculations!$I$15:$I$1341,$J24,Calculations!W$15:W$1341) -> 42517.15338 | U24: =SUMIF(Calculations!$I$15:$I$1341,$J24,Calculations!X$15:X$1341) -> 49117.64576 | V24: =SUMIF(Calculations!$I$15:$I$1341,$J24,Calculations!Y$15:Y$1341) -> 47609.39176 | W24: =SUMIF(Calculations!$I$15:$I$1341,$J24,Calculations!Z$15:Z$1341) -> 48843.86429 | X24: =SUMIF(Calculations!$I$15:$I$1341,$J24,Calculations!AA$15:AA$1341) -> 45455.41587 | Y24: =SUMIF(Calculations!$I$15:$I$1341,$J24,Calculations!AB$15:AB$1341) -> 37884.19897 | Z24: =SUMIF(Calculations!$I$15:$I$1341,$J24,Calculations!AC$15:AC$1341) -> 43964.54747 | AA24: =SUMIF(Calculations!$I$15:$I$1341,$J24,Calculations!AD$15:AD$1341) -> 43667.92909 | AB24: =SUMIF(Calculations!$I$15:$I$1341,$J24,Calculations!AE$15:AE$1341) -> 28622.19813 | AC24: =SUMIF(Calculations!$I$15:$I$1341,$J24,Calculations!AF$15:AF$1341) -> 0 | AD24: =SUMIF(Calculations!$I$15:$I$1341,$J24,Calculations!AG$15:AG$1341) -> 0 | AE24: =SUMIF(Calculations!$I$15:$I$1341,$J24,Calculations!AH$15:AH$1341) -> 0 | AF24: =SUMIF(Calculations!$I$15:$I$1341,$J24,Calculations!AI$15:AI$1341) -> 0 | AG24: =SUMIF(Calculations!$I$15:$I$1341,$J24,Calculations!AJ$15:AJ$1341) -> 0 | AH24: =SUMIF(Calculations!$I$15:$I$1341,$J24,Calculations!AK$15:AK$1341) -> 0 | AI24: =SUMIF(Calculations!$I$15:$I$1341,$J24,Calculations!AL$15:AL$1341) -> 0 | AJ24: =SUMIF(Calculations!$I$15:$I$1341,$J24,Calculations!AM$15:AM$1341) -> 0
I25: Operating Costs
I26: Packaging | J26: 1Packaging | L26: =SUM(O26:AJ26) -> 488401.7191 | O26: =SUMIF(Calculations!$I$15:$I$1341,$J26,Calculations!R$15:R$1341) -> 0 | P26: =SUMIF(Calculations!$I$15:$I$1341,$J26,Calculations!S$15:S$1341) -> 0 | Q26: =SUMIF(Calculations!$I$15:$I$1341,$J26,Calculations!T$15:T$1341) -> 4228.381081 | R26: =SUMIF(Calculations!$I$15:$I$1341,$J26,Calculations!U$15:U$1341) -> 5782.953147 | S26: =SUMIF(Calculations!$I$15:$I$1341,$J26,Calculations!V$15:V$1341) -> 31099.21041 | T26: =SUMIF(Calculations!$I$15:$I$1341,$J26,Calculations!W$15:W$1341) -> 57889.02804 | U26: =SUMIF(Calculations!$I$15:$I$1341,$J26,Calculations!X$15:X$1341) -> 70515.11504 | V26: =SUMIF(Calculations!$I$15:$I$1341,$J26,Calculations!Y$15:Y$1341) -> 64596.89753 | W26: =SUMIF(Calculations!$I$15:$I$1341,$J26,Calculations!Z$15:Z$1341) -> 59608.58511 | X26: =SUMIF(Calculations!$I$15:$I$1341,$J26,Calculations!AA$15:AA$1341) -> 54342.03233 | Y26: =SUMIF(Calculations!$I$15:$I$1341,$J26,Calculations!AB$15:AB$1341) -> 42511.3235 | Z26: =SUMIF(Calculations!$I$15:$I$1341,$J26,Calculations!AC$15:AC$1341) -> 41187.98667 | AA26: =SUMIF(Calculations!$I$15:$I$1341,$J26,Calculations!AD$15:AD$1341) -> 34754.04653 | AB26: =SUMIF(Calculations!$I$15:$I$1341,$J26,Calculations!AE$15:AE$1341) -> 21886.15969 | AC26: =SUMIF(Calculations!$I$15:$I$1341,$J26,Calculations!AF$15:AF$1341) -> 0 | AD26: =SUMIF(Calculations!$I$15:$I$1341,$J26,Calculations!AG$15:AG$1341) -> 0 | AE26: =SUMIF(Calculations!$I$15:$I$1341,$J26,Calculations!AH$15:AH$1341) -> 0 | AF26: =SUMIF(Calculations!$I$15:$I$1341,$J26,Calculations!AI$15:AI$1341) -> 0 | AG26: =SUMIF(Calculations!$I$15:$I$1341,$J26,Calculations!AJ$15:AJ$1341) -> 0 | AH26: =SUMIF(Calculations!$I$15:$I$1341,$J26,Calculations!AK$15:AK$1341) -> 0 | AI26: =SUMIF(Calculations!$I$15:$I$1341,$J26,Calculations!AL$15:AL$1341) -> 0 | AJ26: =SUMIF(Calculations!$I$15:$I$1341,$J26,Calculations!AM$15:AM$1341) -> 0
I27: Energy - Variable | J27: 1Energy - Variable | L27: 0 | O27: =SUMIF(Calculations!$I$15:$I$1341,$J27,Calculations!R$15:R$1341) -> 0 | P27: =SUMIF(Calculations!$I$15:$I$1341,$J27,Calculations!S$15:S$1341) -> 0 | Q27: =SUMIF(Calculations!$I$15:$I$1341,$J27,Calculations!T$15:T$1341) -> 0 | R27: =SUMIF(Calculations!$I$15:$I$1341,$J27,Calculations!U$15:U$1341) -> 0 | S27: =SUMIF(Calculations!$I$15:$I$1341,$J27,Calculations!V$15:V$1341) -> 0 | T27: =SUMIF(Calculations!$I$15:$I$1341,$J27,Calculations!W$15:W$1341) -> 0 | U27: =SUMIF(Calculations!$I$15:$I$1341,$J27,Calculations!X$15:X$1341) -> 0 | V27: =SUMIF(Calculations!$I$15:$I$1341,$J27,Calculations!Y$15:Y$1341) -> 0 | W27: =SUMIF(Calculations!$I$15:$I$1341,$J27,Calculations!Z$15:Z$1341) -> 0 | X27: =SUMIF(Calculations!$I$15:$I$1341,$J27,Calculations!AA$15:AA$1341) -> 0 | Y27: =SUMIF(Calculations!$I$15:$I$1341,$J27,Calculations!AB$15:AB$1341) -> 0 | Z27: =SUMIF(Calculations!$I$15:$I$1341,$J27,Calculations!AC$15:AC$1341) -> 0 | AA27: =SUMIF(Calculations!$I$15:$I$1341,$J27,Calculations!AD$15:AD$1341) -> 0 | AB27: =SUMIF(Calculations!$I$15:$I$1341,$J27,Calculations!AE$15:AE$1341) -> 0 | AC27: =SUMIF(Calculations!$I$15:$I$1341,$J27,Calculations!AF$15:AF$1341) -> 0 | AD27: =SUMIF(Calculations!$I$15:$I$1341,$J27,Calculations!AG$15:AG$1341) -> 0 | AE27: =SUMIF(Calculations!$I$15:$I$1341,$J27,Calculations!AH$15:AH$1341) -> 0 | AF27: =SUMIF(Calculations!$I$15:$I$1341,$J27,Calculations!AI$15:AI$1341) -> 0 | AG27: =SUMIF(Calculations!$I$15:$I$1341,$J27,Calculations!AJ$15:AJ$1341) -> 0 | AH27: =SUMIF(Calculations!$I$15:$I$1341,$J27,Calculations!AK$15:AK$1341) -> 0 | AI27: =SUMIF(Calculations!$I$15:$I$1341,$J27,Calculations!AL$15:AL$1341) -> 0 | AJ27: =SUMIF(Calculations!$I$15:$I$1341,$J27,Calculations!AM$15:AM$1341) -> 0
I28: Water | J28: 1Water | L28: 0 | O28: =SUMIF(Calculations!$I$15:$I$1341,$J28,Calculations!R$15:R$1341) -> 0 | P28: =SUMIF(Calculations!$I$15:$I$1341,$J28,Calculations!S$15:S$1341) -> 0 | Q28: =SUMIF(Calculations!$I$15:$I$1341,$J28,Calculations!T$15:T$1341) -> 0 | R28: =SUMIF(Calculations!$I$15:$I$1341,$J28,Calculations!U$15:U$1341) -> 0 | S28: =SUMIF(Calculations!$I$15:$I$1341,$J28,Calculations!V$15:V$1341) -> 0 | T28: =SUMIF(Calculations!$I$15:$I$1341,$J28,Calculations!W$15:W$1341) -> 0 | U28: =SUMIF(Calculations!$I$15:$I$1341,$J28,Calculations!X$15:X$1341) -> 0 | V28: =SUMIF(Calculations!$I$15:$I$1341,$J28,Calculations!Y$15:Y$1341) -> 0 | W28: =SUMIF(Calculations!$I$15:$I$1341,$J28,Calculations!Z$15:Z$1341) -> 0 | X28: =SUMIF(Calculations!$I$15:$I$1341,$J28,Calculations!AA$15:AA$1341) -> 0 | Y28: =SUMIF(Calculations!$I$15:$I$1341,$J28,Calculations!AB$15:AB$1341) -> 0 | Z28: =SUMIF(Calculations!$I$15:$I$1341,$J28,Calculations!AC$15:AC$1341) -> 0 | AA28: =SUMIF(Calculations!$I$15:$I$1341,$J28,Calculations!AD$15:AD$1341) -> 0 | AB28: =SUMIF(Calculations!$I$15:$I$1341,$J28,Calculations!AE$15:AE$1341) -> 0 | AC28: =SUMIF(Calculations!$I$15:$I$1341,$J28,Calculations!AF$15:AF$1341) -> 0 | AD28: =SUMIF(Calculations!$I$15:$I$1341,$J28,Calculations!AG$15:AG$1341) -> 0 | AE28: =SUMIF(Calculations!$I$15:$I$1341,$J28,Calculations!AH$15:AH$1341) -> 0 | AF28: =SUMIF(Calculations!$I$15:$I$1341,$J28,Calculations!AI$15:AI$1341) -> 0 | AG28: =SUMIF(Calculations!$I$15:$I$1341,$J28,Calculations!AJ$15:AJ$1341) -> 0 | AH28: =SUMIF(Calculations!$I$15:$I$1341,$J28,Calculations!AK$15:AK$1341) -> 0 | AI28: =SUMIF(Calculations!$I$15:$I$1341,$J28,Calculations!AL$15:AL$1341) -> 0 | AJ28: =SUMIF(Calculations!$I$15:$I$1341,$J28,Calculations!AM$15:AM$1341) -> 0
I29: Cleaning & CIP | J29: 1Cleaning & CIP | L29: 0 | O29: =SUMIF(Calculations!$I$15:$I$1341,$J29,Calculations!R$15:R$1341) -> 0 | P29: =SUMIF(Calculations!$I$15:$I$1341,$J29,Calculations!S$15:S$1341) -> 0 | Q29: =SUMIF(Calculations!$I$15:$I$1341,$J29,Calculations!T$15:T$1341) -> 0 | R29: =SUMIF(Calculations!$I$15:$I$1341,$J29,Calculations!U$15:U$1341) -> 0 | S29: =SUMIF(Calculations!$I$15:$I$1341,$J29,Calculations!V$15:V$1341) -> 0 | T29: =SUMIF(Calculations!$I$15:$I$1341,$J29,Calculations!W$15:W$1341) -> 0 | U29: =SUMIF(Calculations!$I$15:$I$1341,$J29,Calculations!X$15:X$1341) -> 0 | V29: =SUMIF(Calculations!$I$15:$I$1341,$J29,Calculations!Y$15:Y$1341) -> 0 | W29: =SUMIF(Calculations!$I$15:$I$1341,$J29,Calculations!Z$15:Z$1341) -> 0 | X29: =SUMIF(Calculations!$I$15:$I$1341,$J29,Calculations!AA$15:AA$1341) -> 0 | Y29: =SUMIF(Calculations!$I$15:$I$1341,$J29,Calculations!AB$15:AB$1341) -> 0 | Z29: =SUMIF(Calculations!$I$15:$I$1341,$J29,Calculations!AC$15:AC$1341) -> 0 | AA29: =SUMIF(Calculations!$I$15:$I$1341,$J29,Calculations!AD$15:AD$1341) -> 0 | AB29: =SUMIF(Calculations!$I$15:$I$1341,$J29,Calculations!AE$15:AE$1341) -> 0 | AC29: =SUMIF(Calculations!$I$15:$I$1341,$J29,Calculations!AF$15:AF$1341) -> 0 | AD29: =SUMIF(Calculations!$I$15:$I$1341,$J29,Calculations!AG$15:AG$1341) -> 0 | AE29: =SUMIF(Calculations!$I$15:$I$1341,$J29,Calculations!AH$15:AH$1341) -> 0 | AF29: =SUMIF(Calculations!$I$15:$I$1341,$J29,Calculations!AI$15:AI$1341) -> 0 | AG29: =SUMIF(Calculations!$I$15:$I$1341,$J29,Calculations!AJ$15:AJ$1341) -> 0 | AH29: =SUMIF(Calculations!$I$15:$I$1341,$J29,Calculations!AK$15:AK$1341) -> 0 | AI29: =SUMIF(Calculations!$I$15:$I$1341,$J29,Calculations!AL$15:AL$1341) -> 0 | AJ29: =SUMIF(Calculations!$I$15:$I$1341,$J29,Calculations!AM$15:AM$1341) -> 0
I30: Consumables | J30: 1Consumables | L30: 0 | O30: =SUMIF(Calculations!$I$15:$I$1341,$J30,Calculations!R$15:R$1341) -> 0 | P30: =SUMIF(Calculations!$I$15:$I$1341,$J30,Calculations!S$15:S$1341) -> 0 | Q30: =SUMIF(Calculations!$I$15:$I$1341,$J30,Calculations!T$15:T$1341) -> 0 | R30: =SUMIF(Calculations!$I$15:$I$1341,$J30,Calculations!U$15:U$1341) -> 0 | S30: =SUMIF(Calculations!$I$15:$I$1341,$J30,Calculations!V$15:V$1341) -> 0 | T30: =SUMIF(Calculations!$I$15:$I$1341,$J30,Calculations!W$15:W$1341) -> 0 | U30: =SUMIF(Calculations!$I$15:$I$1341,$J30,Calculations!X$15:X$1341) -> 0 | V30: =SUMIF(Calculations!$I$15:$I$1341,$J30,Calculations!Y$15:Y$1341) -> 0 | W30: =SUMIF(Calculations!$I$15:$I$1341,$J30,Calculations!Z$15:Z$1341) -> 0 | X30: =SUMIF(Calculations!$I$15:$I$1341,$J30,Calculations!AA$15:AA$1341) -> 0 | Y30: =SUMIF(Calculations!$I$15:$I$1341,$J30,Calculations!AB$15:AB$1341) -> 0 | Z30: =SUMIF(Calculations!$I$15:$I$1341,$J30,Calculations!AC$15:AC$1341) -> 0 | AA30: =SUMIF(Calculations!$I$15:$I$1341,$J30,Calculations!AD$15:AD$1341) -> 0 | AB30: =SUMIF(Calculations!$I$15:$I$1341,$J30,Calculations!AE$15:AE$1341) -> 0 | AC30: =SUMIF(Calculations!$I$15:$I$1341,$J30,Calculations!AF$15:AF$1341) -> 0 | AD30: =SUMIF(Calculations!$I$15:$I$1341,$J30,Calculations!AG$15:AG$1341) -> 0 | AE30: =SUMIF(Calculations!$I$15:$I$1341,$J30,Calculations!AH$15:AH$1341) -> 0 | AF30: =SUMIF(Calculations!$I$15:$I$1341,$J30,Calculations!AI$15:AI$1341) -> 0 | AG30: =SUMIF(Calculations!$I$15:$I$1341,$J30,Calculations!AJ$15:AJ$1341) -> 0 | AH30: =SUMIF(Calculations!$I$15:$I$1341,$J30,Calculations!AK$15:AK$1341) -> 0 | AI30: =SUMIF(Calculations!$I$15:$I$1341,$J30,Calculations!AL$15:AL$1341) -> 0 | AJ30: =SUMIF(Calculations!$I$15:$I$1341,$J30,Calculations!AM$15:AM$1341) -> 0
I31: Effluent | J31: 1Effluent | L31: 0 | O31: =SUMIF(Calculations!$I$15:$I$1341,$J31,Calculations!R$15:R$1341) -> 0 | P31: =SUMIF(Calculations!$I$15:$I$1341,$J31,Calculations!S$15:S$1341) -> 0 | Q31: =SUMIF(Calculations!$I$15:$I$1341,$J31,Calculations!T$15:T$1341) -> 0 | R31: =SUMIF(Calculations!$I$15:$I$1341,$J31,Calculations!U$15:U$1341) -> 0 | S31: =SUMIF(Calculations!$I$15:$I$1341,$J31,Calculations!V$15:V$1341) -> 0 | T31: =SUMIF(Calculations!$I$15:$I$1341,$J31,Calculations!W$15:W$1341) -> 0 | U31: =SUMIF(Calculations!$I$15:$I$1341,$J31,Calculations!X$15:X$1341) -> 0 | V31: =SUMIF(Calculations!$I$15:$I$1341,$J31,Calculations!Y$15:Y$1341) -> 0 | W31: =SUMIF(Calculations!$I$15:$I$1341,$J31,Calculations!Z$15:Z$1341) -> 0 | X31: =SUMIF(Calculations!$I$15:$I$1341,$J31,Calculations!AA$15:AA$1341) -> 0 | Y31: =SUMIF(Calculations!$I$15:$I$1341,$J31,Calculations!AB$15:AB$1341) -> 0 | Z31: =SUMIF(Calculations!$I$15:$I$1341,$J31,Calculations!AC$15:AC$1341) -> 0 | AA31: =SUMIF(Calculations!$I$15:$I$1341,$J31,Calculations!AD$15:AD$1341) -> 0 | AB31: =SUMIF(Calculations!$I$15:$I$1341,$J31,Calculations!AE$15:AE$1341) -> 0 | AC31: =SUMIF(Calculations!$I$15:$I$1341,$J31,Calculations!AF$15:AF$1341) -> 0 | AD31: =SUMIF(Calculations!$I$15:$I$1341,$J31,Calculations!AG$15:AG$1341) -> 0 | AE31: =SUMIF(Calculations!$I$15:$I$1341,$J31,Calculations!AH$15:AH$1341) -> 0 | AF31: =SUMIF(Calculations!$I$15:$I$1341,$J31,Calculations!AI$15:AI$1341) -> 0 | AG31: =SUMIF(Calculations!$I$15:$I$1341,$J31,Calculations!AJ$15:AJ$1341) -> 0 | AH31: =SUMIF(Calculations!$I$15:$I$1341,$J31,Calculations!AK$15:AK$1341) -> 0 | AI31: =SUMIF(Calculations!$I$15:$I$1341,$J31,Calculations!AL$15:AL$1341) -> 0 | AJ31: =SUMIF(Calculations!$I$15:$I$1341,$J31,Calculations!AM$15:AM$1341) -> 0
I32: Laboratory | J32: 1Laboratory | L32: 0 | O32: =SUMIF(Calculations!$I$15:$I$1341,$J32,Calculations!R$15:R$1341) -> 0 | P32: =SUMIF(Calculations!$I$15:$I$1341,$J32,Calculations!S$15:S$1341) -> 0 | Q32: =SUMIF(Calculations!$I$15:$I$1341,$J32,Calculations!T$15:T$1341) -> 0 | R32: =SUMIF(Calculations!$I$15:$I$1341,$J32,Calculations!U$15:U$1341) -> 0 | S32: =SUMIF(Calculations!$I$15:$I$1341,$J32,Calculations!V$15:V$1341) -> 0 | T32: =SUMIF(Calculations!$I$15:$I$1341,$J32,Calculations!W$15:W$1341) -> 0 | U32: =SUMIF(Calculations!$I$15:$I$1341,$J32,Calculations!X$15:X$1341) -> 0 | V32: =SUMIF(Calculations!$I$15:$I$1341,$J32,Calculations!Y$15:Y$1341) -> 0 | W32: =SUMIF(Calculations!$I$15:$I$1341,$J32,Calculations!Z$15:Z$1341) -> 0 | X32: =SUMIF(Calculations!$I$15:$I$1341,$J32,Calculations!AA$15:AA$1341) -> 0 | Y32: =SUMIF(Calculations!$I$15:$I$1341,$J32,Calculations!AB$15:AB$1341) -> 0 | Z32: =SUMIF(Calculations!$I$15:$I$1341,$J32,Calculations!AC$15:AC$1341) -> 0 | AA32: =SUMIF(Calculations!$I$15:$I$1341,$J32,Calculations!AD$15:AD$1341) -> 0 | AB32: =SUMIF(Calculations!$I$15:$I$1341,$J32,Calculations!AE$15:AE$1341) -> 0 | AC32: =SUMIF(Calculations!$I$15:$I$1341,$J32,Calculations!AF$15:AF$1341) -> 0 | AD32: =SUMIF(Calculations!$I$15:$I$1341,$J32,Calculations!AG$15:AG$1341) -> 0 | AE32: =SUMIF(Calculations!$I$15:$I$1341,$J32,Calculations!AH$15:AH$1341) -> 0 | AF32: =SUMIF(Calculations!$I$15:$I$1341,$J32,Calculations!AI$15:AI$1341) -> 0 | AG32: =SUMIF(Calculations!$I$15:$I$1341,$J32,Calculations!AJ$15:AJ$1341) -> 0 | AH32: =SUMIF(Calculations!$I$15:$I$1341,$J32,Calculations!AK$15:AK$1341) -> 0 | AI32: =SUMIF(Calculations!$I$15:$I$1341,$J32,Calculations!AL$15:AL$1341) -> 0 | AJ32: =SUMIF(Calculations!$I$15:$I$1341,$J32,Calculations!AM$15:AM$1341) -> 0
I33: Variable operating costs | L33: =SUM(L26:L32) -> 488401.7191 | O33: =SUM(O26:O32) -> 0 | P33: 0 | Q33: 4228.381081 | R33: 5782.953147 | S33: 31099.21041 | T33: 57889.02804 | U33: 70515.11504 | V33: 64596.89753 | W33: 59608.58511 | X33: 54342.03233 | Y33: 42511.3235 | Z33: 41187.98667 | AA33: 34754.04653 | AB33: 21886.15969 | AC33: 0 | AD33: 0 | AE33: 0 | AF33: 0 | AG33: 0 | AH33: 0 | AI33: 0 | AJ33: 0
I34: Wages & ERE | J34: 1Wages & ERE | L34: =SUM(O34:AJ34) -> 0 | O34: =SUMIF(Calculations!$I$15:$I$1341,$J34,Calculations!R$15:R$1341) -> 0 | P34: =SUMIF(Calculations!$I$15:$I$1341,$J34,Calculations!S$15:S$1341) -> 0 | Q34: =SUMIF(Calculations!$I$15:$I$1341,$J34,Calculations!T$15:T$1341) -> 0 | R34: =SUMIF(Calculations!$I$15:$I$1341,$J34,Calculations!U$15:U$1341) -> 0 | S34: =SUMIF(Calculations!$I$15:$I$1341,$J34,Calculations!V$15:V$1341) -> 0 | T34: =SUMIF(Calculations!$I$15:$I$1341,$J34,Calculations!W$15:W$1341) -> 0 | U34: =SUMIF(Calculations!$I$15:$I$1341,$J34,Calculations!X$15:X$1341) -> 0 | V34: =SUMIF(Calculations!$I$15:$I$1341,$J34,Calculations!Y$15:Y$1341) -> 0 | W34: =SUMIF(Calculations!$I$15:$I$1341,$J34,Calculations!Z$15:Z$1341) -> 0 | X34: =SUMIF(Calculations!$I$15:$I$1341,$J34,Calculations!AA$15:AA$1341) -> 0 | Y34: =SUMIF(Calculations!$I$15:$I$1341,$J34,Calculations!AB$15:AB$1341) -> 0 | Z34: =SUMIF(Calculations!$I$15:$I$1341,$J34,Calculations!AC$15:AC$1341) -> 0 | AA34: =SUMIF(Calculations!$I$15:$I$1341,$J34,Calculations!AD$15:AD$1341) -> 0 | AB34: =SUMIF(Calculations!$I$15:$I$1341,$J34,Calculations!AE$15:AE$1341) -> 0 | AC34: =SUMIF(Calculations!$I$15:$I$1341,$J34,Calculations!AF$15:AF$1341) -> 0 | AD34: =SUMIF(Calculations!$I$15:$I$1341,$J34,Calculations!AG$15:AG$1341) -> 0 | AE34: =SUMIF(Calculations!$I$15:$I$1341,$J34,Calculations!AH$15:AH$1341) -> 0 | AF34: =SUMIF(Calculations!$I$15:$I$1341,$J34,Calculations!AI$15:AI$1341) -> 0 | AG34: =SUMIF(Calculations!$I$15:$I$1341,$J34,Calculations!AJ$15:AJ$1341) -> 0 | AH34: =SUMIF(Calculations!$I$15:$I$1341,$J34,Calculations!AK$15:AK$1341) -> 0 | AI34: =SUMIF(Calculations!$I$15:$I$1341,$J34,Calculations!AL$15:AL$1341) -> 0 | AJ34: =SUMIF(Calculations!$I$15:$I$1341,$J34,Calculations!AM$15:AM$1341) -> 0
I35: Repairs & Maintenance | J35: 1Repairs & Maintenance | L35: =SUM(O35:AJ35) -> 0 | O35: =SUMIF(Calculations!$I$15:$I$1341,$J35,Calculations!R$15:R$1341) -> 0 | P35: =SUMIF(Calculations!$I$15:$I$1341,$J35,Calculations!S$15:S$1341) -> 0 | Q35: =SUMIF(Calculations!$I$15:$I$1341,$J35,Calculations!T$15:T$1341) -> 0 | R35: =SUMIF(Calculations!$I$15:$I$1341,$J35,Calculations!U$15:U$1341) -> 0 | S35: =SUMIF(Calculations!$I$15:$I$1341,$J35,Calculations!V$15:V$1341) -> 0 | T35: =SUMIF(Calculations!$I$15:$I$1341,$J35,Calculations!W$15:W$1341) -> 0 | U35: =SUMIF(Calculations!$I$15:$I$1341,$J35,Calculations!X$15:X$1341) -> 0 | V35: =SUMIF(Calculations!$I$15:$I$1341,$J35,Calculations!Y$15:Y$1341) -> 0 | W35: =SUMIF(Calculations!$I$15:$I$1341,$J35,Calculations!Z$15:Z$1341) -> 0 | X35: =SUMIF(Calculations!$I$15:$I$1341,$J35,Calculations!AA$15:AA$1341) -> 0 | Y35: =SUMIF(Calculations!$I$15:$I$1341,$J35,Calculations!AB$15:AB$1341) -> 0 | Z35: =SUMIF(Calculations!$I$15:$I$1341,$J35,Calculations!AC$15:AC$1341) -> 0 | AA35: =SUMIF(Calculations!$I$15:$I$1341,$J35,Calculations!AD$15:AD$1341) -> 0 | AB35: =SUMIF(Calculations!$I$15:$I$1341,$J35,Calculations!AE$15:AE$1341) -> 0 | AC35: =SUMIF(Calculations!$I$15:$I$1341,$J35,Calculations!AF$15:AF$1341) -> 0 | AD35: =SUMIF(Calculations!$I$15:$I$1341,$J35,Calculations!AG$15:AG$1341) -> 0 | AE35: =SUMIF(Calculations!$I$15:$I$1341,$J35,Calculations!AH$15:AH$1341) -> 0 | AF35: =SUMIF(Calculations!$I$15:$I$1341,$J35,Calculations!AI$15:AI$1341) -> 0 | AG35: =SUMIF(Calculations!$I$15:$I$1341,$J35,Calculations!AJ$15:AJ$1341) -> 0 | AH35: =SUMIF(Calculations!$I$15:$I$1341,$J35,Calculations!AK$15:AK$1341) -> 0 | AI35: =SUMIF(Calculations!$I$15:$I$1341,$J35,Calculations!AL$15:AL$1341) -> 0 | AJ35: =SUMIF(Calculations!$I$15:$I$1341,$J35,Calculations!AM$15:AM$1341) -> 0
I36: Energy - Fixed | J36: =$J$3&I36 -> 1Energy - Fixed | L36: =SUM(O36:AJ36) -> 0 | O36: =SUMIF(Calculations!$I$15:$I$1341,$J36,Calculations!R$15:R$1341) -> 0 | P36: =SUMIF(Calculations!$I$15:$I$1341,$J36,Calculations!S$15:S$1341) -> 0 | Q36: =SUMIF(Calculations!$I$15:$I$1341,$J36,Calculations!T$15:T$1341) -> 0 | R36: =SUMIF(Calculations!$I$15:$I$1341,$J36,Calculations!U$15:U$1341) -> 0 | S36: =SUMIF(Calculations!$I$15:$I$1341,$J36,Calculations!V$15:V$1341) -> 0 | T36: =SUMIF(Calculations!$I$15:$I$1341,$J36,Calculations!W$15:W$1341) -> 0 | U36: =SUMIF(Calculations!$I$15:$I$1341,$J36,Calculations!X$15:X$1341) -> 0 | V36: =SUMIF(Calculations!$I$15:$I$1341,$J36,Calculations!Y$15:Y$1341) -> 0 | W36: =SUMIF(Calculations!$I$15:$I$1341,$J36,Calculations!Z$15:Z$1341) -> 0 | X36: =SUMIF(Calculations!$I$15:$I$1341,$J36,Calculations!AA$15:AA$1341) -> 0 | Y36: =SUMIF(Calculations!$I$15:$I$1341,$J36,Calculations!AB$15:AB$1341) -> 0 | Z36: =SUMIF(Calculations!$I$15:$I$1341,$J36,Calculations!AC$15:AC$1341) -> 0 | AA36: =SUMIF(Calculations!$I$15:$I$1341,$J36,Calculations!AD$15:AD$1341) -> 0 | AB36: =SUMIF(Calculations!$I$15:$I$1341,$J36,Calculations!AE$15:AE$1341) -> 0 | AC36: =SUMIF(Calculations!$I$15:$I$1341,$J36,Calculations!AF$15:AF$1341) -> 0 | AD36: =SUMIF(Calculations!$I$15:$I$1341,$J36,Calculations!AG$15:AG$1341) -> 0 | AE36: =SUMIF(Calculations!$I$15:$I$1341,$J36,Calculations!AH$15:AH$1341) -> 0 | AF36: =SUMIF(Calculations!$I$15:$I$1341,$J36,Calculations!AI$15:AI$1341) -> 0 | AG36: =SUMIF(Calculations!$I$15:$I$1341,$J36,Calculations!AJ$15:AJ$1341) -> 0 | AH36: =SUMIF(Calculations!$I$15:$I$1341,$J36,Calculations!AK$15:AK$1341) -> 0 | AI36: =SUMIF(Calculations!$I$15:$I$1341,$J36,Calculations!AL$15:AL$1341) -> 0 | AJ36: =SUMIF(Calculations!$I$15:$I$1341,$J36,Calculations!AM$15:AM$1341) -> 0
I37: Site Overheads | J37: 1Site Overheads | L37: =SUM(O37:AJ37) -> 415205 | O37: =SUMIF(Calculations!$I$15:$I$1341,$J37,Calculations!R$15:R$1341) -> 0 | P37: =SUMIF(Calculations!$I$15:$I$1341,$J37,Calculations!S$15:S$1341) -> 0 | Q37: =SUMIF(Calculations!$I$15:$I$1341,$J37,Calculations!T$15:T$1341) -> 41520.5 | R37: =SUMIF(Calculations!$I$15:$I$1341,$J37,Calculations!U$15:U$1341) -> 39444.475 | S37: =SUMIF(Calculations!$I$15:$I$1341,$J37,Calculations!V$15:V$1341) -> 35292.425 | T37: =SUMIF(Calculations!$I$15:$I$1341,$J37,Calculations!W$15:W$1341) -> 33216.4 | U37: =SUMIF(Calculations!$I$15:$I$1341,$J37,Calculations!X$15:X$1341) -> 33216.4 | V37: =SUMIF(Calculations!$I$15:$I$1341,$J37,Calculations!Y$15:Y$1341) -> 33216.4 | W37: =SUMIF(Calculations!$I$15:$I$1341,$J37,Calculations!Z$15:Z$1341) -> 33216.4 | X37: =SUMIF(Calculations!$I$15:$I$1341,$J37,Calculations!AA$15:AA$1341) -> 33216.4 | Y37: =SUMIF(Calculations!$I$15:$I$1341,$J37,Calculations!AB$15:AB$1341) -> 29064.35 | Z37: =SUMIF(Calculations!$I$15:$I$1341,$J37,Calculations!AC$15:AC$1341) -> 33216.4 | AA37: =SUMIF(Calculations!$I$15:$I$1341,$J37,Calculations!AD$15:AD$1341) -> 33216.4 | AB37: =SUMIF(Calculations!$I$15:$I$1341,$J37,Calculations!AE$15:AE$1341) -> 37368.45 | AC37: =SUMIF(Calculations!$I$15:$I$1341,$J37,Calculations!AF$15:AF$1341) -> 0 | AD37: =SUMIF(Calculations!$I$15:$I$1341,$J37,Calculations!AG$15:AG$1341) -> 0 | AE37: =SUMIF(Calculations!$I$15:$I$1341,$J37,Calculations!AH$15:AH$1341) -> 0 | AF37: =SUMIF(Calculations!$I$15:$I$1341,$J37,Calculations!AI$15:AI$1341) -> 0 | AG37: =SUMIF(Calculations!$I$15:$I$1341,$J37,Calculations!AJ$15:AJ$1341) -> 0 | AH37: =SUMIF(Calculations!$I$15:$I$1341,$J37,Calculations!AK$15:AK$1341) -> 0 | AI37: =SUMIF(Calculations!$I$15:$I$1341,$J37,Calculations!AL$15:AL$1341) -> 0 | AJ37: =SUMIF(Calculations!$I$15:$I$1341,$J37,Calculations!AM$15:AM$1341) -> 0
I38: Fixed operating costs | L38: =SUM(L34:L37) -> 415205 | O38: =SUM(O34:O37) -> 0 | P38: =SUM(P34:P37) -> 0 | Q38: =SUM(Q34:Q37) -> 41520.5 | R38: =SUM(R34:R37) -> 39444.475 | S38: 35292.425 | T38: 33216.4 | U38: 33216.4 | V38: 33216.4 | W38: 33216.4 | X38: 33216.4 | Y38: 29064.35 | Z38: 33216.4 | AA38: 33216.4 | AB38: 37368.45 | AC38: 0 | AD38: 0 | AE38: 0 | AF38: 0 | AG38: 0 | AH38: 0 | AI38: 0 | AJ38: 0
I39: Operating Costs | L39: =L33+L38 -> 903606.7191 | O39: =SUM(O33,O38) -> 0 | P39: =SUM(P33,P38) -> 0 | Q39: =SUM(Q33,Q38) -> 45748.88108 | R39: =SUM(R33,R38) -> 45227.42815 | S39: 66391.63541 | T39: 91105.42804 | U39: 103731.515 | V39: 97813.29753 | W39: 92824.98511 | X39: 87558.43233 | Y39: 71575.6735 | Z39: 74404.38667 | AA39: 67970.44653 | AB39: 59254.60969 | AC39: 0 | AD39: 0 | AE39: 0 | AF39: 0 | AG39: 0 | AH39: 0 | AI39: 0 | AJ39: 0
I40: Variable supply chain costs | J40: 1Variable supply chain costs | L40: =SUM(O40:AJ40) -> 236452.2307 | O40: =SUMIF(Calculations!$I$15:$I$1341,$J40,Calculations!R$15:R$1341) -> 0 | P40: =SUMIF(Calculations!$I$15:$I$1341,$J40,Calculations!S$15:S$1341) -> 0 | Q40: =SUMIF(Calculations!$I$15:$I$1341,$J40,Calculations!T$15:T$1341) -> 0 | R40: =SUMIF(Calculations!$I$15:$I$1341,$J40,Calculations!U$15:U$1341) -> 0 | S40: =SUMIF(Calculations!$I$15:$I$1341,$J40,Calculations!V$15:V$1341) -> 0 | T40: =SUMIF(Calculations!$I$15:$I$1341,$J40,Calculations!W$15:W$1341) -> 10862.76949 | U40: =SUMIF(Calculations!$I$15:$I$1341,$J40,Calculations!X$15:X$1341) -> 10862.76949 | V40: =SUMIF(Calculations!$I$15:$I$1341,$J40,Calculations!Y$15:Y$1341) -> 29850.50384 | W40: =SUMIF(Calculations!$I$15:$I$1341,$J40,Calculations!Z$15:Z$1341) -> 29850.50384 | X40: =SUMIF(Calculations!$I$15:$I$1341,$J40,Calculations!AA$15:AA$1341) -> 29850.50384 | Y40: =SUMIF(Calculations!$I$15:$I$1341,$J40,Calculations!AB$15:AB$1341) -> 22268.25424 | Z40: =SUMIF(Calculations!$I$15:$I$1341,$J40,Calculations!AC$15:AC$1341) -> 22268.25424 | AA40: =SUMIF(Calculations!$I$15:$I$1341,$J40,Calculations!AD$15:AD$1341) -> 22268.25424 | AB40: =SUMIF(Calculations!$I$15:$I$1341,$J40,Calculations!AE$15:AE$1341) -> 17039.39905 | AC40: =SUMIF(Calculations!$I$15:$I$1341,$J40,Calculations!AF$15:AF$1341) -> 17039.39905 | AD40: =SUMIF(Calculations!$I$15:$I$1341,$J40,Calculations!AG$15:AG$1341) -> 17039.39905 | AE40: =SUMIF(Calculations!$I$15:$I$1341,$J40,Calculations!AH$15:AH$1341) -> 2417.406771 | AF40: =SUMIF(Calculations!$I$15:$I$1341,$J40,Calculations!AI$15:AI$1341) -> 2417.406771 | AG40: =SUMIF(Calculations!$I$15:$I$1341,$J40,Calculations!AJ$15:AJ$1341) -> 2417.406771 | AH40: =SUMIF(Calculations!$I$15:$I$1341,$J40,Calculations!AK$15:AK$1341) -> 0 | AI40: =SUMIF(Calculations!$I$15:$I$1341,$J40,Calculations!AL$15:AL$1341) -> 0 | AJ40: =SUMIF(Calculations!$I$15:$I$1341,$J40,Calculations!AM$15:AM$1341) -> 0
I41: Fixed supply chain costs | J41: 1Fixed supply chain costs | L41: =SUM(O41:AJ41) -> 0 | O41: =SUMIF(Calculations!$I$15:$I$1341,$J41,Calculations!R$15:R$1341) -> 0 | P41: =SUMIF(Calculations!$I$15:$I$1341,$J41,Calculations!S$15:S$1341) -> 0 | Q41: =SUMIF(Calculations!$I$15:$I$1341,$J41,Calculations!T$15:T$1341) -> 0 | R41: =SUMIF(Calculations!$I$15:$I$1341,$J41,Calculations!U$15:U$1341) -> 0 | S41: =SUMIF(Calculations!$I$15:$I$1341,$J41,Calculations!V$15:V$1341) -> 0 | T41: =SUMIF(Calculations!$I$15:$I$1341,$J41,Calculations!W$15:W$1341) -> 0 | U41: =SUMIF(Calculations!$I$15:$I$1341,$J41,Calculations!X$15:X$1341) -> 0 | V41: =SUMIF(Calculations!$I$15:$I$1341,$J41,Calculations!Y$15:Y$1341) -> 0 | W41: =SUMIF(Calculations!$I$15:$I$1341,$J41,Calculations!Z$15:Z$1341) -> 0 | X41: =SUMIF(Calculations!$I$15:$I$1341,$J41,Calculations!AA$15:AA$1341) -> 0 | Y41: =SUMIF(Calculations!$I$15:$I$1341,$J41,Calculations!AB$15:AB$1341) -> 0 | Z41: =SUMIF(Calculations!$I$15:$I$1341,$J41,Calculations!AC$15:AC$1341) -> 0 | AA41: =SUMIF(Calculations!$I$15:$I$1341,$J41,Calculations!AD$15:AD$1341) -> 0 | AB41: =SUMIF(Calculations!$I$15:$I$1341,$J41,Calculations!AE$15:AE$1341) -> 0 | AC41: =SUMIF(Calculations!$I$15:$I$1341,$J41,Calculations!AF$15:AF$1341) -> 0 | AD41: =SUMIF(Calculations!$I$15:$I$1341,$J41,Calculations!AG$15:AG$1341) -> 0 | AE41: =SUMIF(Calculations!$I$15:$I$1341,$J41,Calculations!AH$15:AH$1341) -> 0 | AF41: =SUMIF(Calculations!$I$15:$I$1341,$J41,Calculations!AI$15:AI$1341) -> 0 | AG41: =SUMIF(Calculations!$I$15:$I$1341,$J41,Calculations!AJ$15:AJ$1341) -> 0 | AH41: =SUMIF(Calculations!$I$15:$I$1341,$J41,Calculations!AK$15:AK$1341) -> 0 | AI41: =SUMIF(Calculations!$I$15:$I$1341,$J41,Calculations!AL$15:AL$1341) -> 0 | AJ41: =SUMIF(Calculations!$I$15:$I$1341,$J41,Calculations!AM$15:AM$1341) -> 0
I42: Supply Chain | L42: =SUM(L40:L41) -> 236452.2307 | O42: =SUM(O40:O41) -> 0 | P42: =SUM(P40:P41) -> 0 | Q42: =SUM(Q40:Q41) -> 0 | R42: 0 | S42: 0 | T42: 10862.76949 | U42: 10862.76949 | V42: 29850.50384 | W42: 29850.50384 | X42: 29850.50384 | Y42: 22268.25424 | Z42: 22268.25424 | AA42: 22268.25424 | AB42: 17039.39905 | AC42: 17039.39905 | AD42: 17039.39905 | AE42: 2417.406771 | AF42: 2417.406771 | AG42: 2417.406771 | AH42: 0 | AI42: 0 | AJ42: 0
I43: Administration | J43: 1Administration | L43: =SUM(O43:AJ43) -> 292650.8593 | O43: =SUMIF(Calculations!$I$15:$I$1341,$J43,Calculations!R$15:R$1341) -> 0 | P43: =SUMIF(Calculations!$I$15:$I$1341,$J43,Calculations!S$15:S$1341) -> 0 | Q43: =SUMIF(Calculations!$I$15:$I$1341,$J43,Calculations!T$15:T$1341) -> 35118.10311 | R43: =SUMIF(Calculations!$I$15:$I$1341,$J43,Calculations!U$15:U$1341) -> 32191.59452 | S43: =SUMIF(Calculations!$I$15:$I$1341,$J43,Calculations!V$15:V$1341) -> 32191.59452 | T43: =SUMIF(Calculations!$I$15:$I$1341,$J43,Calculations!W$15:W$1341) -> 32191.59452 | U43: =SUMIF(Calculations!$I$15:$I$1341,$J43,Calculations!X$15:X$1341) -> 35118.10311 | V43: =SUMIF(Calculations!$I$15:$I$1341,$J43,Calculations!Y$15:Y$1341) -> 30728.34022 | W43: =SUMIF(Calculations!$I$15:$I$1341,$J43,Calculations!Z$15:Z$1341) -> 29265.08593 | X43: =SUMIF(Calculations!$I$15:$I$1341,$J43,Calculations!AA$15:AA$1341) -> 17559.05156 | Y43: =SUMIF(Calculations!$I$15:$I$1341,$J43,Calculations!AB$15:AB$1341) -> 17559.05156 | Z43: =SUMIF(Calculations!$I$15:$I$1341,$J43,Calculations!AC$15:AC$1341) -> 13169.28867 | AA43: =SUMIF(Calculations!$I$15:$I$1341,$J43,Calculations!AD$15:AD$1341) -> 11706.03437 | AB43: =SUMIF(Calculations!$I$15:$I$1341,$J43,Calculations!AE$15:AE$1341) -> 5853.017186 | AC43: =SUMIF(Calculations!$I$15:$I$1341,$J43,Calculations!AF$15:AF$1341) -> 0 | AD43: =SUMIF(Calculations!$I$15:$I$1341,$J43,Calculations!AG$15:AG$1341) -> 0 | AE43: =SUMIF(Calculations!$I$15:$I$1341,$J43,Calculations!AH$15:AH$1341) -> 0 | AF43: =SUMIF(Calculations!$I$15:$I$1341,$J43,Calculations!AI$15:AI$1341) -> 0 | AG43: =SUMIF(Calculations!$I$15:$I$1341,$J43,Calculations!AJ$15:AJ$1341) -> 0 | AH43: =SUMIF(Calculations!$I$15:$I$1341,$J43,Calculations!AK$15:AK$1341) -> 0 | AI43: =SUMIF(Calculations!$I$15:$I$1341,$J43,Calculations!AL$15:AL$1341) -> 0 | AJ43: =SUMIF(Calculations!$I$15:$I$1341,$J43,Calculations!AM$15:AM$1341) -> 0
I44: Miscellaneous costs | J44: =$J$3&I44 -> 1Miscellaneous costs | L44: =SUM(O44:AJ44) -> 0 | O44: =SUMIF(Calculations!$I$15:$I$1341,$J44,Calculations!R$15:R$1341) -> 0 | P44: =SUMIF(Calculations!$I$15:$I$1341,$J44,Calculations!S$15:S$1341) -> 0 | Q44: =SUMIF(Calculations!$I$15:$I$1341,$J44,Calculations!T$15:T$1341) -> 0 | R44: =SUMIF(Calculations!$I$15:$I$1341,$J44,Calculations!U$15:U$1341) -> 0 | S44: =SUMIF(Calculations!$I$15:$I$1341,$J44,Calculations!V$15:V$1341) -> 0 | T44: =SUMIF(Calculations!$I$15:$I$1341,$J44,Calculations!W$15:W$1341) -> 0 | U44: =SUMIF(Calculations!$I$15:$I$1341,$J44,Calculations!X$15:X$1341) -> 0 | V44: =SUMIF(Calculations!$I$15:$I$1341,$J44,Calculations!Y$15:Y$1341) -> 0 | W44: =SUMIF(Calculations!$I$15:$I$1341,$J44,Calculations!Z$15:Z$1341) -> 0 | X44: =SUMIF(Calculations!$I$15:$I$1341,$J44,Calculations!AA$15:AA$1341) -> 0 | Y44: =SUMIF(Calculations!$I$15:$I$1341,$J44,Calculations!AB$15:AB$1341) -> 0 | Z44: =SUMIF(Calculations!$I$15:$I$1341,$J44,Calculations!AC$15:AC$1341) -> 0 | AA44: =SUMIF(Calculations!$I$15:$I$1341,$J44,Calculations!AD$15:AD$1341) -> 0 | AB44: =SUMIF(Calculations!$I$15:$I$1341,$J44,Calculations!AE$15:AE$1341) -> 0 | AC44: =SUMIF(Calculations!$I$15:$I$1341,$J44,Calculations!AF$15:AF$1341) -> 0 | AD44: =SUMIF(Calculations!$I$15:$I$1341,$J44,Calculations!AG$15:AG$1341) -> 0 | AE44: =SUMIF(Calculations!$I$15:$I$1341,$J44,Calculations!AH$15:AH$1341) -> 0 | AF44: =SUMIF(Calculations!$I$15:$I$1341,$J44,Calculations!AI$15:AI$1341) -> 0 | AG44: =SUMIF(Calculations!$I$15:$I$1341,$J44,Calculations!AJ$15:AJ$1341) -> 0 | AH44: =SUMIF(Calculations!$I$15:$I$1341,$J44,Calculations!AK$15:AK$1341) -> 0 | AI44: =SUMIF(Calculations!$I$15:$I$1341,$J44,Calculations!AL$15:AL$1341) -> 0 | AJ44: =SUMIF(Calculations!$I$15:$I$1341,$J44,Calculations!AM$15:AM$1341) -> 0
I45: Depreciation Expense | J45: =$J$3&I45 -> 1Depreciation Expense | L45: =SUM(O45:AJ45) -> 260323 | O45: =SUMIF(Calculations!$I$15:$I$1341,$J45,Calculations!R$15:R$1341) -> 0 | P45: =SUMIF(Calculations!$I$15:$I$1341,$J45,Calculations!S$15:S$1341) -> 0 | Q45: =SUMIF(Calculations!$I$15:$I$1341,$J45,Calculations!T$15:T$1341) -> 0 | R45: =SUMIF(Calculations!$I$15:$I$1341,$J45,Calculations!U$15:U$1341) -> 0 | S45: =SUMIF(Calculations!$I$15:$I$1341,$J45,Calculations!V$15:V$1341) -> 0 | T45: =SUMIF(Calculations!$I$15:$I$1341,$J45,Calculations!W$15:W$1341) -> 0 | U45: =SUMIF(Calculations!$I$15:$I$1341,$J45,Calculations!X$15:X$1341) -> 0 | V45: =SUMIF(Calculations!$I$15:$I$1341,$J45,Calculations!Y$15:Y$1341) -> 0 | W45: =SUMIF(Calculations!$I$15:$I$1341,$J45,Calculations!Z$15:Z$1341) -> 0 | X45: =SUMIF(Calculations!$I$15:$I$1341,$J45,Calculations!AA$15:AA$1341) -> 0 | Y45: =SUMIF(Calculations!$I$15:$I$1341,$J45,Calculations!AB$15:AB$1341) -> 0 | Z45: =SUMIF(Calculations!$I$15:$I$1341,$J45,Calculations!AC$15:AC$1341) -> 0 | AA45: =SUMIF(Calculations!$I$15:$I$1341,$J45,Calculations!AD$15:AD$1341) -> 0 | AB45: =SUMIF(Calculations!$I$15:$I$1341,$J45,Calculations!AE$15:AE$1341) -> 260323 | AC45: =SUMIF(Calculations!$I$15:$I$1341,$J45,Calculations!AF$15:AF$1341) -> 0 | AD45: =SUMIF(Calculations!$I$15:$I$1341,$J45,Calculations!AG$15:AG$1341) -> 0 | AE45: =SUMIF(Calculations!$I$15:$I$1341,$J45,Calculations!AH$15:AH$1341) -> 0 | AF45: =SUMIF(Calculations!$I$15:$I$1341,$J45,Calculations!AI$15:AI$1341) -> 0 | AG45: =SUMIF(Calculations!$I$15:$I$1341,$J45,Calculations!AJ$15:AJ$1341) -> 0 | AH45: =SUMIF(Calculations!$I$15:$I$1341,$J45,Calculations!AK$15:AK$1341) -> 0 | AI45: =SUMIF(Calculations!$I$15:$I$1341,$J45,Calculations!AL$15:AL$1341) -> 0 | AJ45: =SUMIF(Calculations!$I$15:$I$1341,$J45,Calculations!AM$15:AM$1341) -> 0
I46: Inventory Movement | J46: =$J$3&I46 -> 1Inventory Movement | L46: =SUM(O46:AJ46) -> -1.338776201e-09 | O46: =SUMIF(Calculations!$I$15:$I$1341,$J46,Calculations!R$15:R$1341) -> 0 | P46: =SUMIF(Calculations!$I$15:$I$1341,$J46,Calculations!S$15:S$1341) -> 0 | Q46: =SUMIF(Calculations!$I$15:$I$1341,$J46,Calculations!T$15:T$1341) -> -206869.9947 | R46: =SUMIF(Calculations!$I$15:$I$1341,$J46,Calculations!U$15:U$1341) -> -235684.1338 | S46: =SUMIF(Calculations!$I$15:$I$1341,$J46,Calculations!V$15:V$1341) -> -783087.0379 | T46: =SUMIF(Calculations!$I$15:$I$1341,$J46,Calculations!W$15:W$1341) -> -618212.6916 | U46: =SUMIF(Calculations!$I$15:$I$1341,$J46,Calculations!X$15:X$1341) -> -1101007.815 | V46: =SUMIF(Calculations!$I$15:$I$1341,$J46,Calculations!Y$15:Y$1341) -> -115009.1305 | W46: =SUMIF(Calculations!$I$15:$I$1341,$J46,Calculations!Z$15:Z$1341) -> -16079.00302 | X46: =SUMIF(Calculations!$I$15:$I$1341,$J46,Calculations!AA$15:AA$1341) -> 134002.2696 | Y46: =SUMIF(Calculations!$I$15:$I$1341,$J46,Calculations!AB$15:AB$1341) -> 82170.55422 | Z46: =SUMIF(Calculations!$I$15:$I$1341,$J46,Calculations!AC$15:AC$1341) -> 101054.7106 | AA46: =SUMIF(Calculations!$I$15:$I$1341,$J46,Calculations!AD$15:AD$1341) -> 249150.2506 | AB46: =SUMIF(Calculations!$I$15:$I$1341,$J46,Calculations!AE$15:AE$1341) -> 279223.5009 | AC46: =SUMIF(Calculations!$I$15:$I$1341,$J46,Calculations!AF$15:AF$1341) -> 878477.6377 | AD46: =SUMIF(Calculations!$I$15:$I$1341,$J46,Calculations!AG$15:AG$1341) -> 905843.6005 | AE46: =SUMIF(Calculations!$I$15:$I$1341,$J46,Calculations!AH$15:AH$1341) -> 148675.7607 | AF46: =SUMIF(Calculations!$I$15:$I$1341,$J46,Calculations!AI$15:AI$1341) -> 148675.7607 | AG46: =SUMIF(Calculations!$I$15:$I$1341,$J46,Calculations!AJ$15:AJ$1341) -> 148675.7607 | AH46: =SUMIF(Calculations!$I$15:$I$1341,$J46,Calculations!AK$15:AK$1341) -> 0 | AI46: =SUMIF(Calculations!$I$15:$I$1341,$J46,Calculations!AL$15:AL$1341) -> 0 | AJ46: =SUMIF(Calculations!$I$15:$I$1341,$J46,Calculations!AM$15:AM$1341) -> 0
I47: Non-Milk Expenses | L47: =SUM(L22:L24,L39,L42:L46) -> 2598207.349 | O47: =SUM(O22:O24,O39,O42:O46) -> 0 | P47: 0 | Q47: -106392.069 | R47: -135587.1811 | S47: -626094.0411 | T47: -394249.789 | U47: -843303.1053 | V47: 146988.6062 | W47: 234834.6685 | X47: 361319.4854 | Y47: 269159.9849 | Z47: 291878.9684 | AA47: 428773.1181 | AB47: 680872.0383 | AC47: 904680.5998 | AD47: 932046.5626 | AE47: 151093.1674 | AF47: 151093.1674 | AG47: 151093.1674 | AH47: 0 | AI47: 0 | AJ47: 0
I49: Cost of Milk | J49: =$J$3&I49 -> 1Cost of Milk | L49: =SUM(O49:AJ49) -> 9689548.489 | O49: =SUMIF(Calculations!$I$15:$I$1341,$J49,Calculations!R$15:R$1341) -> 0 | P49: =SUMIF(Calculations!$I$15:$I$1341,$J49,Calculations!S$15:S$1341) -> 0 | Q49: =SUMIF(Calculations!$I$15:$I$1341,$J49,Calculations!T$15:T$1341) -> 84637.33851 | R49: =SUMIF(Calculations!$I$15:$I$1341,$J49,Calculations!U$15:U$1341) -> 114073.2491 | S49: =SUMIF(Calculations!$I$15:$I$1341,$J49,Calculations!V$15:V$1341) -> 614150.4641 | T49: =SUMIF(Calculations!$I$15:$I$1341,$J49,Calculations!W$15:W$1341) -> 1140836.342 | U49: =SUMIF(Calculations!$I$15:$I$1341,$J49,Calculations!X$15:X$1341) -> 1401261.25 | V49: =SUMIF(Calculations!$I$15:$I$1341,$J49,Calculations!Y$15:Y$1341) -> 1280278.92 | W49: =SUMIF(Calculations!$I$15:$I$1341,$J49,Calculations!Z$15:Z$1341) -> 1178013.008 | X49: =SUMIF(Calculations!$I$15:$I$1341,$J49,Calculations!AA$15:AA$1341) -> 1075521.993 | Y49: =SUMIF(Calculations!$I$15:$I$1341,$J49,Calculations!AB$15:AB$1341) -> 846797.5946 | Z49: =SUMIF(Calculations!$I$15:$I$1341,$J49,Calculations!AC$15:AC$1341) -> 824361.5181 | AA49: =SUMIF(Calculations!$I$15:$I$1341,$J49,Calculations!AD$15:AD$1341) -> 694255.7717 | AB49: =SUMIF(Calculations!$I$15:$I$1341,$J49,Calculations!AE$15:AE$1341) -> 435361.0386 | AC49: =SUMIF(Calculations!$I$15:$I$1341,$J49,Calculations!AF$15:AF$1341) -> 0 | AD49: =SUMIF(Calculations!$I$15:$I$1341,$J49,Calculations!AG$15:AG$1341) -> 0 | AE49: =SUMIF(Calculations!$I$15:$I$1341,$J49,Calculations!AH$15:AH$1341) -> 0 | AF49: =SUMIF(Calculations!$I$15:$I$1341,$J49,Calculations!AI$15:AI$1341) -> 0 | AG49: =SUMIF(Calculations!$I$15:$I$1341,$J49,Calculations!AJ$15:AJ$1341) -> 0 | AH49: =SUMIF(Calculations!$I$15:$I$1341,$J49,Calculations!AK$15:AK$1341) -> 0 | AI49: =SUMIF(Calculations!$I$15:$I$1341,$J49,Calculations!AL$15:AL$1341) -> 0 | AJ49: =SUMIF(Calculations!$I$15:$I$1341,$J49,Calculations!AM$15:AM$1341) -> 0
I51: Additional Commodity Milk Payments And Standard Supply Adjustments | L51: ='Data Input'!N280 -> 13906.54494
I53: Aggregate Farmgate Milk Price | L53: =L49-L51 -> 9675641.944
I55: EBIT | J55: =$J$3&I55 -> 1EBIT | L55: =L19-L47-L49 -> 543105.6341 | O55: =O19-O47-O49 -> 0 | P55: 0 | Q55: 21754.73053 | R55: 21513.93205 | S55: 11943.57702 | T55: -139855.9712 | U55: 48772.43709 | V55: 100200.8106 | W55: 114620.6608 | X55: 90626.85882 | Y55: 53159.53041 | Z55: 52876.62338 | AA55: 46088.22003 | AB55: -98522.04542 | AC55: 113030.4317 | AD55: 85664.46892 | AE55: 7077.123159 | AF55: 7077.123159 | AG55: 7077.123159 | AH55: 0 | AI55: 0 | AJ55: 0
I57: Tax Expense | J57: =$J$3&I57 -> 1Tax Expense | L57: =SUM(O57:AJ57) -> 137951.5682 | O57: =SUMIF(Calculations!$I$15:$I$1341,$J57,Calculations!R$15:R$1341) -> 0 | P57: =SUMIF(Calculations!$I$15:$I$1341,$J57,Calculations!S$15:S$1341) -> 0 | Q57: =SUMIF(Calculations!$I$15:$I$1341,$J57,Calculations!T$15:T$1341) -> 11495.96401 | R57: =SUMIF(Calculations!$I$15:$I$1341,$J57,Calculations!U$15:U$1341) -> 11495.96401 | S57: =SUMIF(Calculations!$I$15:$I$1341,$J57,Calculations!V$15:V$1341) -> 11495.96401 | T57: =SUMIF(Calculations!$I$15:$I$1341,$J57,Calculations!W$15:W$1341) -> 11495.96401 | U57: =SUMIF(Calculations!$I$15:$I$1341,$J57,Calculations!X$15:X$1341) -> 11495.96401 | V57: =SUMIF(Calculations!$I$15:$I$1341,$J57,Calculations!Y$15:Y$1341) -> 11495.96401 | W57: =SUMIF(Calculations!$I$15:$I$1341,$J57,Calculations!Z$15:Z$1341) -> 11495.96401 | X57: =SUMIF(Calculations!$I$15:$I$1341,$J57,Calculations!AA$15:AA$1341) -> 11495.96401 | Y57: =SUMIF(Calculations!$I$15:$I$1341,$J57,Calculations!AB$15:AB$1341) -> 11495.96401 | Z57: =SUMIF(Calculations!$I$15:$I$1341,$J57,Calculations!AC$15:AC$1341) -> 11495.96401 | AA57: =SUMIF(Calculations!$I$15:$I$1341,$J57,Calculations!AD$15:AD$1341) -> 11495.96401 | AB57: =SUMIF(Calculations!$I$15:$I$1341,$J57,Calculations!AE$15:AE$1341) -> 11495.96401 | AC57: =SUMIF(Calculations!$I$15:$I$1341,$J57,Calculations!AF$15:AF$1341) -> 0 | AD57: =SUMIF(Calculations!$I$15:$I$1341,$J57,Calculations!AG$15:AG$1341) -> 0 | AE57: =SUMIF(Calculations!$I$15:$I$1341,$J57,Calculations!AH$15:AH$1341) -> 0 | AF57: =SUMIF(Calculations!$I$15:$I$1341,$J57,Calculations!AI$15:AI$1341) -> 0 | AG57: =SUMIF(Calculations!$I$15:$I$1341,$J57,Calculations!AJ$15:AJ$1341) -> 0 | AH57: =SUMIF(Calculations!$I$15:$I$1341,$J57,Calculations!AK$15:AK$1341) -> 0 | AI57: =SUMIF(Calculations!$I$15:$I$1341,$J57,Calculations!AL$15:AL$1341) -> 0 | AJ57: =SUMIF(Calculations!$I$15:$I$1341,$J57,Calculations!AM$15:AM$1341) -> 0
I59: NOPLAT | L59: =L55-L57 -> 405154.0659 | O59: =O55-O57 -> 0 | P59: =P55-P57 -> 0 | Q59: =Q55-Q57 -> 10258.76651 | R59: 10017.96804 | S59: 447.6130043 | T59: -151351.9352 | U59: 37276.47307 | V59: 88704.8466 | W59: 103124.6967 | X59: 79130.8948 | Y59: 41663.5664 | Z59: 41380.65936 | AA59: 34592.25602 | AB59: -110018.0094 | AC59: 113030.4317 | AD59: 85664.46892 | AE59: 7077.123159 | AF59: 7077.123159 | AG59: 7077.123159 | AH59: 0 | AI59: 0 | AJ59: 0
I61: Capital Charge | J61: =$J$3&I61 -> 1Capital Charge | L61: =L71 -> 405154.0659 | O61: =O71 -> 0 | P61: =P71 -> 0 | Q61: =Q71 -> 19.41330805 | R61: 496.3095232 | S61: 1286.266207 | T61: 2716.323403 | U61: 4515.212037 | V61: 7018.317626 | W61: 9123.99363 | X61: 7589.548938 | Y61: 5658.168456 | Z61: 4000.928192 | AA61: 3822.617719 | AB61: 361615.6737 | AC61: 2958.185132 | AD61: 1530.485834 | AE61: -1024.645342 | AF61: -2441.126445 | AG61: -3065.521047 | AH61: 505.2200306 | AI61: 2.720547477e-08 | AJ61: 3.257778334e-08
I63: Capital Base
I65: Capital Charge Rate | J65: =$J$3&I65 -> 1Capital Charge Rate | O65: =Global!$O$39 -> 0.00431287656 | P65: =Global!$O$39 -> 0.00431287656 | Q65: =Global!$O$39 -> 0.00431287656 | R65: =Q65 -> 0.00431287656 | S65: 0.00431287656 | T65: 0.00431287656 | U65: 0.00431287656 | V65: 0.00431287656 | W65: 0.00431287656 | X65: 0.00431287656 | Y65: 0.00431287656 | Z65: 0.00431287656 | AA65: 0.00431287656 | AB65: 0.00431287656 | AC65: 0.00431287656 | AD65: 0.00431287656 | AE65: 0.00431287656 | AF65: 0.00431287656 | AG65: 0.00431287656 | AH65: 0.00431287656 | AI65: 0.00431287656 | AJ65: 0.00431287656
I66: Capital Charge on Fixed Assets | L66: =Calculations!N1211 -> 358172 | O66: =Calculations!R1211 -> 0 | P66: =Calculations!S1211 -> 0 | Q66: =Calculations!T1211 -> 0 | R66: =Calculations!U1211 -> 0 | S66: =Calculations!V1211 -> 0 | T66: =Calculations!W1211 -> 0 | U66: =Calculations!X1211 -> 0 | V66: =Calculations!Y1211 -> 0 | W66: =Calculations!Z1211 -> 0 | X66: =Calculations!AA1211 -> 0 | Y66: =Calculations!AB1211 -> 0 | Z66: =Calculations!AC1211 -> 0 | AA66: =Calculations!AD1211 -> 0 | AB66: =Calculations!AE1211 -> 358172 | AC66: =Calculations!AF1211 -> 0 | AD66: =Calculations!AG1211 -> 0
I68: 12 Month Average | L68: =SUM(O68:AJ68)/12 -> 790813.7639 | O68: =Calculations!R1223 -> 0 | P68: =Calculations!S1223 -> 0 | Q68: =Calculations!T1223 -> 4501.243608 | R68: =Calculations!U1223 -> 115076.218 | S68: =Calculations!V1223 -> 298238.586 | T68: =Calculations!W1223 -> 546054.1502 | U68: =Calculations!X1223 -> 963151.3262 | V68: =Calculations!Y1223 -> 1426262.802 | W68: =Calculations!Z1223 -> 1914492.867 | X68: =Calculations!AA1223 -> 1558710.671 | Y68: =Calculations!AB1223 -> 1161151.199 | Z68: =Calculations!AC1223 -> 776897.1544 | AA68: =Calculations!AD1223 -> 735553.4084 | AB68: =Calculations!AE1223 -> 664442.5969 | AC68: =Calculations!AF1223 -> 551875.3632 | AD68: =Calculations!AG1223 -> 220843.5615 | AE68: =Calculations!AH1223 -> -254330.7647 | AF68: =Calculations!AI1223 -> -582761.4729 | AG68: =Calculations!AJ1223 -> -727535.9856 | AH68: =Calculations!AK1223 -> 117142.2422 | AI68: =Calculations!AL1223 -> 5.261158515e-06 | AJ68: =Calculations!AM1223 -> 6.307965089e-06
I69: Capital Charge on Net Working Capital | L69: =SUM(O69:AJ69) -> 48153.37092 | O69: =Calculations!R1227 -> 0 | P69: =Calculations!S1227 -> 0 | Q69: =Calculations!T1227 -> 19.41330805 | R69: =Calculations!U1227 -> 496.3095232 | S69: =Calculations!V1227 -> 1286.266207 | T69: =Calculations!W1227 -> 2716.323403 | U69: =Calculations!X1227 -> 4515.212037 | V69: =Calculations!Y1227 -> 7018.317626 | W69: =Calculations!Z1227 -> 9123.99363 | X69: =Calculations!AA1227 -> 7589.548938 | Y69: =Calculations!AB1227 -> 5658.168456 | Z69: =Calculations!AC1227 -> 4000.928192 | AA69: =Calculations!AD1227 -> 3822.617719 | AB69: =Calculations!AE1227 -> 3443.673715 | AC69: =Calculations!AF1227 -> 2958.185132 | AD69: =Calculations!AG1227 -> 1530.485834 | AE69: =Calculations!AH1227 -> -1024.645342 | AF69: =Calculations!AI1227 -> -2441.126445 | AG69: =Calculations!AJ1227 -> -3065.521047 | AH69: =Calculations!AK1227 -> 505.2200306 | AI69: =Calculations!AL1227 -> 2.269072724e-08 | AJ69: =Calculations!AM1227 -> 2.720547477e-08
I70: Time Value of Money Adjustment | L70: =L59-L66-L69 -> -1171.304982
I71: Total Capital Charge | L71: =L69+L66+L70 -> 405154.0659 | O71: =O69+O66 -> 0 | P71: 0 | Q71: 19.41330805 | R71: 496.3095232 | S71: 1286.266207 | T71: 2716.323403 | U71: 4515.212037 | V71: 7018.317626 | W71: 9123.99363 | X71: 7589.548938 | Y71: 5658.168456 | Z71: 4000.928192 | AA71: 3822.617719 | AB71: 361615.6737 | AC71: 2958.185132 | AD71: 1530.485834 | AE71: -1024.645342 | AF71: -2441.126445 | AG71: -3065.521047 | AH71: 505.2200306 | AI71: 2.269072724e-08 | AJ71: 2.720547477e-08
I73: Per KGMS
I74: Revenue
I75: Sales | J75: =$J$3&I75 -> 1Sales | L75: =L17/L$11 -> 8.426118408
I76: Downgrade expense (excl rework) | J76: =$J$3&I76 -> 1Downgrade expense (excl rework) | L76: =L18/L$11 -> 0
I77: Net Sales | L77: =SUM(L75:L76) -> 8.426118408
I79: Non-Milk Costs
I80: Commission | J80: =$J$3&I80 -> 1Commission | L80: =L22/L$11 -> 0.07221332792
I81: Collection Costs | J81: =$J$3&I81 -> 1Collection Costs | L81: =L23/L$11 -> 0.2442564423
I82: Lactose | L82: =L24/L$11 -> 0.2779648177
I83: Operating Costs
I84: Packaging | J84: =$J$3&I84 -> 1Packaging | L84: =L26/L$11 -> 0.3207368987
I85: Energy - Variable | J85: 1Energy - Variable | L85: 0
I86: Water | J86: 1Water | L86: 0
I87: Cleaning & CIP | J87: 1Cleaning & CIP | L87: 0
I88: Consumables | J88: 1Consumables | L88: 0
I89: Effluent | J89: 1Effluent | L89: 0
I90: Laboratory | J90: 1Laboratory | L90: 0
I91: Variable operating costs | L91: 0.3207368987
I92: Wages & ERE | J92: =$J$3&I92 -> 1Wages & ERE | L92: 0
I93: Repairs & Maintenance | J93: =$J$3&I93 -> 1Repairs & Maintenance | L93: 0
I94: Energy - Fixed | J94: =$J$3&I94 -> 1Energy - Fixed | L94: 0
I95: Site Overheads | J95: =$J$3&I95 -> 1Site Overheads | L95: 0.2726680902
I96: Fixed operating costs | L96: 0.2726680902
I97: Operating Costs | J97: =$J$3&I97 -> 1Operating Costs | L97: 0.5934049889
I98: Variable supply chain costs | J98: 1Variable supply chain costs | L98: 0.1552798694
I99: Fixed supply chain costs | J99: 1Fixed supply chain costs | L99: 0
I100: Supply Chain | J100: 1Supply Chain | L100: 0.1552798694
I101: Administration | J101: 1Administration | L101: 0.1921859104
I102: Miscellaneous costs | J102: 1Miscellaneous costs | L102: 0
I103: Depreciation Expense | J103: 1Depreciation Expense | L103: 0.1709559742
I104: Capital Charge | J104: 1Capital Charge | L104: =L117 -> 0.26606757
I105: Tax Expense | J105: 1Tax Expense | L105: =L57/L$11 -> 0.09059378052
I106: Total Expenses | L106: =SUM(L80:L82,L97,L100:L105) -> 2.062922681
I108: Additional Commodity Milk Payments And Standard Supply Adjustments | L108: =L51/L$11 -> 0.00913252743
I110: Farmgate Milk Price | L110: =Calculations!$N$1272-L108 -> 6.3540632
L111: =L110-(L77-L106-L108) -> 2.176037128e-13
I113: Capital Base
I114: Capital Charge on Fixed Assets | L114: =L66/L$11 -> 0.2352141116
I115: Capital Charge on Net Working Capital | L115: =L69/L$11 -> 0.03162266275
I116: Time Value of Money Adjustment | L116: =L70/L$11 -> -0.0007692043507
I117: Total Capital Charge | L117: =L115+L114+L116 -> 0.26606757
I119: Cash Flows
I121: Cash From Sales | L121: =SUM(O121:AJ121) -> 12830861.47 | O121: =Calculations!R926 -> 0 | P121: =Calculations!S926 -> 0 | Q121: =Calculations!T926 -> 0 | R121: =Calculations!U926 -> 0 | S121: =Calculations!V926 -> 0 | T121: =Calculations!W926 -> 142402.5054 | U121: =Calculations!X926 -> 621708.9071 | V121: =Calculations!Y926 -> 807853.7146 | W121: =Calculations!Z926 -> 1565176.865 | X121: =Calculations!AA926 -> 1527468.337 | Y121: =Calculations!AB926 -> 1341744.539 | Z121: =Calculations!AC926 -> 1261887.602 | AA121: =Calculations!AD926 -> 1140255.179 | AB121: =Calculations!AE926 -> 1158705.572 | AC121: =Calculations!AF926 -> 992586.8543 | AD121: =Calculations!AG926 -> 1042835.209 | AE121: =Calculations!AH926 -> 794753.3636 | AF121: =Calculations!AI926 -> 154265.5492 | AG121: =Calculations!AJ926 -> 162075.032 | AH121: =Calculations!AK926 -> 117142.2422 | AI121: =Calculations!AL926 -> 0 | AJ121: =Calculations!AM926 -> 0
I123: Trade Creditors | L123: =SUM(O123:AJ123) -> -2345109.534 | O123: =Calculations!R1279 -> 0 | P123: =Calculations!S1279 -> -4501.243608 | Q123: =Calculations!T1279 -> -100316.2079 | R123: =Calculations!U1279 -> -102563.5798 | S123: =Calculations!V1279 -> -160220.0087 | T123: =Calculations!W1279 -> -225463.3275 | U123: =Calculations!X1279 -> -258630.7 | V123: =Calculations!Y1279 -> -262005.6141 | W123: =Calculations!Z1279 -> -250757.7113 | X123: =Calculations!AA1279 -> -227304.4622 | Y123: =Calculations!AB1279 -> -186937.3857 | Z123: =Calculations!AC1279 -> -191248.4824 | AA123: =Calculations!AD1279 -> -178353.247 | AB123: =Calculations!AE1279 -> -136950.4833 | AC123: =Calculations!AF1279 -> -26743.1108 | AD123: =Calculations!AG1279 -> -25749.79635 | AE123: =Calculations!AH1279 -> -2493.152036 | AF123: =Calculations!AI1279 -> -2486.16521 | AG123: =Calculations!AJ1279 -> -2384.856241 | AH123: =Calculations!AK1279 -> 0 | AI123: =Calculations!AL1279 -> 0 | AJ123: =Calculations!AM1279 -> 0
I124: Suppliers | L124: =SUM(O124:AJ124) -> -9689548.489 | O124: =Calculations!R1280 -> 0 | P124: =Calculations!S1280 -> 0 | Q124: =Calculations!T1280 -> 0 | R124: =Calculations!U1280 -> -70580.82013 | S124: =Calculations!V1280 -> -87147.94257 | T124: =Calculations!W1280 -> -439765.6924 | U124: =Calculations!X1280 -> -789274.4686 | V124: =Calculations!Y1280 -> -946240.3413 | W124: =Calculations!Z1280 -> -856379.284 | X124: =Calculations!AA1280 -> -778356.6748 | Y124: =Calculations!AB1280 -> -729539.8082 | Z124: =Calculations!AC1280 -> -988564.9809 | AA124: =Calculations!AD1280 -> -856849.1311 | AB124: =Calculations!AE1280 -> -713477.0235 | AC124: =Calculations!AF1280 -> -522359.525 | AD124: =Calculations!AG1280 -> -456824.632 | AE124: =Calculations!AH1280 -> -456824.6321 | AF124: =Calculations!AI1280 -> 0 | AG124: =Calculations!AJ1280 -> -997363.5322 | AH124: =Calculations!AK1280 -> 0 | AI124: =Calculations!AL1280 -> 0 | AJ124: =Calculations!AM1280 -> 0
I125: Tax | L125: =SUM(O125:AJ125) -> -137951.5682 | O125: =Calculations!R1281 -> 0 | P125: =Calculations!S1281 -> 0 | Q125: =Calculations!T1281 -> 0 | R125: =Calculations!U1281 -> 0 | S125: =Calculations!V1281 -> 0 | T125: =Calculations!W1281 -> -45983.85606 | U125: =Calculations!X1281 -> 0 | V125: =Calculations!Y1281 -> 0 | W125: =Calculations!Z1281 -> 0 | X125: =Calculations!AA1281 -> -45983.85606 | Y125: =Calculations!AB1281 -> 0 | Z125: =Calculations!AC1281 -> 0 | AA125: =Calculations!AD1281 -> 0 | AB125: =Calculations!AE1281 -> -45983.85606 | AC125: =Calculations!AF1281 -> 0 | AD125: =Calculations!AG1281 -> 0 | AE125: =Calculations!AH1281 -> 0 | AF125: =Calculations!AI1281 -> 0 | AG125: =Calculations!AJ1281 -> 0 | AH125: =Calculations!AK1281 -> 0 | AI125: =Calculations!AL1281 -> 0 | AJ125: =Calculations!AM1281 -> 0
I127: Operating Cash Flow | L127: =SUM(O127:AJ127) -> 658251.8808 | O127: =SUM(O121,O123:O125) -> 0 | P127: =SUM(P121,P123:P125) -> -4501.243608 | Q127: =SUM(Q121,Q123:Q125) -> -100316.2079 | R127: -173144.3999 | S127: -247367.9512 | T127: -568810.3705 | U127: -426196.2615 | V127: -400392.2408 | W127: 458039.8701 | X127: 475823.3442 | Y127: 425267.3449 | Z127: 82074.13861 | AA127: 105052.8009 | AB127: 262294.2095 | AC127: 443484.2185 | AD127: 560260.7803 | AE127: 335435.5795 | AF127: 151779.384 | AG127: -837673.3565 | AH127: 117142.2422 | AI127: 0 | AJ127: 0
I129: WACC | L129: =Global!O38 -> 0.053 | O129: =O65 -> 0.00431287656 | P129: 0.00431287656 | Q129: 0.00431287656 | R129: 0.00431287656 | S129: 0.00431287656 | T129: 0.00431287656 | U129: 0.00431287656 | V129: 0.00431287656 | W129: 0.00431287656 | X129: 0.00431287656 | Y129: 0.00431287656 | Z129: 0.00431287656 | AA129: 0.00431287656 | AB129: 0.00431287656 | AC129: 0.00431287656 | AD129: 0.00431287656 | AE129: 0.00431287656 | AF129: 0.00431287656 | AG129: 0.00431287656 | AH129: 0.00431287656 | AI129: 0.00431287656 | AJ129: 0.00431287656
I131: Discount Factor | O131: =P131*(1+O129) -> 1.004312877 | P131: =Q131*(1+P129) -> 1 | Q131: =1/(1+Q129) -> 0.9957056445 | R131: =Q131/(1+R129) -> 0.9914297304 | S131: =R131/(1+S129) -> 0.9871721787 | T131: 0.9829329104 | U131: 0.978711847 | V131: 0.9745089103 | W131: 0.9703240226 | X131: 0.9661571063 | Y131: 0.9620080842 | Z131: 0.9578768794 | AA131: 0.9537634155 | AB131: 0.9496676163 | AC131: 0.945589406 | AD131: 0.9415287089 | AE131: 0.9374854498 | AF131: 0.933459554 | AG131: 0.9294509468 | AH131: 0.925459554 | AI131: 0.9214853016 | AJ131: 0.9175281161
I132: Discounted Cash Flows | L132: =SUM(O132:AJ132) -> 587364.6724 | O132: =O131*O127 -> 0 | P132: =P131*P127 -> -4501.243608 | Q132: =Q131*Q127 -> -99885.41441 | R132: =R131*R127 -> -171660.5057 | S132: =S131*S127 -> -244194.7593 | T132: -559102.4329 | U132: -417123.3303 | V132: -390185.8063 | W132: 444447.0893 | X132: 459720.1053 | Y132: 409110.6237 | Z132: 78616.91978 | AA132: 100195.5182 | AB132: 249092.3167 | AC132: 419353.9787 | AD132: 527501.6091 | AE132: 314465.9751 | AF132: 141679.9161 | AG132: -778576.2943 | AH132: 108410.4072 | AI132: 0 | AJ132: 0
I134: Present Value of required return
I135: Capital charge on fixed assets (discounted) | L135: =SUMPRODUCT(Q$131:AD$131,Q66:AD66) -> 340144.3495
I136: Depreciation (discounted) | L136: =SUMPRODUCT(Q$131:AD$131,Q45:AD45) -> 247220.3229
I137: Net | L137: =SUM(L135:L136) -> 587364.6724
I139: Excess / (Deficit) Return | L139: =L132-L137 -> 3.703171387e-07
I140: cents / kgms | L140: =L139/L12 -> 2.431937416e-13
I142: Check consistency of financials / cash flows
I143: NOPLAT | O143: =O59 -> 0 | P143: 0 | Q143: 10258.76651 | R143: 10017.96804 | S143: 447.6130043 | T143: -151351.9352 | U143: 37276.47307 | V143: 88704.8466 | W143: 103124.6967 | X143: 79130.8948 | Y143: 41663.5664 | Z143: 41380.65936 | AA143: 34592.25602 | AB143: -110018.0094 | AC143: 113030.4317 | AD143: 85664.46892 | AE143: 7077.123159 | AF143: 7077.123159 | AG143: 7077.123159 | AH143: 0 | AI143: 0 | AJ143: 0
I144: + depreciation | O144: =O45 -> 0 | P144: 0 | Q144: 0 | R144: 0 | S144: 0 | T144: 0 | U144: 0 | V144: 0 | W144: 0 | X144: 0 | Y144: 0 | Z144: 0 | AA144: 0 | AB144: 260323 | AC144: 0 | AD144: 0 | AE144: 0 | AF144: 0 | AG144: 0 | AH144: 0 | AI144: 0 | AJ144: 0
I145: + change in working capital | O145: =-(Calculations!S1223-Calculations!R1223+Calculations!R1226) -> 0 | P145: =-(Calculations!T1223-Calculations!S1223+Calculations!S1226) -> -4501.243608 | Q145: =-(Calculations!U1223-Calculations!T1223+Calculations!T1226) -> -110574.9744 | R145: =-(Calculations!V1223-Calculations!U1223+Calculations!U1226) -> -183162.368 | S145: =-(Calculations!W1223-Calculations!V1223+Calculations!V1226) -> -247815.5642 | T145: =-(Calculations!X1223-Calculations!W1223+Calculations!W1226) -> -417458.4353 | U145: =-(Calculations!Y1223-Calculations!X1223+Calculations!X1226) -> -463472.7346 | V145: =-(Calculations!Z1223-Calculations!Y1223+Calculations!Y1226) -> -489097.0874 | W145: =-(Calculations!AA1223-Calculations!Z1223+Calculations!Z1226) -> 354915.1734 | X145: =-(Calculations!AB1223-Calculations!AA1223+Calculations!AA1226) -> 396692.4494 | Y145: =-(Calculations!AC1223-Calculations!AB1223+Calculations!AB1226) -> 383603.7785 | Z145: =-(Calculations!AD1223-Calculations!AC1223+Calculations!AC1226) -> 40693.47925 | AA145: =-(Calculations!AE1223-Calculations!AD1223+Calculations!AD1226) -> 70460.5449 | AB145: =-(Calculations!AF1223-Calculations!AE1223+Calculations!AE1226) -> 111989.2189 | AC145: =-(Calculations!AG1223-Calculations!AF1223+Calculations!AF1226) -> 330453.7869 | AD145: =-(Calculations!AH1223-Calculations!AG1223+Calculations!AG1226) -> 474596.3113 | AE145: =-(Calculations!AI1223-Calculations!AH1223+Calculations!AH1226) -> 328358.4564 | AF145: =-(Calculations!AJ1223-Calculations!AI1223+Calculations!AI1226) -> 144702.2608 | AG145: =-(Calculations!AK1223-Calculations!AJ1223+Calculations!AJ1226) -> -844750.4796 | AH145: =-(Calculations!AL1223-Calculations!AK1223+Calculations!AK1226) -> 117142.2422 | AI145: =-(Calculations!AM1223-Calculations!AL1223+Calculations!AL1226) -> -1.046806574e-06 | AJ145: =-(Calculations!AN1223-Calculations!AM1223+Calculations!AM1226) -> -1.245643944e-06
I146: Operating Cash Flow | O146: =SUM(O143:O145) -> 0 | P146: -4501.243608 | Q146: -100316.2079 | R146: -173144.3999 | S146: -247367.9512 | T146: -568810.3705 | U146: -426196.2615 | V146: -400392.2408 | W146: 458039.8701 | X146: 475823.3442 | Y146: 425267.3449 | Z146: 82074.13861 | AA146: 105052.8009 | AB146: 262294.2095 | AC146: 443484.2185 | AD146: 560260.7803 | AE146: 335435.5795 | AF146: 151779.384 | AG146: -837673.3565 | AH146: 117142.2422 | AI146: -1.046806574e-06 | AJ146: -1.245643944e-06
I147: check | L147: =IF(ROUND(SUM(O147:AJ147),3)=0,"Okay","Error") -> Okay | O147: =O127-O146 -> 0 | P147: 0 | Q147: -5.282345228e-09 | R147: -7.65430741e-09 | S147: -4.365574569e-09 | T147: 2.526212484e-08 | U147: 4.307366908e-08 | V147: 6.792834029e-08 | W147: 9.14442353e-08 | X147: 1.405132934e-07 | Y147: 1.7543789e-07 | Z147: 2.168671926e-07 | AA147: 2.677406883e-07 | AB147: 3.414461389e-07 | AC147: 4.124594852e-07 | AD147: 4.938337952e-07 | AE147: 5.925539881e-07 | AF147: 7.077760529e-07 | AG147: 7.282942533e-07 | AH147: 8.689094102e-07 | AI147: 1.046806574e-06 | AJ147: 1.245643944e-06

Sheet LookupTables (hidden)
E10: Year to date month | I10: Selected
E11: =Global!K32 -> 2018-06-30 | F11: YTD_Months | I11: 18
E12: =EOMONTH(E11,1) -> 2018-07-31 | I12: =CHOOSE(YTD_Months_No,$E$11,$E$12,$E$13,$E$14,$E$15,$E$16,$E$17,$E$18,$E$19,$E$20,$E$21,$E$22,$E$23,$E$24,$E$25,$E$26,$E$27,$E$28) -> 2019-11-30
E13: =EOMONTH(E12,1) -> 2018-08-31
E14: 2018-09-30
E15: 2018-10-31
E16: 2018-11-30
E17: 2018-12-31
E18: 2019-01-31
E19: 2019-02-28
E20: 2019-03-31
E21: 2019-04-30
E22: 2019-05-31
E23: 2019-06-30
E24: 2019-07-31
E25: 2019-08-31
E26: 2019-09-30
E27: 2019-10-31
E28: 2019-11-30

Sheet nav_inputs (hidden)
B5: Full | C5: References | F5: Caption
B6: Caption | C6: Worksheet | D6: Cell | E6: Level A | F6: Level B | G6: Level C
B7: Entities | C7: Global | D7: A1 | E7: Global
B8: =E8&IF(F8="","",IF(G8=""," / "&F8," / "&F8&" / "&G8)) -> Data Input / GLOBAL | C8: Data Input | D8: ="A"&MATCH(F8,'Data Input'!$F$13:$F$718,0)+15 -> A17 | E8: Data Input | F8: ='Data Input'!F14 -> GLOBAL
B9: Data Input / MILK SUPPLY | C9: Data Input | D9: ="A"&MATCH(F9,'Data Input'!$F$13:$F$718,0)+15 -> A27 | E9: Data Input | F9: ='Data Input'!F24 -> MILK SUPPLY
B10: Data Input / PRODUCTION | C10: Data Input | D10: ="A"&MATCH(F10,'Data Input'!$F$13:$F$718,0)+15 -> A39 | E10: Data Input | F10: ='Data Input'!F36 -> PRODUCTION
B11: Data Input / REVENUE / 1. Base Commodity Prices | C11: Data Input | D11: ="A"&MATCH(G11,'Data Input'!$E$13:$E$718,0)+15 -> A86 | E11: Data Input | F11: ='Data Input'!F77 -> REVENUE | G11: ='Data Input'!E83 -> 1. Base Commodity Prices
B12: =E12&IF(F12="","",IF(G12=""," / "&F12," / "&F12&" / "&G12)) -> Data Input / REVENUE / 2. Sales Phasing | C12: Data Input | D12: ="A"&MATCH(G12,'Data Input'!$E$13:$E$718,0)+15 -> A100 | E12: Data Input | F12: =F11 -> REVENUE | G12: ='Data Input'!E97 -> 2. Sales Phasing
B13: =E13&IF(F13="","",IF(G13=""," / "&F13," / "&F13&" / "&G13)) -> Data Input / COLLECTION | C13: Data Input | D13: ="A"&MATCH(F13,'Data Input'!$F$13:$F$718,0)+15 -> A135 | E13: Data Input | F13: ='Data Input'!F132 -> COLLECTION
B14: Data Input / OPEX | C14: Data Input | D14: ="A"&MATCH(F14,'Data Input'!$F$13:$F$718,0)+15 -> A146 | E14: Data Input | F14: ='Data Input'!F143 -> OPEX
B15: Data Input / SUPPLY CHAIN | C15: Data Input | D15: ="A"&MATCH(F15,'Data Input'!$F$13:$F$718,0)+15 -> A193 | E15: Data Input | F15: ='Data Input'!F190 -> SUPPLY CHAIN
B16: Data Input / ADMINISTRATION | C16: Data Input | D16: ="A"&MATCH(F16,'Data Input'!$F$13:$F$718,0)+15 -> A220 | E16: Data Input | F16: ='Data Input'!F217 -> ADMINISTRATION
B17: Data Input / FIXED ASSETS | C17: Data Input | D17: ="A"&MATCH(F17,'Data Input'!$F$13:$F$718,0)+15 -> A233 | E17: Data Input | F17: ='Data Input'!F230 -> FIXED ASSETS
B18: Data Input / INCOME TAX | C18: Data Input | D18: ="A"&MATCH(F18,'Data Input'!$F$13:$F$718,0)+15 -> A244 | E18: Data Input | F18: ='Data Input'!F241 -> INCOME TAX
B19: Data Input / WORKING CAPITAL | C19: Data Input | D19: ="A"&MATCH(F19,'Data Input'!$F$13:$F$718,0)+15 -> A254 | E19: Data Input | F19: ='Data Input'!F251 -> WORKING CAPITAL
B20: Data Input / WORKING CAPITAL | C20: Data Input | D20: ="A"&MATCH(F20,'Data Input'!$F$13:$F$718,0)+14 -> A253 | E20: Data Input | F20: ='Data Input'!F251 -> WORKING CAPITAL
B21: Calculations / PRODUCTION | C21: Calculations | D21: ="A"&MATCH(F21,Calculations!$D$11:$D$1341,0)+13 -> A17 | E21: =C21 -> Calculations | F21: =Calculations!D14 -> PRODUCTION
B22: Calculations / COMPONENT MILK PRICE | C22: Calculations | D22: ="A"&MATCH(F22,Calculations!$D$11:$D$1341,0)+13 -> A237 | E22: Calculations | F22: =Calculations!D234 -> COMPONENT MILK PRICE
B23: Calculations / SALES REVENUE | C23: Calculations | D23: ="A"&MATCH(F23,Calculations!$D$11:$D$1341,0)+13 -> A298 | E23: Calculations | F23: =Calculations!D295 -> SALES REVENUE
B24: Calculations / COST OF MILK | C24: Calculations | D24: ="A"&MATCH(F24,Calculations!$D$11:$D$1341,0)+13 -> A523 | E24: Calculations | F24: =Calculations!D520 -> COST OF MILK
B25: Calculations / COLLECTION COSTS | C25: Calculations | D25: ="A"&MATCH(F25,Calculations!$D$11:$D$1341,0)+13 -> A539 | E25: Calculations | F25: =Calculations!D536 -> COLLECTION COSTS
B26: Calculations / OPEX | C26: Calculations | D26: ="A"&MATCH(F26,Calculations!$D$11:$D$1341,0)+13 -> A560 | E26: Calculations | F26: =Calculations!D557 -> OPEX
B27: Calculations / SUPPLY CHAIN COSTS | C27: Calculations | D27: ="A"&MATCH(F27,Calculations!$D$11:$D$1341,0)+13 -> A758 | E27: Calculations | F27: =Calculations!D755 -> SUPPLY CHAIN COSTS
B28: Calculations / ADMINISTRATION COSTS | C28: Calculations | D28: ="A"&MATCH(F28,Calculations!$D$11:$D$1341,0)+13 -> A847 | E28: Calculations | F28: =Calculations!D844 -> ADMINISTRATION COSTS
B29: Calculations / CURRENT ASSET MOVEMENTS / Receivables | C29: Calculations | D29: ="A"&MATCH(G29,Calculations!$D$11:$D$1341,0)+13 -> A885 | E29: Calculations | F29: =Calculations!D880 -> CURRENT ASSET MOVEMENTS | G29: =Calculations!D882 -> Receivables
B30: Calculations / CURRENT ASSET MOVEMENTS / INVENTORY | C30: Calculations | D30: ="A"&MATCH(G30,Calculations!$D$11:$D$1341,0)+13 -> A933 | E30: Calculations | F30: =F29 -> CURRENT ASSET MOVEMENTS | G30: =Calculations!D930 -> INVENTORY
B31: Calculations / CURRENT LIABILITY MOVEMENTS / TRADE CREDITORS | C31: Calculations | D31: ="A"&MATCH(G31,Calculations!$D$11:$D$1341,0)+13 -> A1099 | E31: Calculations | F31: =Calculations!D1094 -> CURRENT LIABILITY MOVEMENTS | G31: =Calculations!D1096 -> TRADE CREDITORS
B32: Calculations / CURRENT LIABILITY MOVEMENTS / OWING TO SUPPLIERS | C32: Calculations | D32: ="A"&MATCH(G32,Calculations!$D$11:$D$1341,0)+13 -> A1157 | E32: Calculations | F32: =F31 -> CURRENT LIABILITY MOVEMENTS | G32: =Calculations!D1154 -> OWING TO SUPPLIERS
B33: Calculations / FIXED ASSETS | C33: Calculations | D33: ="A"&MATCH(F33,Calculations!$D$11:$D$1341,0)+13 -> A1188 | E33: Calculations | F33: =Calculations!D1185 -> FIXED ASSETS
B34: Calculations / CAPITAL CHARGE | C34: Calculations | D34: ="A"&MATCH(F34,Calculations!$D$11:$D$1341,0)+13 -> A1199 | E34: Calculations | F34: =Calculations!D1196 -> CAPITAL CHARGE
B35: Calculations / MILK PRICE CALCULATION | C35: Calculations | D35: ="A"&MATCH(F35,Calculations!$D$11:$D$1341,0)+13 -> A1232 | E35: Calculations | F35: =Calculations!D1229 -> MILK PRICE CALCULATION
B36: Calculations / TAX EXPENSE | C36: Calculations | D36: ="A"&MATCH(F36,Calculations!$D$11:$D$1341,0)+13 -> A1295 | E36: Calculations | F36: =Calculations!D1292 -> TAX EXPENSE
B37: Calculations / TAX PAYMENTS | C37: Calculations | D37: ="A"&MATCH(F37,Calculations!$D$11:$D$1341,0)+13 -> A1324 | E37: Calculations | F37: =Calculations!D1321 -> TAX PAYMENTS
B38: Summary | C38: Summary | D38: A1 | E38: Summary
B40: =E40&IF(F40="","",IF(G40=""," / "&F40," / "&F40&" / "&G40)) -> 
D67: Worksheet Names
D69: Global
D70: Data Input
D71: GDT
D72: Calculations
D73: Summary
D74: LookupTables
